{"text_format":"1","workbook":"xlsx","n_sheets":11,"sheets":["Utilitaire","Accueil","Description","Détail des projets","GES","Indicateurs","Commentaires","Évaluation","Validation","Modalités de fin du PACC","Prochain Exercice-Commentaire"],"not_rendered":{"charts":0,"images":10,"macros":1,"external_links":0,"defined_names":480,"comments":2,"pivot_tables":0},"unopened":[],"bounds":{"document_bytes":16777216,"sheet_cells":100000,"rows_first":2000,"rows_last":500,"rows_between":2000,"halvings":0,"cell_chars":16384,"cell_head_chars":4096},"cells_cut":0,"cells_raw":0,"read":"whole","date_system":"1900"}

{"sheet":"Utilitaire","index":0,"n_rows":239,"n_cols":18,"rows_kept":239,"cut":false,"hidden":true,"merged":[[15,1,15,5],[15,8,15,9],[39,1,39,5]]}
[]
[]
[null,"Mot de passe:","!1320PACC","Fiche verrouillée:","Oui - diffusion en ligne"]
[null,"Fiche validée:","Oui","Fiche générée"]
[null,"GES attendu:","Oui","Est-ce que le pop-up \"validation\" s'affiche:","Générée"]
[null,"Feuille accueil complètement remplie:","Oui","Exercice de suivi:","2022-03-31","Date de l'exercice:","2022-03-31"]
[null,"Statut action:",{"$f":"Accueil!D58","v":"en cours"},null,null,"Année Courante","2022-2023"]
[null,"Feuille Utilitaire visible:","Non","Titre des Onglets:","Plan d'action 2013-2020 sur les changements climatiques"]
[null,"Dernière ligne de la zone de défilement de l'onglet détail des projets:",203]
[null,"nombre d'indicateurs approuvés:",6]
[null,"Secteur:","Plan d'action 2013-2020 sur les changements climatiques"]
[null,"Numéro de séquence de l'action:",21.01,"Remplir la section Évaluation requis : ",{"$f":"IF(Utilitaire!C7=I21,\"Oui\",IF(C7=I23,\"Oui\",\"Non\"))","v":"Non"},"Première ligne masquée dans l'onglet Indicateurs : ",164]
[null,"Première ligne masquée dans l'onglet Description:",85,"Affiche onglet Évaluation:","Oui","Première ligne masquée dans l'onglet Évaluation:",51]
[]
[null,"Listes Déroulantes"]
[null,"Onglet \"Détail des projets\"",null,null,null,null,"Onglet \"Indicateurs\"","DRFM COF","Accueil"]
[null,"Région Administrative","Statut","Classification","Type d'émissions","Info GES","Type d'indicateur","Exercice de suivi","Statut de l'action","Programmes","Fiche verrouillée"]
[null,"99-toutes les régions","COVID-19 - Reporté ou prolongé","SU-Subvention","QC-Québec","Oui","Minimum à atteindre","2013-2014-1","non démarrée","Sans objet","Oui - partenaire"]
[null,"01-Bas-Saint-Laurent","COVID-19 - Suspendu","CF-Contrat fonctionnement","HQ-Hors-Québec","Non","Maximum à ne pas dépasser","2013-2014-2","en élaboration","Programme \"Faites de l'air!\"","Oui - diffusion en ligne"]
[null,"02-Saguenay- Lac-Saint-Jean","COVID-19 - Annulé","CI-Contrat immobilisation","ND-Non distingué",null,"Binaire","2014-2015-1","en cours","Programme Action-Climat Québec","Non - BGFV"]
[null,"03-Capitale-Nationale","AC-Actif","CP-Contrat service professionnel",null,null,null,"2014-2015-2","terminée","Programme Chauffez vert"]
[null,"04-Mauricie ","TE-Terminé","CT-Contrat service technique",null,null,null,"2015-2016-1","en suspens","Programme Climat municipalités - Phase 2"]
[null,"05-Estrie","AT-En attente","PI-Projet à l'interne",null,null,null,"2015-2016-2","Retirée du PACC","Programme d’aide gouvernementale à l’amélioration des services de transport en commun (PAGASTC )"]
[null,"06-Montréal","SU-Suspendu","AU-Autre",null,null,"Étape","2016-2017-1",null,"Programme d’aide gouvernementale au transport collectif des personnes (PAGTCP)"]
[null,"07-Outaouais","AN-Annulé",null,null,null,"Recherche","2016-2017-2",null,"Programme d’aide gouvernementale transitoire en matière de transport routier des personnes","Commentaires"]
[null,"08-Abitibi-Témiscamingue","AB-Abandonné",null,null,null,"Étude de cas et caractérisation des impacts des CC","2017-2018-1",null,"Programme d'aide à la réduction des émissions de gaz à effet de serre dans le transport routier des marchandises - ÉcoCamionnage","Accueil"]
[null,"09-Côte-Nord","Projet en lien avec le transport","Horizon temporel Potentiel GES",null,"Catégories","Surveillance et prévention","2017-2018-2",null,"Programme d'aide à la réhabilitation des terrains contaminés - ClimatSol-Plus - Volet 1","Description"]
[null,"10-Nord-du-Québec","Oui","À la fin du projet (suite au dernier versement)",null,"Agricole","Réalisation","2018-2019-1",null,"Programme d'aide à l'amélioration de l'efficacité du transport maritime, aérien et ferroviaire en matière de réduction des émissions de GES (PETMAF)","Détail des projets"]
[null,"11-Gaspésie-Iles-de-la-Madeleine","Non","Cinq ans après la commercialisation du produit",null,"Aménagement du territoire","Aide à la décision","2018-2019-2","Part de financement par le PACC","Programme d'aide au développement du transport collectif (PADTC)","GES"]
[null,"12-Chaudières-Appalaches",null,"Dix ans après la commercialisation du produit",null,"Bâtiment","Sensibilisation et formation","2019-2020-1","Variable","Programme d'aide aux nouvelles mobilités des personnes (NOMO)","Indicateurs"]
[null,"13-Laval",null,2030,null,"Biodiversité, écosystèmes et ressources naturelles","Cadre législatif","2019-2020-2",{"$f":"10 & \" %\"","v":"10 %"},"Programme d'aide financière au développement des transports actifs dans les périmètres urbains (TAPU)","Validation"]
[null,"14-Lanaudière",null,2040,null,"Industriel, commercial et institutionnel",null,"2020-2021-1",{"$f":"20 & \" %\"","v":"20 %"},"Programme d'aide financière pour la planification de milieux de vie durables","Tout - autres"]
[null,"15-Laurentides",null,2050,null,"Matières résiduelles",null,"2020-2021-2",{"$f":"30 & \" %\"","v":"30 %"},"Programme d'aide financière pour le compostage domestique et communautaire (ACDC)"]
[null,"16-Montérégie",null,null,null,"Reddition de comptes et partenariats",null,"2021-2022-1",{"$f":"40 & \" %\"","v":"40 %"},"Programme d'aide gouvernementale au transport collectif régional (PAGTCR)"]
[null,"17-Centre-du-Québec",null,null,null,"Santé et sécurité publique","Ajustements","2021-2022-2",{"$f":"50 & \" %\"","v":"50 %"},"Programme d'appui à la lutte contre les changements climatiques en agriculture (PALCCA)","Onglet Évaluation"]
[null,"Québec méridional",null,null,null,"Transports","Agriculture","2022-2023-1",{"$f":"60 & \" %\"","v":"60 %"},"Programme de biomasse forestière résiduelle","Type de document"]
[null,"À l'extérieur du Québec",null,null,null,"Autres","Aménagement du territoire","2022-2023-2",{"$f":"70 & \" %\"","v":"70 %"},"Programme de coopération climatique internationale (PCCI)","Cadre d'évaluation"]
[null,null,null,null,null,null,"Bâtiments et infrastructures","2023-2024-1",{"$f":"80 & \" %\"","v":"80 %"},"Programme de formation continue sur l'utilisation du bois dans la construction","Cadre de suivi d'évaluation préliminaire"]
[null,null,null,null,null,null,"Forêts","2023-2024-2",{"$f":"90 & \" %\"","v":"90 %"},"Programme de récupération et de valorisation des réfrigérateurs et congélateurs domestiques","Rapport d'évaluation"]
[null,"Onglet \"Description\"",null,null,null,null,"Industriel, commercial et institutionnel",null,{"$f":"100 & \" %\"","v":"100 %"},"Programme de soutien à la promotion de l'électrification des transports","Résultats"]
[null,"Clientèle","État d'avancement","Moyens","Finalité","COVID","Océan, fleuve ou cours d'eau",null,null,"Programme de soutien à la réalisation de projets de démonstration de taxis électriques"]
[null,"Citoyens","Nouvelle","Encadrement légal (politiques, stratégies, codes, réglementations, etc.)","Adaptation aux effets des changements climatiques","Aucun changement prévu","Politiques et gestion",null,null,"Programme de soutien à l'intégration de l'adaptation aux changements climatiques à la planification municipale (PIACC)","Type d'évaluation"]
[null,"Entreprises (grandes entreprises)","En cours","Innovation, recherche et développement","Réduction des émissions de gaz à effet de serre","Diminution des coûts prévus","Services à la population",null,null,"Programme de soutien au déploiement des autobus scolaires électriques au Québec","En cours d'action"]
[null,"Entreprises (petites ou moyennes entreprises)","Complétée","Réalisation (programmes et subventions favorisant l'exécution de solutions établies)","Réduction et adaptation","Augmentation des coûts prévus","Suivi de l'état de l'environnement",null,null,"Programme de soutien aux essais de fertilisation","Lorsque l'action est terminée"]
[null,"Établissements de recherche","Inactive","Sensibilisation, formation et promotion","Coordination","L'augmentation prévue du coûts des projets rend le budget 2013-2020 insuffisant pour garantir la réalisation de tous les projets entamés","Autres",null,null,"Programme de soutien aux municipalités dans la mise en place d'infrastructures de gestion durable des eaux de pluie à la source"]
[null,"Ministères et organismes gouvernementaux","Abandonnée",null,null,"moins d'un mois",null,null,null,"Programme de subventions à l’adaptation des taxis et des autocars interurbains pour le transport des personnes se déplaçant en fauteuil roulant"]
[null,"Municipalités et organismes municipaux",null,null,null,"de 1 à 6 mois",null,null,null,"Programme de traitement des matières organiques par biométhanisation et compostage (PTMOBC)","Recommandation"]
[null,"Organismes à but non lucratif",null,null,null,"de 7 à 12 mois",null,null,null,"Programme de vitrine technologique pour les bâtiments et les solutions innovantes en bois","Reconduire"]
[null,null,null,null,null,"plus de 12 mois",null,null,null,"Programme d'innovation en construction bois","Ne pas reconduire"]
[null,null,null,null,null,"Aucun changement","Risques",null,null,"Programme ÉcoPerformance","Voir commentaire ci-dessous"]
[null,null,null,null,null,"Retards prévus, mais les engagements seront tous pris avant le 31 décembre 2020","Biodiversité",null,null,"Programme Prime-Vert 2013-2018","Objectifs initiaux"]
[null,null,null,null,null,"Retards prévus et les engagements ne pourront pas tous être pris avant le 31 décembre 2020","Économie",null,null,"Programme Roulez vert","Oui"]
[null,null,null,null,null,"Les échéanciers pourront être devancés","Environnement",null,null,"Programme Technoclimat","Partiellement"]
[null,null,null,null,null,"Des cibles pourraient être atteintes avant les délais prévus","Ressources naturelles",null,null,"Programme visant à rendre les établissements d'enseignement écoresponsables","Non"]
[null,null,null,null,null,"Toutes les cibles devraient être atteintes dans les délais prévus","Santé et sécurité publique",null,null,"Programme visant la réduction des émissions de GES par le développement du transport intermodal (PREGTI)"]
[null,null,null,null,null,"Toutes les cibles devraient être atteintes avec certains retards","Services à la population",null,null,"Programme visant la réduction, la récupération et le recyclage des matières organiques du secteur des industries, commerces et institutions (ICI)"]
[]
[null,null,null,null,null,"Aucune cible ne pourra être atteinte",null,null,null,"Autre programme"]
[]
[]
[null,null,null,null,null,null,"Effets des changements climatiques"]
[null,null,null,null,null,null,"Dégradation d'écosystèmes"]
[null,null,null,null,null,null,"Dégradation du pergélisol"]
[null,null,null,null,null,null,"Intensification de l'érosion"]
[null,null,null,null,null,null,"Exacerbation des aléas naturels"]
[null,null,null,null,null,null,"Intensification des îlots de chaleur"]
[null,null,null,null,null,null,"Modifications des régimes hydriques, de vagues ou de glaces"]
[null,null,null,null,null,null,"Modifications des régimes de précipitations"]
[null,null,null,null,null,null,"Propagation de maladies ou d'espèces nuisibles"]
[null,null,null,null,null,null,"Qualité de l'air"]
[null,null,null,null,null,null,"Tous les effets"]
[null,null,null,null,null,null,"Autres"]
[]
[]
[]
[]
[]
[]
[]
[]
[]
[null,null,null,null,null,null,null,null,null,null,"Onglet de la fiche"]
[null,null,null,null,null,null,null,null,null,null,"Accueil"]
[null,null,null,null,null,null,null,null,null,null,"Administration"]
[null,null,null,null,null,null,null,null,null,null,"Description"]
[null,null,null,null,null,null,null,null,null,null,"Détail des projets"]
[null,null,null,null,null,null,null,null,null,null,"GES"]
[null,null,null,null,null,null,null,null,null,null,"Adaptation"]
[null,null,null,null,null,null,null,null,null,null,"Indicateurs"]
[null,null,null,null,null,null,null,null,null,null,"Commentaires"]
[]
[]
[]
[]
[]
[]
[]
[]
[]
[]
[]
[]
[]
[]
[]
[]
[]
[]
[]
[]
[]
[]
[]
[]
[]
[]
[]
[]
[]
[]
[]
[]
[]
[]
[]
[]
[]
[]
[]
[]
[]
[]
[]
[]
[]
[]
[]
[]
[]
[]
[]
[]
[]
[]
[]
[]
[]
[]
[]
[]
[]
[]
[]
[]
[]
[]
[]
[]
[]
[]
[]
[]
[]
[]
[]
[]
[]
[]
[]
[]
[]
[]
[]
[]
[]
[]
[]
[]
[]
[]
[]
[]
[]
[]
[]
[]
[]
[]
[]
[]
[]
[]
[]
[]
[]
[]
[]
[]
[]
[]
[]
[]
[]
[]
[]
[]
[]
[]
[]
[]
[]
[]
[]
[]
[]
[]
[]
[]
[]
[]
[]
[]
[]
[]
[]
[]
[null,"ONGLET INDICATEURS: Liste des statuts de l'action"]
[null,null,"2013-2014","2014-2015","2015-2016","2016-2017","2017-2018","2018-2019","2019-2020","2020-2021","2021-2022","2022-2023","2023-2024","2024-2025","2025-2026","2026-2027","2027-2028","2026-2029"]
[null,"Valeurs actuelles",{"$f":"IF(C228=$G$7,IF(Accueil!$D$58<>$C$239,Accueil!$D$58,IF(ISBLANK(C230),B230,C230)),C230)","v":"non démarrée"},{"$f":"IF(D228=$G$7,IF(Accueil!$D$58<>$C$239,Accueil!$D$58,IF(ISBLANK(D230),C230,D230)),D230)","v":"non démarrée"},{"$f":"IF(E228=$G$7,IF(Accueil!$D$58<>$C$239,Accueil!$D$58,IF(ISBLANK(E230),D230,E230)),E230)","v":"non démarrée"},{"$f":"IF(F228=$G$7,IF(Accueil!$D$58<>$C$239,Accueil!$D$58,IF(ISBLANK(F230),E230,F230)),F230)","v":"non démarrée"},{"$f":"IF(G228=$G$7,IF(Accueil!$D$58<>$C$239,Accueil!$D$58,IF(ISBLANK(G230),F230,G230)),G230)","v":"non démarrée"},{"$f":"IF(H228=$G$7,IF(Accueil!$D$58<>$C$239,Accueil!$D$58,IF(ISBLANK(H230),G230,H230)),H230)","v":"non démarrée"},{"$f":"IF(I228=$G$7,IF(Accueil!$D$58<>$C$239,Accueil!$D$58,IF(ISBLANK(I230),H230,I230)),I230)","v":"non démarrée"},{"$f":"IF(J228=$G$7,IF(Accueil!$D$58<>$C$239,Accueil!$D$58,IF(ISBLANK(J230),I230,J230)),J230)","v":"non démarrée"},{"$f":"IF(K228=$G$7,IF(Accueil!$D$58<>$C$239,Accueil!$D$58,IF(ISBLANK(K230),J230,K230)),K230)","v":"non démarrée"},{"$f":"IF(L228=$G$7,IF(Accueil!$D$58<>$C$239,Accueil!$D$58,IF(ISBLANK(L230),K230,L230)),L230)","v":"en cours"},{"$f":"IF(M228=$G$7,IF(Accueil!$D$58<>$C$239,Accueil!$D$58,IF(ISBLANK(M230),L230,M230)),M230)","v":0},{"$f":"IF(N228=$G$7,IF(Accueil!$D$58<>$C$239,Accueil!$D$58,IF(ISBLANK(N230),M230,N230)),N230)","v":0},{"$f":"IF(O228=$G$7,IF(Accueil!$D$58<>$C$239,Accueil!$D$58,IF(ISBLANK(O230),N230,O230)),O230)","v":0},{"$f":"IF(P228=$G$7,IF(Accueil!$D$58<>$C$239,Accueil!$D$58,IF(ISBLANK(P230),O230,P230)),P230)","v":0},{"$f":"IF(Q228=$G$7,IF(Accueil!$D$58<>$C$239,Accueil!$D$58,IF(ISBLANK(Q230),P230,Q230)),Q230)","v":0},{"$f":"IF(R228=$G$7,IF(Accueil!$D$58<>$C$239,Accueil!$D$58,IF(ISBLANK(R230),Q230,R230)),R230)","v":0}]
[null,"Valeurs précédentes","non démarrée","non démarrée","non démarrée","non démarrée","non démarrée","non démarrée","non démarrée","non démarrée","non démarrée"]
[]
[]
[null,"IdStatutAction","codeStatutAction","valeurStatutAction","rangStatut"]
[null,1,{"$f":"I18","v":"non démarrée"},0,1]
[null,2,{"$f":"I19","v":"en élaboration"},0,2]
[null,3,"en cours",0.5,3]
[null,4,"terminée",1,4]
[null,5,"en suspens",0,5]
[null,6,"Retirée du PACC",0,6]

{"sheet":"Accueil","index":1,"n_rows":85,"n_cols":11,"rows_kept":85,"cut":false,"hidden":false,"merged":[[84,1,84,12],[1,4,2,12],[67,1,67,2],[57,1,57,2],[31,1,31,9],[66,3,66,6],[66,8,66,9],[66,1,66,2],[65,3,65,6],[53,4,53,11],[53,1,53,2],[55,3,55,11],[64,3,64,6],[65,10,65,11],[64,10,64,11],[57,3,57,11],[66,10,66,11],[65,1,65,2],[65,8,65,9],[62,3,62,4],[64,1,64,2],[62,1,62,2],[58,3,58,11],[64,8,64,9],[58,1,58,2],[30,1,30,12],[55,1,55,2],[31,10,31,12],[51,1,51,2],[52,1,52,2],[54,4,54,11],[51,4,51,11],[52,4,52,11],[56,1,56,2],[56,3,56,10],[49,1,49,12],[4,1,5,12],[54,1,54,2],[29,1,29,12],[24,1,24,12],[22,1,22,12],[9,1,9,12],[26,1,26,12],[21,1,21,12],[16,1,16,12],[14,1,14,12],[15,1,15,12],[23,1,23,12],[25,1,25,12],[18,1,18,12],[20,1,20,11],[17,1,17,12],[69,0,71,0],[68,1,68,12],[71,10,71,11],[69,1,69,2],[71,8,71,9],[70,1,70,2],[71,1,71,2],[71,3,71,6],[69,10,69,11],[70,8,70,9],[69,3,69,6],[70,3,70,6],[69,8,69,9],[70,10,70,11],[13,1,13,2],[13,3,13,4],[28,1,28,12],[85,1,87,12],[72,1,72,2],[74,3,74,11],[74,1,74,2],[73,1,73,2],[76,11,76,12],[67,3,67,6],[73,3,73,11],[67,8,67,9],[67,10,67,11],[72,3,72,6],[72,8,72,9],[72,10,72,11]]}
[]
[null,null,null,null,"EXERCICE DE SUIVI DU PLAN D'ACTION 2013-2020 SUR LES CHANGEMENTS CLIMATIQUES"]
[]
[]
[]
[]
[]
[]
[]
[null,"Bienvenue dans votre fiche de suivi du FECC - Gestion des matières résiduelles"]
[]
[]
[]
[null,"Échéance de transmission :",null,"2022-06-14"]
[null,"Nouveautés pour l’exercice de suivi de mai 2020 "]
[null,"RAPPEL :"]
[null,"* Fin du PACC : Les conventions de subventions se rapportant aux engagements saisis à SAGIR sont maintenant signées."]
[null,"* Fin du PACC : Les projets réalisés à l'interne dans vos organisations doivent se terminer avant le 31 décembre 2022"]
[null,"* Fin du PACC : Vous devez compléter l'onglet Évaluation."]
[null,"Consignes générales :"]
[null,"→Les informations doivent correspondre à l'avancement de l'action en date du 31 mars 2022."]
[null,"→Assurez-vous de valider votre fiche (onglet Validation) avant de la transmettre à l’adresse suivante :  suivi.climatique@environnement.gouv.qc.ca"]
[null,"→Toute information confidentielle doit être saisie en bleu."]
[null,"→Conservez la fiche en format xlsm afin de pouvoir profiter des outils conviviaux."]
[null,"→La plupart des cellules contenant du texte sont limitées à 250 caractères."]
[]
[null,"→Copier-coller des informations à partir d’un document Word verrouille les cellules concernées. Pour pouvoir à nouveau écrire et modifier le  format de ces cellules, fermez et ouvrez à nouveau la fiche."]
[]
[null,"→Besoin d’assistance? Écrivez-nous à l’adresse suivante en précisant votre question et vos coordonnées : suivi.climatique@environnement.gouv.qc.ca"]
[]
[]
[]
[]
[]
[]
[]
[]
[]
[]
[]
[]
[]
[]
[]
[]
[]
[]
[]
[]
[null,"Veuillez vérifier, corriger et compléter les informations ci-dessous :"]
[]
[null,"Priorité :",null,"21","Réduire l'utilisation des halocarbures"]
[null,"Action :",null,21.1,"Réduction des émissions de GES en provenance des systèmes de réfrigération (OPTER) (ÉcoPerformance)"]
[null,"Sous-action :",null,21.1,"Réduction des émissions de GES en provenance des systèmes de réfrigération (OPTER) (ÉcoPerformance)"]
[null,"Libellé usuel :",null,"21.1","Réduction des émissions de GES en provenance des systèmes de réfrigération (OPTER) (Écoperformance)"]
[null,"Programme :",null,"Programme ÉcoPerformance"]
[null,"Nom du programme :"]
[null,"Statut de l’action :",null,"en cours"]
[null,"Raison du statut de l’action :"]
[]
[]
[]
[null,"Informations en date du :",null,{"$f":"Utilitaire!G6","v":"2022-03-31"}]
[]
[null,"Ministère porteur :",null,"MERN (SITE)",null,null,null,null,"Direction responsable :",null,"DG opérations et innovation"]
[null,"Partenaires :",null,"S.O.",null,null,null,null,"Part de financement par le FECC :",null,1]
[null,"Budget 2013-2020 (M$) :",null,30.443999999999999,null,null,null,null,"Autres sources de financement :",null,"Fonds pour une économie à faibles émissions de carbone (fédéral) et Plan budgétaire 2019-2020"]
[null,"Date de lancement de l’action :",null,"2013-10-28",null,null,null,null,"Date de fin de l’action :",null,"2024-03-31"]
[null,"Section réservée à l’usage exclusif du BECC (lignes 70 à 73 non publiées)"]
[null,"Chargé de projet :",null,"Guy Desbiens",null,null,null,null,"Tél. :",null,"418 627-6379, poste 708016"]
[null,"Responsable ministériel :",null,"Dominique Deschênes",null,null,null,null,"Tél. :",null,"418 627-6379, poste 708088"]
[null,"Personne ressource pour le BECC :",null,"Guy Desbiens",null,null,null,null,"Tél. :",null,"418-627-6379 (708016)"]
[null,"Estimation des sommes résiduelles au \n31 décembre 2020 ($) :",null,0,null,null,null,null,"Précisions sur le montant des sommes résiduelles :",null,"s"]
[null,"Téléphone pour informations :",null,"1 866 266-0008"]
[null,"Référence Web :",null,"https://transitionenergetique.gouv.qc.ca"]
[]
[]
[]
[]
[]
[]
[]
[]
[]
[null,"Transition Energétique du Quebec"]

{"sheet":"Description","index":2,"n_rows":198,"n_cols":14,"rows_kept":198,"cut":false,"hidden":false,"merged":[[40,1,40,4],[40,5,40,8],[1,1,1,6],[18,1,18,2],[18,3,18,4],[18,5,18,14],[14,1,14,14],[15,1,15,2],[15,3,15,4],[15,5,15,14],[16,1,16,2],[16,3,16,4],[16,6,16,14],[17,1,17,2],[17,3,17,4],[17,6,17,14],[2,1,2,2],[3,2,3,6],[5,1,5,6],[1,8,1,9],[1,11,1,12],[1,13,1,14],[2,8,5,14],[4,1,4,2],[4,3,4,6],[53,2,53,6],[53,9,53,14],[41,1,41,14],[52,1,52,14],[53,7,53,8],[162,1,162,8],[162,9,162,11],[162,12,162,14],[158,1,158,8],[158,9,158,11],[158,12,158,14],[159,1,159,8],[159,9,159,11],[159,12,159,14],[156,1,156,8],[156,9,156,11],[156,12,156,14],[157,1,157,8],[157,9,157,11],[157,12,157,14],[154,1,154,8],[154,9,154,11],[154,12,154,14],[155,1,155,8],[163,1,163,8],[163,9,163,11],[163,12,163,14],[160,1,160,8],[160,9,160,11],[160,12,160,14],[161,1,161,8],[161,9,161,11],[161,12,161,14],[152,1,152,8],[152,9,152,11],[152,12,152,14],[153,1,153,8],[153,9,153,11],[153,12,153,14],[150,1,150,8],[150,9,150,11],[150,12,150,14],[151,1,151,8],[151,9,151,11],[151,12,151,14],[148,1,148,8],[148,9,148,11],[148,12,148,14],[149,1,149,8],[149,9,149,11],[149,12,149,14],[146,1,146,8],[146,9,146,11],[146,12,146,14],[147,1,147,8],[147,9,147,11],[147,12,147,14],[144,1,144,8],[144,9,144,11],[144,12,144,14],[145,1,145,8],[145,9,145,11],[145,12,145,14],[142,1,142,8],[142,9,142,11],[142,12,142,14],[143,1,143,8],[143,9,143,11],[143,12,143,14],[140,1,140,8],[140,9,140,11],[140,12,140,14],[141,1,141,8],[141,9,141,11],[141,12,141,14],[138,1,138,8],[138,9,138,11],[138,12,138,14],[139,1,139,8],[139,9,139,11],[139,12,139,14],[136,1,136,8],[136,9,136,11],[136,12,136,14],[137,1,137,8],[137,9,137,11],[137,12,137,14],[134,1,134,8],[134,9,134,11],[134,12,134,14],[135,1,135,8],[135,9,135,11],[135,12,135,14],[132,1,132,8],[132,9,132,11],[132,12,132,14],[133,1,133,8],[133,9,133,11],[133,12,133,14],[130,1,130,8],[130,9,130,11],[130,12,130,14],[131,1,131,8],[131,9,131,11],[131,12,131,14],[128,1,128,8],[128,9,128,11],[128,12,128,14],[129,1,129,8],[129,9,129,11],[129,12,129,14],[126,1,126,8],[126,9,126,11],[126,12,126,14],[127,1,127,8],[127,9,127,11],[127,12,127,14],[124,1,124,8],[124,9,124,11],[124,12,124,14],[125,1,125,8],[125,9,125,11],[125,12,125,14],[122,1,122,8],[122,9,122,11],[122,12,122,14],[123,1,123,8],[123,9,123,11],[123,12,123,14],[120,1,120,8],[120,9,120,11],[120,12,120,14],[121,1,121,8],[121,9,121,11],[121,12,121,14],[118,1,118,8],[118,9,118,11],[118,12,118,14],[119,1,119,8],[119,9,119,11],[119,12,119,14],[116,1,116,8],[116,9,116,11],[116,12,116,14],[117,1,117,8],[117,9,117,11],[117,12,117,14],[114,1,114,8],[114,9,114,11],[114,12,114,14],[115,1,115,8],[115,9,115,11],[115,12,115,14],[112,1,112,8],[112,9,112,11],[112,12,112,14],[113,1,113,8],[113,9,113,11],[113,12,113,14],[110,1,110,8],[110,9,110,11],[110,12,110,14],[111,1,111,8],[111,9,111,11],[111,12,111,14],[108,1,108,8],[108,9,108,11],[108,12,108,14],[109,1,109,8],[109,9,109,11],[109,12,109,14],[106,1,106,8],[106,9,106,11],[106,12,106,14],[107,1,107,8],[107,9,107,11],[107,12,107,14],[104,1,104,8],[104,9,104,11],[104,12,104,14],[105,1,105,8],[105,9,105,11],[105,12,105,14],[102,1,102,8],[102,9,102,11],[102,12,102,14],[103,1,103,8],[103,9,103,11],[103,12,103,14],[100,1,100,8],[100,9,100,11],[100,12,100,14],[101,1,101,8],[101,9,101,11],[101,12,101,14],[98,1,98,8],[98,9,98,11],[98,12,98,14],[99,1,99,8],[99,9,99,11],[99,12,99,14],[96,1,96,8],[96,9,96,11],[96,12,96,14],[97,1,97,8],[97,9,97,11],[97,12,97,14],[94,1,94,8],[94,9,94,11],[94,12,94,14],[95,1,95,8],[95,9,95,11],[95,12,95,14],[92,1,92,8],[92,9,92,11],[92,12,92,14],[93,1,93,8],[93,9,93,11],[93,12,93,14],[90,1,90,8],[90,9,90,11],[90,12,90,14],[91,1,91,8],[91,9,91,11],[91,12,91,14],[89,1,89,8],[89,9,89,11],[89,12,89,14],[86,1,86,8],[86,9,86,11],[86,12,86,14],[87,1,87,8],[87,9,87,11],[87,12,87,14],[85,1,85,8],[85,9,85,11],[85,12,85,14],[82,12,82,14],[83,1,83,8],[83,9,83,11],[83,12,83,14],[88,1,88,8],[88,9,88,11],[88,12,88,14],[81,1,81,8],[81,9,81,11],[81,12,81,14],[179,1,179,8],[179,9,179,11],[179,12,179,14],[176,1,176,8],[176,9,176,11],[176,12,176,14],[173,1,173,8],[173,9,173,11],[173,12,173,14],[174,1,174,8],[174,9,174,11],[174,12,174,14],[175,1,175,8],[175,9,175,11],[175,12,175,14],[171,1,171,8],[171,9,171,11],[171,12,171,14],[84,1,84,8],[84,9,84,11],[84,12,84,14],[180,1,180,8],[180,9,180,11],[180,12,180,14],[177,1,177,8],[177,9,177,11],[177,12,177,14],[178,1,178,8],[178,9,178,11],[178,12,178,14],[184,1,184,8],[184,9,184,11],[184,12,184,14],[181,1,181,8],[181,9,181,11],[181,12,181,14],[182,1,182,8],[182,9,182,11],[182,12,182,14],[183,1,183,8],[183,9,183,11],[183,12,183,14],[172,1,172,8],[172,9,172,11],[172,12,172,14],[169,1,169,8],[169,9,169,11],[169,12,169,14],[170,1,170,8],[170,9,170,11],[170,12,170,14],[167,1,167,8],[167,9,167,11],[167,12,167,14],[168,1,168,8],[168,9,168,11],[168,12,168,14],[165,1,165,8],[165,9,165,11],[165,12,165,14],[166,1,166,8],[166,9,166,11],[166,12,166,14],[164,1,164,8],[164,9,164,11],[164,12,164,14],[74,1,74,8],[74,9,74,11],[74,12,74,14],[75,1,75,8],[75,9,75,11],[75,12,75,14],[76,1,76,8],[76,9,76,11],[76,12,76,14],[77,1,77,8],[78,1,78,8],[78,9,78,11],[78,12,78,14],[79,1,79,8],[79,9,79,11],[79,12,79,14],[82,1,82,8],[82,9,82,11],[80,1,80,8],[80,9,80,11],[80,12,80,14],[70,1,70,8],[70,9,70,11],[70,12,70,14],[71,1,71,8],[71,9,71,11],[71,12,71,14],[73,1,73,8],[73,9,73,11],[73,12,73,14],[186,1,186,8],[187,1,187,8],[68,1,68,8],[68,9,68,11],[68,12,68,14],[69,1,69,8],[69,9,69,11],[69,12,69,14],[43,2,43,14],[46,2,46,14],[47,2,47,14],[48,2,48,14],[50,2,50,14],[67,1,67,8],[64,9,64,11],[65,9,65,11],[66,9,66,11],[63,12,63,14],[186,12,186,14],[187,12,187,14],[64,1,64,8],[65,1,65,8],[66,1,66,8],[72,1,72,8],[188,12,188,14],[63,9,63,11],[186,9,186,11],[187,9,187,11],[188,9,188,11],[67,12,67,14],[64,12,64,14],[65,12,65,14],[66,12,66,14],[77,9,77,11],[77,12,77,14],[67,9,67,11],[155,9,155,11],[155,12,155,14],[72,9,72,11],[72,12,72,14],[193,1,193,14],[49,2,49,14],[42,2,42,14],[44,1,45,1],[44,2,44,3],[44,4,44,5],[44,6,44,8],[44,9,44,11],[44,12,44,14],[45,2,45,3],[45,4,45,5],[45,6,45,8],[45,9,45,11],[45,12,45,14],[189,1,189,14],[188,1,188,8],[185,1,185,8],[185,9,185,11],[185,12,185,14],[61,1,61,14],[62,1,62,8],[62,9,62,11],[62,12,62,14],[63,1,63,8],[194,1,194,2],[201,1,201,2],[199,1,199,2],[198,1,198,2],[197,1,197,2],[196,1,196,2],[195,1,195,2],[196,13,196,14],[194,3,194,12],[194,13,194,14],[200,1,200,2],[200,3,200,12],[200,13,200,14],[201,3,201,12],[199,3,199,12],[198,3,198,12],[197,3,197,12],[196,3,196,12],[195,3,195,12],[201,13,201,14],[199,13,199,14],[198,13,198,14],[197,13,197,14],[195,13,195,14]]}
[]
[null,{"$f":"Utilitaire!E8","v":"Plan d'action 2013-2020 sur les changements climatiques"}]
[null,{"$f":"\"Action \" & Accueil!D58","v":"Action en cours"}]
[null,{"$f":"Accueil!D55","v":"21.1"},{"$f":"Accueil!E55","v":"Réduction des émissions de GES en provenance des systèmes de réfrigération (OPTER) (Écoperformance)"}]
[null,"Ministère porteur :",null,{"$f":"Accueil!$D$65","v":"MERN (SITE)"}]
[null,"Description"]
[]
[]
[]
[]
[]
[]
[]
[]
[null,"Évaluation des effets de la COVID-19 sur la mise en œuvre de l'action"]
[null,"Résultats attendus : "]
[null,"Échéancier : "]
[null,"Sommes engagées \n(projets en cours) :"]
[null,"Autres : "]
[]
[]
[]
[]
[]
[]
[]
[]
[]
[]
[]
[]
[]
[]
[]
[]
[]
[]
[]
[]
[]
[null,"Informations en date du :",null,null,null,"2022-03-31"]
[null,"Informations générales"]
[null,"Description de l'action : ","Le gouvernement poursuit les actions du programme d'optimisation en réfrigération (OPTER), qui ont été intégrées au programme ÉcoPerformance. Ce dernier est un programme d'aide financière pour des projets d'efficacité énergétique et de conversion. Il vise à réduire les émissions de gaz à effet de serre (GES) et la consommation énergétique des entreprises par le financement de projets ou de mesures liés à la consommation et à la production d'énergie, de même qu'à l'amélioration des procédés.\n\nLe Programme comporte également un volet transformation de marché qui inclut de la sensibilisation, de la formation et de l'accompagnement visant plus spécifiquement l'intégration de procédés, le forage de données et la mécanique des fluides numériques."]
[null,"Objectif de l'action :","Le Programme se divise en deux volets, le volet Analyse et le volet Implantation.\n\nLe volet Analyse offre une aide financière pour la réalisation d'études de faisabilité touchant les activités de réfrigération et celles responsables d'autres types émissions fugitives. Les analyses ont pour objectif d'identifier, de quantifier, d'évaluer la réalisation technique et les investissements requis des mesures potentielles de réduction de GES en lien avec les émissions fugitives. Les opportunités d'utiliser la chaleur rejetée par les systèmes, lorsqu'il s'agit de réfrigération, sont également étudiées.\nLe volet Implantation a pour objectif de soutenir financièrement des projets d'installation de système de réfrigération fonctionnant au CO2. Comme pour le volet Analyse, les projets d'implantation visant la réduction des autres types d'émissions fugitives rencontrés notamment dans le secteur industriel sont également acceptés."]
[null,"Bénéficiaires : ","Entreprises (grandes entreprises)",null,"Entreprises (petites ou moyennes entreprises)",null,"Établissements de recherche",null,null,"Municipalités et organismes municipaux",null,null,"Organismes à but non lucratif"]
[null,null,"Autres (précisez) : "]
[null,"Critères d'admissibilité : ","Un projet admissible doit d'abord permettre une réduction quantifiable des émissions de GES et peut contenir plusieurs mesures. \n\nFormulaire de demande signé par le participant, plan de projet et plan de surveillance signés par un ingénieur sont les documents minimaux requis pour présenter une demande.\n\nLes demandes sont analysées, en fonction de leurs dates de dépôt, par un chargé de programme pour ensuite être soumises à l'approbation des autorités de TEQ."]
[null,"Processus de suivi de l'action :","L'action est suivie de manière continuelle. Le budget est suivi hebdomadairement, par l'émission d'un suivi budgétaire hebdomadaire. Ce suivi compare les engagements dans SAGIR, avec les budgets prévus, ainsi que les données fournies par la base de données de suivi du programme ÉcoPerformance.\n\nLe suivi de la mise en œuvre des projets est fait en continu par les chargés de programme. La mise en fonction des projets est le moment à partir duquel les déclarations de réductions des émissions de gaz à effet de serre sont comptabilisées. Les réductions sont comptabilisées pour la période d'engagement des participants, tant que les projets sont maintenus.\n\nUne reddition de comptes est faite au ministère de l'Environnement et de la Lutte contre les changements climatiques (MELCC) sur la base de deux rapports annuels."]
[null,"Résultats et co-bénéfices attendus :","Les résultats directs attendus sont, la réduction des émissions de GES, des investissements importants dans les différents secteurs touchés, la création d'emplois et une amélioration soutenue de la performance énergétique en lien avec les systèmes de réfrigération et la réduction des émissions fugitives. \nAu Québec en 2010, on comptait environ 425 arénas et 75 centres de curling . Parmi ceux-ci, 71 % avaient plus de 30 ans et 62 % utilisaient le réfrigérant R22 de type HCFC (hydrochlorofluorocarbure). Celui-ci est une substance appauvrissant la couche d'ozone.\nLe nombre d'établissements d'alimentation au Québec serait de 2 360 magasins . Les supermarchés de grande superficie, constituent une des clientèles visées par le Programme. Cela représente plus de 850 supermarchés au Québec."]
[null,"Résultats et co-bénéfices obtenus dans la dernière année :"]
[null,"Résultats et co-bénéfices obtenus depuis le lancement de l'action :","En date du 31 mars 2022, 16 analyses et 129 projets d’implantation ont été acceptés par le ministre, pour une réduction annuelle potentielle de 101,9 kt de CO2, nécessitant des investissements de 200,8 M$ grâce à des aides financières de 24,1 M$ pour un coût moyen de l’aide financière de 11,81 $/t sur la durée de vie des équipements (20,05 ans). Ces investissements entraîneraient la création de 2 811 emplois."]
[]
[null,"Classification"]
[null,"Finalité :","Réduction des émissions de gaz à effet de serre",null,null,null,null,"Moyen :",null,"Réalisation (programmes et subventions favorisant l'exécution de solutions établies)"]
[]
[]
[]
[]
[]
[]
[]
[null,"Mise en œuvre "]
[null,"Étapes (depuis le début de l'action)",null,null,null,null,null,null,null,"Échéancier",null,null,"État d'avancement"]
[1,"Élaboration du programme",null,null,null,null,null,null,null,null,null,null,"Complétée"]
[2,"Approbation du Conseil du trésor",null,null,null,null,null,null,null,"2013-10-23",null,null,"Complétée"]
[3,"Lancement du Programme ",null,null,null,null,null,null,null,"2013-10-28",null,null,"Complétée"]
[4,"Sensibilisation sur l'utilisation sécuritaire des réfrigérants naturels",null,null,null,null,null,null,null,"2014-02-01",null,null,"Complétée"]
[5,"Signature de l'entente administrative avec le MDDELCC",null,null,null,null,null,null,null,"2014-03-20",null,null,"Complétée"]
[6,"Mise en suspens du Programme ",null,null,null,null,null,null,null,"2014-09-01",null,null,"Complétée"]
[null,"Le MERN présente ses programmes à la Commission sur la révision permanente des programmes",null,null,null,null,null,null,null,"2014-11-01",null,null,"Complétée"]
[8,"Ouverture du programme à de nouvelles demandes d'aide financière",null,null,null,null,null,null,null,"2015-10-01",null,null,"Complétée"]
[9,"Amendement de Kigali au protocole de Montréal pour l'élimination des hydrofluorocarbures (HFC) ",null,null,null,null,null,null,null,"2016-10-01",null,null,"Complétée"]
[null,"Approbation des cibles des Annexes III par le MDDELCC",null,null,null,null,null,null,null,"2016-12-01",null,null,"Complétée"]
[null,"Sanction du projet de loi no 106, concernant la création de TEQ",null,null,null,null,null,null,null,"2016-12-01",null,null,"Complétée"]
[null,"Le programme est sous la responsabilité de TEQ",null,null,null,null,null,null,null,"2017-04-01",null,null,"Complétée"]
[]
[null,"Le cadre normatif a été modifié et approuvé par le Conseil d'administration de TEQ ",null,null,null,null,null,null,null,"2018-01-31",null,null,"Complétée"]
[null,"Obtention d'un financement additionnel de 27,7 M$ dans le Budget 2019-2020 du Gouvernement du Québec ",null,null,null,null,null,null,null,"2019-03-27",null,null,"Complétée"]
[null,"Le cadre normatif a été modifié et approuvé par le Conseil d'administration de TEQ ",null,null,null,null,null,null,null,"2019-06-01",null,null,"Complétée"]
[null,"Entrée en vigueur de la Loi visant principalement la gouvernance efficace de la lutte contre les changements climatiques et à favoriser l'électrification",null,null,null,null,null,null,null,"2020-11-01",null,null,"Complétée"]
[]
[]
[]
[]
[]
[]
[]
[]
[]
[]
[]
[]
[]
[]
[]
[]
[]
[]
[]
[]
[]
[]
[]
[]
[]
[]
[]
[]
[]
[]
[]
[]
[]
[]
[]
[]
[]
[]
[]
[]
[]
[]
[]
[]
[]
[]
[]
[]
[]
[]
[]
[]
[]
[]
[]
[]
[]
[]
[]
[]
[]
[]
[]
[]
[]
[]
[]
[]
[]
[]
[]
[]
[]
[]
[]
[]
[]
[]
[]
[]
[]
[]
[]
[]
[]
[]
[]
[]
[]
[]
[]
[]
[]
[]
[]
[]
[]
[]
[]
[]
[]
[]
[]
[]
[]
[]
[]
[]
[]
[null,"Ajouter une ligne"]
[]
[]
[]
[null,"Plans, stratégies ou politiques incluant la mise en œuvre de cette action"]
[null,"Abréviation",null,"Nom complet",null,null,null,null,null,null,null,null,null,"Numéro de mesure"]
[null,"FEFEC 2018-2023",null,"Fonds du Leadership pour une économie à faibles émissions en carbone du gouvernement du Canada"]
[null,"PACC 2013-2020",null,"Plan d'action 2013-2020 sur les changements climatiques",null,null,null,null,null,null,null,null,null,"21,1"]
[null,"Plan directeur",null,"Plan directeur en transition, innovation et efficacité énergétiques 2018-2023",null,null,null,null,null,null,null,null,null,"67.2, 141"]

{"sheet":"Détail des projets","index":3,"n_rows":188,"n_cols":28,"rows_kept":188,"cut":false,"hidden":false,"merged":[[14,1,14,4],[21,1,21,6],[22,2,23,2],[22,5,23,5],[185,1,185,4],[22,4,23,4],[22,1,23,1],[22,3,23,3],[184,1,184,9],[22,6,23,6],[22,7,23,7],[22,26,23,26],[18,3,18,5],[18,6,18,8],[22,10,23,10],[187,1,187,4],[186,1,186,4],[21,14,21,25],[22,13,23,13],[22,12,23,12],[1,1,1,6],[1,8,1,10],[1,25,1,27],[2,8,5,27],[1,22,1,24],[3,2,3,6],[2,1,2,2],[5,1,5,6],[4,2,4,6],[22,9,23,9],[22,8,23,8],[22,27,23,27],[22,11,23,11]]}
[]
[null,{"$f":"Utilitaire!E8","v":"Plan d'action 2013-2020 sur les changements climatiques"}]
[null,{"$f":"\"Action \" & Accueil!D58","v":"Action en cours"}]
[null,{"$f":"Accueil!D55","v":"21.1"},{"$f":"Accueil!E55","v":"Réduction des émissions de GES en provenance des systèmes de réfrigération (OPTER) (Écoperformance)"}]
[null,"Ministère porteur :",{"$f":"Accueil!$D$65","v":"MERN (SITE)"}]
[null,"Détails et prévisions des dépenses par projet"]
[]
[]
[]
[]
[]
[]
[]
[]
[]
[]
[]
[]
[null,null,null,"Informations en date du :",null,null,"2022-03-31"]
[]
[]
[null,"DÉTAILS DES PROJETS AUTORISÉS",null,null,null,null,null,null,null,null,null,null,null,null,"MONTANTS PROVENANT DU FECC ($)",null,null,null,null,null,null,null,null,null,null,null,{"$f":"MONTH(#REF!)","v":{"$error":"#REF!"}}]
["No","Nom du projet","Nom du requérant ou du bénéficiaire","Volet ou thématique","Catégorie","Nombre de projets","Région administrative","Municipalité","Statut","Classification du projet","Montant engagé ($)","Date de l'engagement","Date du dernier versement","Budget total du projet ($)","2013-2014","2014-2015","2015-2016","2016-2017","2017-2018","2018-2019","2019-2020","2020-2021","2021-2022","2022-2023","2023-2024","2024-2025","MONTANT DES DÉPENSES RÉELLES ($)","TOTAL DES DÉPENSES RÉELLES ET PRÉVUES ($)"]
[null,null,null,null,null,null,null,null,null,null,"(convention signée, contrat, lettre de confirmation du ministre ou de son représentant ou lettre d'octroi)",null,null,null,"Réel","Réel","Réel","Réel","Réel","Réel","Réel","Réel","Réel","Prévu","Prévu","Prévu"]
[1,"Étude de faisabilité afin de modifier le système de réfrigération de la glace","Municipalité de Sainte-Claire","Analyse","Industriel, commercial et institutionnel",1,"12-Chaudière-Appalaches","Sainte-Claire","TE","SU",5990,"2014-02-18","2014-06-16",11980,null,5990,null,null,null,null,null,null,null,null,null,null,{"$f":"SUM(O25:U25)","v":5990},{"$f":"SUM(O25:Z25)","v":5990}]
[2,"Rénovation incluant des mesures d'économies d'énergie pour le Centre sportif Sainte-Anne-des-Plaines","Centre Sportif Sainte-Anne-des-Plaines","Analyse","Industriel, commercial et institutionnel",1,"15-Laurentides","Sainte-Anne-des-Plaines","TE","SU",6712.35,"2014-02-18","2014-11-05",10980,null,5490,null,null,null,null,null,null,null,null,null,null,{"$f":"SUM(O26:U26)","v":5490},{"$f":"SUM(O26:Z26)","v":5490}]
[3,"Étude Aréna de Grande-Rivière","Ville de Grande-Rivière","Analyse","Industriel, commercial et institutionnel",1,"11-Gaspésie--Îles-de-la-Madeleine","Grande-Rivière","TE","SU",11750,"2014-03-05","2014-09-18",23500,null,11750,null,null,null,null,null,null,null,null,null,null,{"$f":"SUM(O27:U27)","v":11750},{"$f":"SUM(O27:Z27)","v":11750}]
[4,"Étude de faisabilité - Programme ÉcoPerformance","Club de curling Bel-Aire","Analyse","Industriel, commercial et institutionnel",1,"16-Montérégie","Mont-Saint-Hilaire","TE","SU",4075,"2014-03-05","2014-08-19",130843,null,4075,null,null,null,null,null,null,null,null,null,null,{"$f":"SUM(O28:U28)","v":4075},{"$f":"SUM(O28:Z28)","v":4075}]
[5,"Modernisation du système mécanique de l'aréna Julien Beauregard","La Ville de Marieville","Implantation","Industriel, commercial et institutionnel",1,"16-Montérégie","Marieville","TE","SU",52670.41,"2014-03-05","2014-04-01",949740,null,52670.41,null,null,null,null,null,null,null,null,null,null,52670.41,52670.41]
[6,"Système de Réfrigération au CO2 avec récupération de chaleur pour 3 patinoires","Syscomax inc.","Implantation","Industriel, commercial et institutionnel",1,"16-Montérégie","Saint-Hyacinthe","TE","SU",122792.88,"2014-06-12","2014-04-01",1788760,null,122792.88,null,null,null,null,null,null,null,null,null,null,122792.88,122792.88]
[7,"Remplacement du système de réfrigération et récupération de chaleur","Ville de Sherbrooke","Implantation","Industriel, commercial et institutionnel",1,"05-Estrie","Sherbrooke","TE","SU",47461.63,"2019-07-24T16:05:14","2019-04-01",593770,null,null,null,null,null,null,47461.63,null,null,null,null,null,47461.63,47461.63]
[8,"Étude de faisabilité pour l'Aréna de Magog","Ville de Magog","Analyse","Industriel, commercial et institutionnel",1,"05-Estrie","Magog","TE","SU",12850,"2014-07-09","2014-12-18",26500,null,12850,null,null,null,null,null,null,null,null,null,null,12850,12850]
[9,"Installation d'une scie pour rainurer les anodes","Compagnie de Gestion Alcoa-Lauralco","Implantation","Industriel, commercial et institutionnel",1,"03-Capitale-Nationale","Deschambault-Grondines","TE","SU",1892870.4,"2015-03-11","2016-12-12",4181545,null,473217.6,473217.6,946435.2,null,null,null,null,null,null,null,null,1892870.4,1892870.4]
[10,"Production de grosses anodes pour la série","Compagnie de Gestion Alcoa-Lauralco","Implantation","Industriel, commercial et institutionnel",1,"03-Capitale-Nationale","Deschambault-Grondines","TE","SU",909000,"2017-07-19T13:40:14","2018-04-01",10429074,null,null,null,null,227250,681750,null,null,null,null,null,null,909000,909000]
[11,"Réfrigération CO2 avec récupération de chaleur - No 88076 - IGA Saint-Antoine","Sobeys Capital Incorporée","Implantation","Industriel, commercial et institutionnel",1,"15-Laurentides","Saint-Jérôme","TE","SU",173378.25,"2014-12-03","2014-04-01",1762340,null,160637.18,null,null,null,null,null,null,null,null,null,null,160637.18,160637.18]
[12,"Supermarché Marquis l'Assomption - Réfrigération CO2 et récupération de chaleur","Supermarché Marquis l'Assomption inc.","Implantation","Industriel, commercial et institutionnel",1,"14-Lanaudière","L'Assomption","TE","SU",175999.45368000001,"2014-12-10","2015-04-01",896546,null,87999.732080000002,23060.904640000001,null,null,null,null,null,null,null,null,null,111060.63672000001,111060.63672000001]
[13,"Système de réfrigération au CO2 - Curling de Port-Alfred","Ville de Saguenay","Implantation","Industriel, commercial et institutionnel",1,"02-Saguenay--Lac-Saint-Jean","Saguenay","TE","SU",17552.38,"2014-11-28","2014-04-01",679276,null,17552.38,null,null,null,null,null,null,null,null,null,null,17552.38,17552.38]
[14,"No 360 - IGA Longueuil - Réfrigération CO2 avec récupération de chaleur","Sobeys Capital Incorporée","Implantation","Industriel, commercial et institutionnel",1,"16-Montérégie","Longueuil","TE","SU",152823,"2014-12-10","2014-04-01",1789820,null,152823,null,null,null,null,null,null,null,null,null,null,152823,152823]
[15,"Réfrigération au CO2 avec récupération de chaleur- No 08033 IGA Sainte-Thérèse (Daigle)","Sobeys Capital Incorporée","Implantation","Industriel, commercial et institutionnel",1,"15-Laurentides","Sainte-Thérèse","TE","SU",187006.5,"2014-12-10","2016-03-29",2370417,null,140254.85999999999,46751.64,null,null,null,null,null,null,null,null,null,187006.5,187006.5]
[16,"Réfrigération au CO2 avec récupération de chaleur - No 8724 - IGA  Ayer's Cliff","Sobeys Capital Incorporée","Implantation","Industriel, commercial et institutionnel",1,"05-Estrie","Stanstead-Est","TE","SU",55315.39,"2014-12-09","2015-04-01",451382,null,41593.58,10928.25,null,null,null,null,null,null,null,null,null,52521.83,52521.83]
[17,"Réfrigération CO2 avec récupération de chaleur - No 0444  IGA Saint-Romuald","Sobeys Capital Incorporée","Implantation","Industriel, commercial et institutionnel",1,"12-Chaudière-Appalaches","Lévis","TE","SU",187006.5,"2014-12-10","2016-03-29",1921010,null,93503.24,93503.26,null,null,null,null,null,null,null,null,null,187006.5,187006.5]
[18,"Réfrigération au CO2 avec récupération de chaleur","Sobeys Capital Incorporée","Implantation","Industriel, commercial et institutionnel",1,"06-Montréal","Montréal","TE","SU",48057.946360700007,"2015-02-05","2016-03-24",275877,null,36043.458022600003,12014.4883381,null,null,null,null,null,null,null,null,null,48057.946360700007,48057.946360700007]
[19,"Réfrigération CO2 avec récupération de chaleur - No 8187 -  IGA Sainte-Julie","Sobeys Capital Incorporée","Implantation","Industriel, commercial et institutionnel",1,"16-Montérégie","Sainte-Julie","TE","SU",36188.14,"2014-12-01","2014-04-01",473877,null,36188.14,null,null,null,null,null,null,null,null,null,null,36188.14,36188.14]
[20,"Réfrigération CO2 avec récupération de chaleur (89035)","Sobeys Capital Incorporée","Implantation","Industriel, commercial et institutionnel",1,"08-Abitibi-Témiscamingue","Témiscaming","TE","SU",74153.14,"2014-12-10","2014-04-01",661090,null,69504.820000000007,null,null,null,null,null,null,null,null,null,null,69504.820000000007,69504.820000000007]
[21,"Complexe intégré de gestion optimale des appareils froids et des frigorigènes","Groupe PureSphera inc.","Implantation","Industriel, commercial et institutionnel",1,"17-Centre-du-Québec","Bécancour","TE","SU",2938500,"2014-11-27","2018-04-01",3918000,null,null,1250000,null,953875,734625,null,null,null,null,null,null,2938500,2938500]
[22,"Approvisionnement pour système de réduction des émissions de GES SEG","Groupe PureSphera inc.","Analyse","Industriel, commercial et institutionnel",1,"17-Centre-du-Québec","Bécancour","TE","SU",32146,"2017-11-06T14:33:28","2019-02-05",33640.78,null,null,null,null,16073,747.39,null,null,null,null,null,null,16820.39,16820.39]
[23,"Refroidissement rapide avec système de réfrigération au CO2.","Plaisirs gastronomiques inc.","Implantation","Industriel, commercial et institutionnel",1,"15-Laurentides","Boisbriand","TE","SU",155712.07,"2019-08-29T09:37:26","2019-10-18",1571579,null,null,null,null,null,null,155712.07,null,null,null,null,null,155712.07,155712.07]
[24,"Système CO2 pour le département de charcuteries","Plaisirs gastronomiques inc.","Implantation","Industriel, commercial et institutionnel",1,"15-Laurentides","Boisbriand","TE","SU",90628.78,"2020-09-21T11:47:17","2021-04-16",570240,null,null,null,null,null,null,null,80584,4531.4399999999996,null,null,null,0,85115.44]
[25,"Interpac - Étude pour l'installation d'un épurateur à composés organiques volatils (COV)","Corporation Interpac inc.","Analyse","Industriel, commercial et institutionnel",1,"06-Montréal","Montréal","TE","SU",13025,"2014-12-24","2015-09-11",29943.03,null,6512.5,6512.5,null,null,null,null,null,null,null,null,null,13025,13025]
[26,"Réfrigération CO2 avec récupération de chaleur - Phase 1","SportPlex de l'Énergie inc.","Implantation","Industriel, commercial et institutionnel",1,"16-Montérégie","Varennes","TE","SU",81981.966680800004,"2016-04-28","2016-04-01",1617840,null,null,null,81981.966680800004,null,null,null,null,null,null,null,null,81981.966680800004,81981.966680800004]
[27,"Réfrigération CO2 avec récupération de chaleur - #8240 - IGA Marché St-Canut","Marché St-Canut inc.","Implantation","Industriel, commercial et institutionnel",1,"15-Laurentides","Mirabel","TE","SU",187006.5,"2015-06-09","2016-03-24",1886342,null,null,187006.5,null,null,null,null,null,null,null,null,null,187006.5,187006.5]
[28,"Réfrigération au CO2 avec récupération de chaleur","Métro Richelieu inc.","Implantation","Industriel, commercial et institutionnel",1,"16-Montérégie","La Prairie","TE","SU",70936.551543599999,"2015-03-18","2016-04-01",1096778,null,17734.141673999999,17734.141673999999,35468.268195600001,null,null,null,null,null,null,null,null,70936.551543599999,70936.551543599999]
[29,"Étude en optimisation de la réfrigération","Municipalité Saint-Joseph-de-Coleraine","Analyse","Industriel, commercial et institutionnel",1,"12-Chaudière-Appalaches","Saint-Julien","TE","SU",7000,"2016-10-28","2017-07-04",14000,null,null,null,3500,3500,null,null,null,null,null,null,null,7000,7000]
[30,"Optimisation du système de réfrigération de l'aréna","Ville de Chambly","Implantation","Industriel, commercial et institutionnel",1,"16-Montérégie","Chambly","TE","SU",58585.645399499997,"2016-09-01","2019-04-01",879100,null,null,null,14646.412550999999,null,null,39602.604667500003,null,null,null,null,null,54249.017218500005,54249.017218500005]
[31,"Réfrigération CO2 avec récupération de chaleur (08547)","Sobeys Capital Incorporée","Implantation","Industriel, commercial et institutionnel",1,"06-Montréal","Montréal","TE","SU",192782.48,"2016-07-29","2016-04-01",2005561,null,null,null,192782.48,null,null,null,null,null,null,null,null,192782.48,192782.48]
[32,"Réfrigération CO2 avec récupération de chaleur (88086)","Sobeys Capital Incorporée","Implantation","Industriel, commercial et institutionnel",1,"07-Outaouais","Cantley","TE","SU",129279,"2016-10-18","2018-08-22",1288560,null,null,null,64639.5,null,61987.73,null,null,null,null,null,null,126627.23000000001,126627.23000000001]
[33,"Réfrigération CO2 avec récupération de chaleur (000259)","Sobeys Capital Incorporée","Implantation","Industriel, commercial et institutionnel",1,"06-Montréal","Montréal","TE","SU",189693.02,"2016-12-13","2018-04-12",2140879,null,null,null,142269.78,null,10409.18,null,null,null,null,null,null,152678.96,152678.96]
[34,"Réfrigération CO2 avec récupération de chaleur (88734)","Sobeys Capital Incorporée","Implantation","Industriel, commercial et institutionnel",1,"03-Capitale-Nationale","Québec","TE","SU",159937.5,"2016-10-18","2016-04-01",1768489,null,null,null,159937.5,null,null,null,null,null,null,null,null,159937.5,159937.5]
[35,"Étude de faisabilité - Climatisation et efficacité énergétique dans un édifice multilogement","Syndicat des copropriétaires de Manoir Un","Analyse","Industriel, commercial et institutionnel",1,"06-Montréal","Montréal","TE","SU",9000,"2016-02-25","2016-04-11",18000,null,null,null,9000,null,null,null,null,null,null,null,null,9000,9000]
[36,"Réfrigération CO2 avec récupération de chaleur (8182)","Sobeys Capital Incorporée","Implantation","Industriel, commercial et institutionnel",1,"02-Saguenay--Lac-Saint-Jean","Normandin","TE","SU",114265.17,"2016-10-18","2016-04-01",1158898,null,null,null,99526.49,null,null,null,null,null,null,null,null,99526.49,99526.49]
[37,"Récupération de chaleur et réfrigération au CO2","Maître Saladier inc.","Implantation","Industriel, commercial et institutionnel",1,"15-Laurentides","Boisbriand","TE","SU",168352.523472,"2016-09-14","2016-04-01",950722,null,null,null,165769.45899839999,null,null,null,null,null,null,null,null,165769.45899839999,165769.45899839999]
[38,"Réfrigération CO2 avec récupération de chaleur","Sobeys Capital Incorporée","Implantation","Industriel, commercial et institutionnel",1,"08-Abitibi-Témiscamingue","Rouyn-Noranda","TE","SU",192782.48,"2016-10-18","2016-04-01",1816705,null,null,null,167572.91,null,null,null,null,null,null,null,null,167572.91,167572.91]
[39,"Réfrigération CO2 avec récupération de chaleur (89056)","Sobeys Capital Incorporée","Implantation","Industriel, commercial et institutionnel",1,"04-Mauricie","Trois-Rivières","TE","SU",154506.69,"2016-10-18","2018-12-20",1668103,null,null,null,null,115880.01,31142.07,null,null,null,null,null,null,147022.07999999999,147022.07999999999]
[40,"Réfrigération CO2 avec récupération de chaleur (8341)","Sobeys Capital Incorporée","Implantation","Industriel, commercial et institutionnel",1,"16-Montérégie","Saint-Bruno-de-Montarville","TE","SU",176015.83000000002,"2016-10-18","2018-12-21",1991556,null,null,null,null,132011.88,44003.95,null,null,null,null,null,null,176015.83000000002,176015.83000000002]
[41,"Réfrigération CO2 avec récupération de chaleur (8085)","Sobeys Capital Incorporée","Implantation","Industriel, commercial et institutionnel",1,"07-Outaouais","Chelsea","TE","SU",150319.47,"2016-10-18","2019-04-01",1325330,null,null,null,null,null,null,114324.39,null,null,null,null,null,114324.39,114324.39]
[42,"Réfrigération CO2 avec récupération de chaleur (8296)","Sobeys Capital Incorporée","Implantation","Industriel, commercial et institutionnel",1,"14-Lanaudière","Saint-Lin--Laurentides","TE","SU",159937.5,"2016-11-15","2018-04-01",1741365,null,null,null,null,79968.759999999995,60610,null,null,null,null,null,null,140578.76,140578.76]
[43,"Réfrigération CO2 avec récupération de chaleur (8046)","Sobeys Capital Incorporée","Implantation","Industriel, commercial et institutionnel",1,"05-Estrie","Coaticook","TE","SU",158550.17000000001,"2016-11-15","2018-04-01",1547299,null,null,null,null,118912.62,24288.14,null,null,null,null,null,null,143200.76,143200.76]
[44,"Réfrigération au CO2","Emblème Canneberge inc.","Implantation","Industriel, commercial et institutionnel",1,"17-Centre-du-Québec","Sainte-Eulalie","TE","SU",225017.26,"2016-09-21","2017-03-02",1447217,null,null,null,225017.26,null,null,null,null,null,null,null,null,225017.26,225017.26]
[45,"Système de réfrigération au CO2 - Phase 2","Emblème Canneberge inc.","Implantation","Industriel, commercial et institutionnel",1,"17-Centre-du-Québec","Sainte-Eulalie","TE","SU",160627.49,"2018-03-05T13:39:39","2018-05-25",1529300,null,null,null,null,120470.61,40156.879999999997,null,null,null,null,null,null,160627.49,160627.49]
[46,"Efficacité énergétique impliquant un système CO2 - Édifice multilogement","Syndicat des copropriétaires du Manoir II","Analyse","Industriel, commercial et institutionnel",1,"06-Montréal","Montréal","TE","SU",9000,"2016-06-20","2016-10-11",18000,null,null,null,9000,null,null,null,null,null,null,null,null,9000,9000]
[47,"Congélateur-Agrandissement","Les Atocas de l'érable inc.","Implantation","Industriel, commercial et institutionnel",1,"17-Centre-du-Québec","Plessisville","TE","SU",201226.42,"2016-09-29","2017-03-02",1416650,null,null,null,201226.42,null,null,null,null,null,null,null,null,201226.42,201226.42]
[48,"Réfrigération CO2 avec récupération de chaleur - Super C - Baie St-Paul","Métro Richelieu inc.","Implantation","Industriel, commercial et institutionnel",1,"03-Capitale-Nationale","Baie-Saint-Paul","TE","SU",56002.96,"2018-02-02T13:32:03","2018-04-01",1074728,null,null,null,null,42002.22,14000.74,null,null,null,null,null,null,56002.96,56002.96]
[49,"Réfrigération CO2 avec récupération de chaleur - Metro Drummondville","Métro Richelieu inc.","Implantation","Industriel, commercial et institutionnel",1,"17-Centre-du-Québec","Drummondville","TE","SU",77482.67,"2019-02-11T13:30:10","2019-08-22",1436937,null,null,null,null,null,null,77482.67,null,null,null,null,null,77482.67,77482.67]
[50,"Remplacement du système de réfrigération et amélioration de l’efficacité énergétique du complexe","Complexe sportif Kirkland","Implantation","Industriel, commercial et institutionnel",1,"06-Montréal","Kirkland","TE","SU",41212.444082499998,"2017-05-29","2018-10-25",1174000,null,null,null,null,30422.411816399999,10790.032266099999,null,null,null,null,null,null,41212.444082499998,41212.444082499998]
[51,"Réfrigération CO2 avec récupération de chaleur (8188)","Sobeys Capital Incorporée","Implantation","Industriel, commercial et institutionnel",1,"03-Capitale-Nationale","Québec","TE","SU",106813.37,"2017-06-14","2019-02-08",1575003,null,null,null,null,null,106813.37,null,null,null,null,null,null,106813.37,106813.37]
[52,"Réfrigération CO2 avec récupération de chaleur (08092)","Sobeys Capital Incorporée","Implantation","Industriel, commercial et institutionnel",1,"05-Estrie","Cowansville","TE","SU",159937.5,"2017-06-16T15:39:32","2019-05-24",1875896,null,null,null,null,79968.759999999995,79743.38,200,null,null,null,null,null,159912.14000000001,159912.14000000001]
[53,"Réfrigération CO2 avec récupération de chaleur (134)","Sobeys Capital Incorporée","Implantation","Industriel, commercial et institutionnel",1,"03-Capitale-Nationale","Baie-Saint-Paul","TE","SU",141557.51999999999,"2017-07-03T11:31:28","2018-11-07",1660548,null,null,null,null,106168.14,35389.379999999997,null,null,null,null,null,null,141557.51999999999,141557.51999999999]
[54,"Système de réfrigération CO2 avec récupération de chaleur - Super C Saint-Hyacinthe","Métro Richelieu inc.","Implantation","Industriel, commercial et institutionnel",1,"16-Montérégie","Saint-Hyacinthe","TE","SU",75313.399999999994,"2019-01-08T10:21:31","2018-04-01",1195933,null,null,null,null,null,75313.399999999994,null,null,null,null,null,null,75313.399999999994,75313.399999999994]
[55,"Réfrigération CO2 avec récupération de chaleur (88029)","Sobeys Capital Incorporée","Implantation","Industriel, commercial et institutionnel",1,"16-Montérégie","Carignan","TE","SU",171672,"2017-06-14T11:57:12","2018-12-21",1966440,null,null,null,null,128754,28806.25,null,null,null,null,null,null,157560.25,157560.25]
[56,"Réfrigération CO2 avec récupération de chaleur (8340)","Sobeys Capital Incorporée","Implantation","Industriel, commercial et institutionnel",1,"04-Mauricie","Shawinigan","TE","SU",127767.62,"2017-06-14","2019-02-08",1240471,null,null,null,null,95825.7,24189.73,null,null,null,null,null,null,120015.43,120015.43]
[57,"Aréna Michael-Bilodeau : Réfrigération au CO2","Ville de Saint-Bruno-de-Montarville","Implantation","Industriel, commercial et institutionnel",1,"16-Montérégie","Saint-Bruno-de-Montarville","TE","SU",61566.62,"2017-06-08","2018-04-01",1491827,null,null,null,null,null,61566.62,null,null,null,null,null,null,61566.62,61566.62]
[58,"Étude de faisabilité en efficacité énergétique - CSRJQ","Centre sportif régional les Jardins du Québec inc.","Analyse","Industriel, commercial et institutionnel",1,"16-Montérégie","Saint-Constant","TE","SU",7750,"2017-02-28","2017-04-26",15500,null,null,null,3875,3875,null,null,null,null,null,null,null,7750,7750]
[59,"Agrandissement Centre de distribution et entrepôt réfrigéré de Michal","Michal inc.","Implantation","Industriel, commercial et institutionnel",1,"06-Montréal","Montréal","TE","SU",159240,"2017-09-13T09:35:05","2018-04-25",1321685,null,null,null,null,119430,39810,null,null,null,null,null,null,159240,159240]
[60,"Réfrigération CO2 avec récupération de chaleur","Les Viandes Concord","Implantation","Industriel, commercial et institutionnel",1,"15-Laurentides","Saint-Eustache","TE","SU",316347.55443850002,"2017-08-30T08:57:29","2019-02-27",1411000,null,null,null,null,158173.77494979999,158173.77948870001,null,null,null,null,null,null,316347.55443849997,316347.55443849997]
[61,"Réfrigération CO2 avec récupération de chaleur (88093)","Sobeys Capital Incorporée","Implantation","Industriel, commercial et institutionnel",1,"06-Montréal","Montréal","TE","SU",171672,"2017-12-05T14:53:50","2019-04-01",1803733,null,null,null,null,null,85836,78127.41,null,null,null,null,null,163963.41,163963.41]
[62,"Système de réfrigération au CO2 avec récupération de chaleur","Distribution Alimentaire Aubut inc.","Implantation","Industriel, commercial et institutionnel",1,"13-Laval","Laval","TE","SU",143297.1,"2017-11-22T15:54:52","2018-05-25",905559,null,null,null,null,107472.84,35824.26,null,null,null,null,null,null,143297.1,143297.1]
[63,"Implantation d'un système de réfrigération au CO2","Frigora Solutions d'Entreposage inc.","Implantation","Industriel, commercial et institutionnel",1,"16-Montérégie","Longueuil","TE","SU",222116.85,"2018-02-06T10:59:30","2018-10-11",1353149,null,null,null,null,111058.42,111058.43,null,null,null,null,null,null,222116.84999999998,222116.84999999998]
[64,"Implantation d'une système de réfrigération au CO2","Complexe Sportif Saint-Raphaël","Implantation","Industriel, commercial et institutionnel",1,"06-Montréal","Montréal","TE","SU",52710.62,"2017-12-21T14:06:04","2018-04-06",1129450,null,null,null,null,null,52710.62,null,null,null,null,null,null,52710.62,52710.62]
[65,"Réfrigération CO2 avec récupération de chaleur (075016)","Sobeys Capital Incorporée","Implantation","Industriel, commercial et institutionnel",1,"06-Montréal","Montréal","TE","SU",143894.01,"2018-02-02T13:57:04","2021-09-02",1712412,null,null,null,null,null,null,null,74707.89,69186.12,null,null,null,0,143894.01]
[66,"Système de réfrigération au CO2 avec récupération de chaleur","Métro Richelieu inc.","Implantation","Industriel, commercial et institutionnel",1,"07-Outaouais","Gatineau","TE","SU",78223.58,"2019-04-17T09:19:53","2019-09-19",1347313,null,null,null,null,null,null,78223.58,null,null,null,null,null,78223.58,78223.58]
[67,"Agrandissement du site","Frigo Chambly","Implantation","Industriel, commercial et institutionnel",1,"16-Montérégie","Chambly","TE","SU",146250,"2018-10-04T14:38:37","2018-04-01",808420,null,null,null,null,null,146250,null,null,null,null,null,null,146250,146250]
[68,"Entrepôt frigorifique pour aliments congelés","Frigo Chambly","Implantation","Industriel, commercial et institutionnel",1,"16-Montérégie","Chambly","TE","SU",126978.12,"2020-01-09T09:32:42","2020-04-30",1217043,null,null,null,null,null,null,null,126978.12,null,null,null,null,{"$f":"SUM(O92:U92)","v":0},{"$f":"SUM(O92:Z92)","v":126978.12}]
[69,"Réfrigération CO2 avec récupération de chaleur","Métro Richelieu inc.","Implantation","Industriel, commercial et institutionnel",1,"07-Outaouais","Gatineau","TE","SU",75072.55,"2019-06-03T09:37:46","2019-08-14",1444159,null,null,null,null,null,null,75072.55,null,null,null,null,null,75072.55,75072.55]
[70,"Réfrigération au CO2 - Verger Hamel 2017","Verger Hamel S.E.N.C.","Implantation","Industriel, commercial et institutionnel",1,"16-Montérégie","Saint-Paul-d'Abbotsford","TE","SU",33339.19,"2018-11-06T15:06:21","2018-04-01",360000,null,null,null,null,null,33339.19,null,null,null,null,null,null,33339.19,33339.19]
[71,"Étude de faisabilité en efficacité énergétique","Ville de Saint-Jérôme","Analyse","Industriel, commercial et institutionnel",1,"15-Laurentides","Saint-Jérôme","TE","SU",8635.02,"2017-11-20T14:26:45","2018-03-01",17794.849999999999,null,null,null,null,8635.02,null,null,null,null,null,null,null,8635.02,8635.02]
[72,"Étude de faisabilité en efficacité énergétique","La Corporation de développement culturel et sportif de Rosemère inc.","Analyse","Industriel, commercial et institutionnel",1,"15-Laurentides","Rosemère","TE","SU",8000,"2017-10-03T14:51:13","2017-10-04",16000,null,null,null,null,8000,null,null,null,null,null,null,null,8000,8000]
[73,"Étude d'efficacité énergétique","Ville de Saint-Pamphile","Analyse","Industriel, commercial et institutionnel",1,"12-Chaudière-Appalaches","Saint-Pamphile","TE","SU",8750,"2017-10-04T14:17:13","2017-10-06",17503,null,null,null,null,8750,null,null,null,null,null,null,null,8750,8750]
[74,"Agrandissement Phase II - Réfrigération au CO2 avec récupération de chaleur","Première société de placement Manuvie","Implantation","Industriel, commercial et institutionnel",1,"17-Centre-du-Québec","Plessisville","TE","SU",214112.518235,"2019-04-02T15:33:19","2019-09-09",2152680,null,null,null,null,null,null,214112.518235,null,null,null,null,null,214112.518235,214112.518235]
[75,"Système de refrigération au CO2","La Fernandière inc.","Implantation","Industriel, commercial et institutionnel",1,"04-Mauricie","Trois-Rivières","TE","SU",304233.5,"2018-11-06T15:52:45","2019-01-08",1519509,null,null,null,null,null,304233.5,null,null,null,null,null,null,304233.5,304233.5]
[76,"Système de réfrigération au CO2","Olymel S.E.C.","Implantation","Industriel, commercial et institutionnel",1,"16-Montérégie","Saint-Jean-sur-Richelieu","TE","SU",154631.35999999999,"2019-11-12T11:14:26","2020-01-07",1083918,null,null,null,null,null,null,154631.35999999999,null,null,null,null,null,154631.35999999999,154631.35999999999]
[77,"Système de réfrigération au CO2.","BLB Congélation inc.","Implantation","Industriel, commercial et institutionnel",1,"17-Centre-du-Québec","Plessisville","TE","SU",260083.98,"2018-05-31T09:57:59","2018-07-20",3053647,null,null,null,null,null,260083.98,null,null,null,null,null,null,260083.98,260083.98]
[78,"Implantation d'un système de réfrigération au CO2","Bell Canada","Implantation","Industriel, commercial et institutionnel",1,"16-Montérégie","Saint-Jean-sur-Richelieu","TE","SU",7164.6,"2019-05-16T16:00:55","2020-01-13",159035,null,null,null,null,null,null,7164.6,null,null,null,null,null,7164.6,7164.6]
[79,"Installation d'un système de refroidissement au CO2 (D00197 Bell 6250, Côte-des-Neiges)","Bell Canada","Implantation","Industriel, commercial et institutionnel",1,"06-Montréal","Montréal","TE","SU",16731.36,"2019-02-08T14:20:24","2020-01-09",331941,null,null,null,null,null,null,16731.36,null,null,null,null,null,16731.36,16731.36]
[80,"Système de refrigération au CO2","9257-3195 Québec inc.","Implantation","Industriel, commercial et institutionnel",1,"16-Montérégie","Saint-Patrice-de-Sherrington","TE","SU",183680.93,"2018-03-16T08:55:10","2018-04-01",997133,null,null,null,null,null,183680.93,null,null,null,null,null,null,183680.93,183680.93]
[81,"Installation d'un système de réfrigération au CO2 au Avril Supermarché Santé","Avril Supermarché Santé","Implantation","Industriel, commercial et institutionnel",1,"13-Laval","Laval","TE","SU",76889.88,"2019-02-11T13:55:15","2019-03-05",1765811,null,null,null,null,null,76889.88,null,null,null,null,null,null,76889.88,76889.88]
[82,"Réfrigération CO2 avec récupération de chaleur (089130)","Sobeys Capital Incorporée","Implantation","Industriel, commercial et institutionnel",1,"06-Montréal","Montréal","TE","SU",138661.74,"2019-03-20T16:02:27","2022-03-04",1636868,null,null,null,null,null,null,null,null,130567.4,null,null,null,0,130567.4]
[83,"Réfrigération CO2 avec récupération de chaleur (088077)","Sobeys Capital Incorporée","Implantation","Industriel, commercial et institutionnel",1,"06-Montréal","Montréal","TE","SU",151698.57,"2019-02-20T13:32:23","2021-09-03",2086520,null,null,null,null,null,null,75849.279999999999,null,73071.64,null,null,null,75849.279999999999,148920.91999999998]
[84,"Réfrigération au CO2 avec récupération de chaleur (08123)","Sobeys Capital Incorporée","Implantation","Industriel, commercial et institutionnel",1,"14-Lanaudière","Mascouche","TE","SU",171672.49,"2019-05-14T14:29:06","2020-04-01",2079179,null,null,null,null,null,null,85836.24,82009.14,null,null,null,null,85836.24,167845.38]
[85,"Climatisation CO2 au 4450, rue Dudemaine - Bell Canada (1033-001)","Bell Canada","Implantation","Industriel, commercial et institutionnel",1,"06-Montréal","Montréal","TE","SU",7362.4949999999999,"2019-11-15T11:20:16","2019-04-01",159370,null,null,null,null,null,null,7011.9,350.59500000000003,null,null,null,null,7011.9,7362.4949999999999]
[86,"Réfrigération CO2 avec récupération de chaleur (000110)","Sobeys Capital Incorporée","Implantation","Industriel, commercial et institutionnel",1,"16-Montérégie","Saint-Jean-sur-Richelieu","TE","SU",131897.03,"2019-03-20T16:21:00","2020-04-01",1394509,null,null,null,null,null,null,98922.78,28320.32,null,null,null,null,98922.78,127243.1]
[87,"Réfrigération au CO2 pour une nouvelle ligne de tortillas.","Boulangeries Weston Québec Limitée","Implantation","Industriel, commercial et institutionnel",1,"16-Montérégie","Longueuil","TE","SU",182492.25,"2019-06-27T09:21:04","2019-07-23",663681,null,null,null,null,null,null,182492.25,null,null,null,null,null,182492.25,182492.25]
[88,"Phase 2 : Agrandissement / Congélateur","Boulangeries Weston Québec Limitée","Implantation","Industriel, commercial et institutionnel",1,"16-Montérégie","Longueuil","TE","SU",137420.03,"2019-08-29T09:27:58","2019-10-02",762065,null,null,null,null,null,null,137420.03,null,null,null,null,null,137420.03,137420.03]
[89,"Système de réfrigération au CO2 avec récupération de chaleur","Avril Supermarché Santé","Implantation","Industriel, commercial et institutionnel",1,"05-Estrie","Granby","TE","SU",152231.89257239999,"2019-10-29T14:20:25","2019-11-12",1221800,null,null,null,null,null,null,152231.89257239999,null,null,null,null,null,152231.89257239999,152231.89257239999]
[90,"Réfrigération au CO2 avec récupération de chaleur","Fleury Michon Amérique inc.","Implantation","Industriel, commercial et institutionnel",1,"16-Montérégie","Rigaud","TE","SU",514500.28183420002,"2020-09-15T11:44:46","2020-10-20",2574571,null,null,null,null,null,null,null,514500.28183420002,null,null,null,null,0,514500.28183420002]
[91,"Système de réfrigération au CO2","Aliments Expresco inc.","Implantation","Industriel, commercial et institutionnel",1,"06-Montréal","Montréal","TE","SU",195000,"2020-01-09T10:17:05","2020-02-06",1342070,null,null,null,null,null,null,195000,null,null,null,null,null,195000,195000]
[92,"Agrandissement de l'entrepôt réfrigéré - Réfrigération au CO2","Artic Blast Mtl inc.","Implantation","Industriel, commercial et institutionnel",1,"14-Lanaudière","Terrebonne","TE","SU",80170.649999999994,"2019-07-24T15:54:35","2019-09-11",607230,null,null,null,null,null,null,80170.649999999994,null,null,null,null,null,80170.649999999994,80170.649999999994]
[93,"Agrandissement de l'entrepôt réfrigéré d'Artic Blast - Phase II","Artic Blast Mtl inc.","Implantation","Industriel, commercial et institutionnel",1,"14-Lanaudière","Terrebonne","TE","SU",47427.953999999998,"2020-02-20T15:28:31","2021-03-03",705000,null,null,null,null,null,null,null,47427.953999999998,null,null,null,null,0,47427.953999999998]
[94,"Réfrigération CO2 avec récupération de chaleur","Métro Richelieu inc.","Implantation","Industriel, commercial et institutionnel",1,"06-Montréal","Montréal","TE","SU",36941.384228000003,"2020-01-13T16:01:50","2020-02-10",969595,null,null,null,null,null,null,36941.384228000003,null,null,null,null,null,36941.384228000003,36941.384228000003]
[95,"Réfrigération CO2 avec récupération de chaleur (089125)","Sobeys Capital Incorporée","Implantation","Industriel, commercial et institutionnel",1,"06-Montréal","Montréal","TE","SU",113659.35,"2019-08-19T13:56:42","2021-11-03",1757013,null,null,null,null,null,null,54123.5,5412.35,54123.5,null,null,null,54123.5,113659.35]
[96,"Études pour le remplacement du système au R-22","La Société d'exploitation des glaces de Boucherville inc.","Analyse","Industriel, commercial et institutionnel",1,"16-Montérégie","Boucherville","TE","SU",9950,"2018-06-28T14:04:34","2018-11-07",1932672,null,null,null,null,null,9836,null,null,null,null,null,null,9836,9836]
[97,"075023 IGA - Ville Mont-Royal -Montréal","Sobeys Capital Incorporée","Implantation","Industriel, commercial et institutionnel",1,"06-Montréal","Mont-Royal","TE","SU",119937.5,"2019-05-27T10:50:06","2021-06-04",1721554,null,null,null,null,null,null,59968.76,null,59968.74,null,null,null,59968.76,119937.5]
[98,"Métro Beaumont - Ville Mont-Royal","Métro Richelieu inc.","Implantation","Industriel, commercial et institutionnel",1,"06-Montréal","Mont-Royal","TE","SU",58135.47,"2020-03-04T14:45:32","2020-02-19",1596608,null,null,null,null,null,null,58135.47,null,null,null,null,null,58135.47,58135.47]
[99,"Réfrigération au CO2 avec récupération de chaleur","3246256 Canada inc.","Implantation","Industriel, commercial et institutionnel",1,"06-Montréal","Montréal","TE","SU",102939.3146302,"2021-03-29T09:45:12","2021-04-09",1135684,null,null,null,null,null,null,null,null,102939.3146302,null,null,null,0,102939.3146302]
[100,"Réfrigération CO2 avec récupération de chaleur (000332)","Sobeys Capital Incorporée","Implantation","Industriel, commercial et institutionnel",1,"16-Montérégie","Saint-Basile-le-Grand","TE","SU",103451.55,"2019-11-19T09:03:16","2020-04-01",2184408,null,null,null,null,null,null,51725.78,40107.127500000002,null,null,null,null,51725.78,91832.907500000001]
[101,"Système de réfrigération au CO2","Burnbrae Farms Limited","Implantation","Industriel, commercial et institutionnel",1,"16-Montérégie","Upton","TE","SU",142297.32999999999,"2019-06-05T11:04:11","2019-11-20",1117119,null,null,null,null,null,null,142297.32999999999,null,null,null,null,null,142297.32999999999,142297.32999999999]
[102,"Réfrigération CO2 avec récupération de chaleur - Site Farnham","Cannara Biotech (OPS) Inc.","Implantation","Industriel, commercial et institutionnel",1,"05-Estrie","Farnham","TE","SU",346495.27810600499,"2020-03-23T11:29:47","2019-04-01",4329946,null,null,null,null,null,null,82498.880196700004,263996.397909305,null,null,null,null,82498.880196700004,346495.27810600499]
[103,"Système de réfrigération au CO2 - Adonis Galerie des Sources","Métro Richelieu inc.","Implantation","Industriel, commercial et institutionnel",1,"06-Montréal","Dollard-Des Ormeaux","TE","SU",135488.92000000001,"2019-11-06T11:04:40","2019-10-11",1852350,null,null,null,null,null,null,135488.92000000001,null,null,null,null,null,135488.92000000001,135488.92000000001]
[104,"Études pour le remplacement du système au R-22","Les Loisirs Saint-Fabien inc.","Analyse","Industriel, commercial et institutionnel",1,"01-Bas-Saint-Laurent","Saint-Fabien","TE","SU",5400,"2019-01-09T15:02:15","2019-02-20",1168123,null,null,null,null,null,5400,null,null,null,null,null,null,5400,5400]
[105,"Nouvelle patinoire extérieure de Joliette - Système de réfrigération au CO2","Ville de Joliette","Implantation","Industriel, commercial et institutionnel",1,"14-Lanaudière","Joliette","TE","SU",39149.050000000003,"2019-06-03T15:52:16","2019-04-01",604500,null,null,null,null,null,null,39149.050000000003,null,null,null,null,null,39149.050000000003,39149.050000000003]
[106,"Réfrigération au CO2 avec récupération de chaleur","11077422 Canada inc.","Implantation","Industriel, commercial et institutionnel",1,"02-Saguenay--Lac-Saint-Jean","Normandin","TE","SU",272357.23985000001,"2019-08-23T09:48:02","2019-04-01",2288946,null,null,null,null,null,null,253889.49346550001,13617.8619925,null,null,null,null,253889.49346550001,267507.35545800003]
[107,"Réfrigération au CO2","Verger des Bois-Francs inc.","Implantation","Industriel, commercial et institutionnel",1,"16-Montérégie","Saint-Paul-d'Abbotsford","TE","SU",39289,"2019-04-17T15:50:59","2020-02-12",365000,null,null,null,null,null,null,39289,null,null,null,null,null,39289,39289]
[108,"D00242 Telus Gaspé","TELUS Communications inc.","Implantation","Industriel, commercial et institutionnel",1,"11-Gaspésie--Îles-de-la-Madeleine","Gaspé","TE","SU",6613.93,"2019-06-12T14:13:15","2020-01-10",220563,null,null,null,null,null,null,6613.93,null,null,null,null,null,6613.93,6613.93]
[109,"008107 - IGA Joliette rue Gauthier Nord","Supermarché Crevier (Joliette) inc.","Implantation","Industriel, commercial et institutionnel",1,"14-Lanaudière","Notre-Dame-des-Prairies","TE","SU",165842.27265375,"2020-01-10T09:26:36","2020-04-01",2510000,null,null,null,null,null,null,null,165842.27265375,null,null,null,null,0,165842.27265375]
[110,"Construction du centre de production de St-Roch-de-l’Achigan - Système de réfrigération au CO2","Harmonia World inc.","Implantation","Industriel, commercial et institutionnel",1,"14-Lanaudière","Saint-Roch-de-l'Achigan","TE","SU",79510.115999999995,"2019-11-04T11:48:00","2021-02-16",850000,null,null,null,null,null,null,null,79510.115999999995,null,null,null,null,0,79510.115999999995]
[111,"Réfrigération au CO2 avec récupération de chaleur - Marché Pie-IX","Le Marché Pie-IX S.E.C.","Implantation","Industriel, commercial et institutionnel",1,"06-Montréal","Montréal","TE","SU",614971.92815099994,"2020-10-09T13:53:16","2020-04-01",6282263,null,null,null,null,null,null,null,614971.92815099994,null,null,null,null,0,614971.92815099994]
[112,"Remplacement du système de réfrigération","Bonanza Lalumière","Implantation","Industriel, commercial et institutionnel",1,"06-Montréal","Montréal","TE","SU",74347.306509419999,"2019-07-08T10:52:59","2019-04-01",769500,null,null,null,null,null,null,70806.958580399994,3540.3479290199998,null,null,null,null,70806.958580399994,74347.306509419999]
[113,"Construction Métro plus Fournier","Supermarché R. Fournier inc.","Implantation","Industriel, commercial et institutionnel",1,"04-Mauricie","Trois-Rivières","TE","SU",172500.24612299999,"2020-01-15T11:27:21","2020-04-01",911668,null,null,null,null,null,null,null,143723.863407,null,null,null,null,0,143723.863407]
[114,"Réfrigération au CO2 avec récupération chaleur (Metro Lachine)","Métro Richelieu inc.","Implantation","Industriel, commercial et institutionnel",1,"06-Montréal","Montréal","TE","SU",74215.679999999993,"2020-01-15T14:31:52","2020-10-09",1554383,null,null,null,null,null,null,null,74215.679999999993,null,null,null,null,0,74215.679999999993]
[115,"Réfrigération au CO2 avec récupération de chaleur (001758)","Sobeys Capital Incorporée","Implantation","Industriel, commercial et institutionnel",1,"06-Montréal","Montréal","TE","SU",79126.14,"2020-01-15T14:39:22","2020-04-01",1541190,null,null,null,null,null,null,39563.08,6596.33,null,null,null,null,39563.08,46159.41]
[116,"Réfrigération CO2 avec récupération de chaleur (008299)","Sobeys Capital Incorporée","Implantation","Industriel, commercial et institutionnel",1,"12-Chaudière-Appalaches","Saint-Anselme","TE","SU",58761.853499999997,"2020-02-20T11:23:07","2020-04-01",1233298,null,null,null,null,null,null,27981.84,30780.013500000001,null,null,null,null,27981.84,58761.853499999997]
[117,"Réfrigération au CO2 avec récupération de chaleur (008274)","Sobeys Capital Incorporée","Implantation","Industriel, commercial et institutionnel",1,"12-Chaudière-Appalaches","Beauceville","TE","SU",80201.42,"2020-02-19T15:53:52","2020-04-01",1151655,null,null,null,null,null,null,40100.720000000001,20498.481,null,null,null,null,40100.720000000001,60599.201000000001]
[118,"Immeubles Marquis-Thibeault Prévost inc.","Marché Élite Prévost inc.","Implantation","Industriel, commercial et institutionnel",1,"15-Laurentides","Saint-Jérôme","TE","SU",67809.787500000006,"2020-01-23T09:48:39","2022-02-17",868092,null,null,null,null,null,null,null,19374.227500000001,48435.56,null,null,null,0,67809.787500000006]
[119,"Nouvelle patinoire extérieure de Val d'Or - Système de réfrigération au CO2","Ville de Val d'Or","Implantation","Industriel, commercial et institutionnel",1,"08-Abitibi-Témiscamingue","Val-d'Or","TE","SU",41106.502500000002,"2019-09-26T09:04:44","2020-04-01",733868,null,null,null,null,null,null,9787.26,31319.2425,null,null,null,null,9787.26,41106.502500000002]
[120,"Réfrigération au CO2 - Usine Vachon de Ste-Marie-de-Beauce","Boulangerie Vachon Inc.","Implantation","Industriel, commercial et institutionnel",1,"12-Chaudière-Appalaches","Sainte-Marie","TE","SU",11877.138000000001,"2020-04-30T10:29:57","2020-11-04",523678,null,null,null,null,null,null,null,11877.138000000001,null,null,null,null,0,11877.138000000001]
[121,"Nouveau système de réfrigération au CO2 et récupération de chaleur","2737-1137 Québec inc.","Implantation","Industriel, commercial et institutionnel",1,"02-Saguenay--Lac-Saint-Jean","Saguenay","TE","SU",117249.1475925,"2020-01-15T14:56:30","2020-04-01",632772,null,null,null,null,null,null,55832.927425000002,61416.220167500003,null,null,null,null,55832.927425000002,117249.1475925]
[122,"Aliments Roma - Entrepôt frigorifique","Les Aliments Roma ltée","Implantation","Industriel, commercial et institutionnel",1,"06-Montréal","Montréal","TE","SU",50653.980690074997,"2020-01-23T15:46:22","2021-11-25",589770,null,null,null,null,null,null,null,26533.041197775001,24120.9394923,null,null,null,0,50653.980690074997]
[123,"D00267 Telus Saint-Georges","TELUS Communications inc.","Implantation","Industriel, commercial et institutionnel",1,"12-Chaudière-Appalaches","Saint-Georges","TE","SU",7122.78,"2019-11-27T09:25:05","2020-04-01",199908,null,null,null,null,null,null,null,7122.78,null,null,null,null,0,7122.78]
[124,"Réfrigération au CO2 avec récupération de chaleur (Brossard)","Mayrand limitée","Implantation","Industriel, commercial et institutionnel",1,"16-Montérégie","Brossard","TE","SU",78323.133000000002,"2019-12-11T08:53:09","2020-08-03",1250419,null,null,null,null,null,null,null,null,null,78323.133000000002,null,null,0,78323.133000000002]
[125,"Entrepôts Frigorifiques Riendeau - Système de réfrigération au CO2","Les Entrepôts Frigorifiques Riendeau inc.","Implantation","Industriel, commercial et institutionnel",1,"14-Lanaudière","Repentigny","TE","SU",52002.23,"2020-09-29T11:15:57","2021-08-31",1125000,null,null,null,null,null,null,null,null,46360,null,null,null,0,46360]
[126,"Entrepôt du 1124","Verger des Bois-Francs inc.","Implantation","Industriel, commercial et institutionnel",1,"16-Montérégie","Saint-Paul-d'Abbotsford","TE","SU",91913.073000000004,"2020-08-24T13:33:02","2021-11-26",541827,null,null,null,null,null,null,null,48144.932999999997,43768.14,null,null,null,0,91913.073000000004]
[127,"Les Aliments Kamloop - Système de réfrigération au CO2","Les aliments Kamloop","Implantation","Industriel, commercial et institutionnel",1,"15-Laurentides","Boisbriand","TE","SU",68811.959999999992,"2020-09-22T09:33:08","2020-04-01",924420,null,null,null,null,null,null,null,65535.199999999997,3276.76,null,null,null,0,68811.959999999992]
[128,"Projet d'efficacité énergétique à l'aréna Westwood","Ville de Dorval","Implantation","Industriel, commercial et institutionnel",1,"06-Montréal","Dorval","AC","SU",51058.520237999997,"2020-07-06T09:04:48","2020-04-01",1236100,null,null,null,null,null,null,null,51058.520237999997,null,null,null,null,0,51058.520237999997]
[129,"Réfrigération au CO2 avec mesures d'efficacité énergétique.","Ville de Dorval","Implantation","Industriel, commercial et institutionnel",1,"06-Montréal","Dorval","AC","SU",44011.416421000002,"2020-07-06T09:14:59","2020-04-01",1086188,null,null,null,null,null,null,null,44011.416421000002,null,null,null,null,0,44011.416421000002]
[130,"Conversion électrique et efficacité énergétique","Société Bon Pasteur S.E.N.C.","Implantation","Industriel, commercial et institutionnel",1,"03-Capitale-Nationale","Québec","AC","SU",63337.305315199999,"2021-02-19T14:37:52","2022-05-31",1057300,null,null,null,null,null,null,null,null,48256.993832,15080.311483199999,null,null,0,63337.305315199999]
[131,"Marché Pasquier Delson - Système de réfrigération au CO2","Groupe alimentaire PMA Delson inc.","Implantation","Industriel, commercial et institutionnel",1,"16-Montérégie","Delson","AC","SU",240829.9684639,"2020-10-23","2022-06-01",1247268,null,null,null,null,null,null,null,null,183489.5041696,57340.4642943,null,null,0,240829.9684639]
[132,"Réduction des émissions de gaz à effet de serre générés par les effets anodiques","Aluminerie de Bécancour inc.","Implantation","Industriel, commercial et institutionnel",1,"17-Centre-du-Québec","Bécancour","AC","SU",1162464.75,"2015-08-11","2019-10-01",1549953,null,null,290616.19,null,null,null,null,null,null,581232.37,290616.19,null,{"$f":"SUM(O156:U156)","v":290616.19},{"$f":"SUM(O156:Z156)","v":1162464.75}]
[133,"Efficacité énergétique pour l'usine de Produits Vegkiss","Produits Vegkiss inc.","Implantation","Industriel, commercial et institutionnel",1,"14-Lanaudière","Sainte-Élisabeth","AC","SU",179733.80913631499,"2017-11-21T14:42:24","2022-02-28",915600,null,null,null,null,85587.528781999994,null,null,8558.7528160149996,85587.527538299997,null,null,null,85587.528781999994,179733.80913631499]
[134,"Réfrigération au CO2 avec récupération de chaleur (000408)","Sobeys Capital Incorporée","Implantation","Industriel, commercial et institutionnel",1,"12-Chaudière-Appalaches","Saint-Jean-Port-Joli","AC","SU",118131.85649999999,"2019-05-23T10:49:55","2022-08-31",1143680,null,null,null,null,null,null,null,null,null,33751.9565,84379.9,null,0,118131.85649999999]
[135,"Modernisation des brûleurs four C et D","ArcelorMittal Produits longs Canada s.e.n.c.","Implantation","Industriel, commercial et institutionnel",1,"16-Montérégie","Contrecoeur","AC","SU",1147637.9384362199,"2019-06-04T09:33:26","2021-06-30",4406622,null,null,null,null,null,null,273247.1287992,327896.55443901999,546494.255198,null,null,null,273247.1287992,1147637.9384362199]
[136,"Réfrigération CO2 avec récupération de chaleur (008608)","Sobeys Capital Incorporée","Implantation","Industriel, commercial et institutionnel",1,"06-Montréal","Montréal","AC","SU",58592.83,"2018-08-09T10:03:33","2020-04-01",475800,null,null,null,null,null,null,null,58592.83,null,null,null,null,0,58592.83]
[137,"Réfrigération au CO2 avec récupération de chaleur (075022)","Sobeys Capital Incorporée","Implantation","Industriel, commercial et institutionnel",1,"06-Montréal","Montréal","AC","SU",97079.92349999999,"2019-08-29T09:18:07","2021-11-05",1143680,null,null,null,null,null,null,null,null,null,73965.663499999995,23114.26,null,0,97079.92349999999]
[138,"Réfrigération CO2 avec récupération de chaleur (000000)","Sobeys Capital Incorporée","Implantation","Industriel, commercial et institutionnel",1,"06-Montréal","Montréal","AC","SU",141887.49,"2019-08-27T10:09:12","2021-04-18",1810477,null,null,null,null,null,null,null,null,null,106415.61,35471.879999999997,null,0,141887.49]
[139,"Remplacement des systèmes de réfrigération","Goupe Robert Inc.","Implantation","Industriel, commercial et institutionnel",1,"16-Montérégie","Boucherville","AC","SU",1097937.0149999999,"2019-03-21T15:59:23","2023-04-01",9618655,null,null,null,null,null,null,522827.16,52282.714999999997,null,261413.58,261413.56,null,522827.16,1097937.0149999999]
[140,"Réfrigération au CO2 avec récupération de chaleur (000284)","Sobeys Capital Incorporée","Implantation","Industriel, commercial et institutionnel",1,"06-Montréal","Montréal","AC","SU",44809.033499999998,"2020-01-13T15:51:46","2023-04-28",737879,null,null,null,null,null,null,null,null,null,23471.4035,10668.82,10668.81,0,44809.033499999998]
[141,"Réfrigération au CO2 avec récupération de chaleur (096096)","Sobeys Capital Incorporée","Implantation","Industriel, commercial et institutionnel",1,"06-Montréal","Montréal","AC","SU",70541.90849999999,"2019-11-04T11:57:36","2022-01-28",1143680,null,null,null,null,null,null,null,null,null,36950.518499999998,33591.39,null,0,70541.90849999999]
[142,"Réfrigération au CO2 avec récupération de chaleur (008087)","Sobeys Capital Incorporée","Implantation","Industriel, commercial et institutionnel",1,"16-Montérégie","Vaudreuil-Dorion","AC","SU",100023.52499999999,"2020-02-19T15:29:30","2021-10-21",1810477,null,null,null,null,null,null,null,null,null,76208.384999999995,23815.14,null,0,100023.52499999999]
[143,"Réfrigération CO2 avec récupération de chaleur (008261)","Sobeys Capital Incorporée","Implantation","Industriel, commercial et institutionnel",1,"15-Laurentides","Saint-Eustache","AC","SU",91611.891000000003,"2020-02-18T15:08:00","2021-07-22",1664750,null,null,null,null,null,null,null,null,null,69799.551000000007,21812.34,null,0,91611.891000000003]
[144,"Les Viandes Valleyfield - Système de réfrigération au CO2","Les Viandes Valleyfield","Implantation","Industriel, commercial et institutionnel",1,"16-Montérégie","Saint-Stanislas-de-Kostka","AC","SU",73314.570000000007,"2020-12-02T13:40:22","2022-04-01",890000,null,null,null,null,null,null,null,null,null,73314.570000000007,null,null,0,73314.570000000007]
[145,"Nouvelle patinoire extérieure de Saguenay - Système de réfrigération au CO2","Fondation du club de hockey Canadien pour l'enfance","Implantation","Industriel, commercial et institutionnel",1,"02-Saguenay--Lac-Saint-Jean","Saguenay","AC","SU",30358.37,"2021-01-27T10:33:19","2022-02-01",716000,null,null,null,null,null,null,null,null,30358.37,null,null,null,0,30358.37]
[146]
[147]
[148]
[149]
[150]
[151]
[152]
[153]
[154]
[155]
[156,null,null,null,null,null,null,null,null,null,null,null,null,null,null,null,null,null,null,null,null,null,null,null,null,null,{"$f":"SUM(O180:W180)","v":0},{"$f":"SUM(O180:Z180)","v":0}]
[157,null,null,null,null,null,null,null,null,null,null,null,null,null,null,null,null,null,null,null,null,null,null,null,null,null,{"$f":"SUM(O181:W181)","v":0},{"$f":"SUM(O181:Z181)","v":0}]
[158,null,null,null,null,null,null,null,null,null,null,null,null,null,null,null,null,null,null,null,null,null,null,null,null,null,{"$f":"SUM(O182:W182)","v":0},{"$f":"SUM(O182:Z182)","v":0}]
[159,null,null,null,null,null,null,null,null,null,null,null,null,null,null,null,null,null,null,null,null,null,null,null,null,null,{"$f":"SUM(O183:W183)","v":0},{"$f":"SUM(O183:Z183)","v":0}]
[160,null,null,null,null,null,null,null,null,null,null,null,null,null,null,null,null,null,null,null,null,null,null,null,null,null,{"$f":"SUM(O184:W184)","v":0},{"$f":"SUM(O184:Z184)","v":0}]
[null,"TOTAL DES DÉPENSES DE PROJET ($)",null,null,null,null,null,null,null,null,{"$f":"SUM(K25:K184)","v":24541949.230343793},null,null,{"$f":"SUM(N25:N184)","v":200839365.66},0,1549182.9217766002,2411345.4746520999,2522648.6464257995,2862065.6955481996,3629459.8117547994,4074050.3381696995,3231414.6421560845,1554536.2048603999,1487267.5167775,784883.48,10668.81,17048752.8883272,24117523.542121194]
[null,"TOTAL CONTRATS FONCTIONNEMENT ($)",null,null,null,null,null,null,null,null,{"$f":"SUMIF($J$25:$J37,\"CF-Contrat fonctionnement\",K25:K37)+SUMIF($J$25:$J37,\"CP-Contrat service professionnel\",K25:K37)+SUMIF($J$25:$J37,\"CT-Contrat service technique\",K25:K37)","v":0},null,null,null,{"$f":"SUMIF($J$25:$J37,\"CF-Contrat fonctionnement\",O25:O37)+SUMIF($J$25:$J37,\"CP-Contrat service professionnel\",O25:O37)+SUMIF($J$25:$J37,\"CT-Contrat service technique\",O25:O37)","v":0},{"$f":"SUMIF($J$25:$J37,\"CF-Contrat fonctionnement\",P25:P37)+SUMIF($J$25:$J37,\"CP-Contrat service professionnel\",P25:P37)+SUMIF($J$25:$J37,\"CT-Contrat service technique\",P25:P37)","v":0},{"$f":"SUMIF($J$25:$J37,\"CF-Contrat fonctionnement\",Q25:Q37)+SUMIF($J$25:$J37,\"CP-Contrat service professionnel\",Q25:Q37)+SUMIF($J$25:$J37,\"CT-Contrat service technique\",Q25:Q37)","v":0},{"$f":"SUMIF($J$25:$J37,\"CF-Contrat fonctionnement\",R25:R37)+SUMIF($J$25:$J37,\"CP-Contrat service professionnel\",R25:R37)+SUMIF($J$25:$J37,\"CT-Contrat service technique\",R25:R37)","v":0},{"$f":"SUMIF($J$25:$J37,\"CF-Contrat fonctionnement\",S25:S37)+SUMIF($J$25:$J37,\"CP-Contrat service professionnel\",S25:S37)+SUMIF($J$25:$J37,\"CT-Contrat service technique\",S25:S37)","v":0},{"$f":"SUMIF($J$25:$J37,\"CF-Contrat fonctionnement\",T25:T37)+SUMIF($J$25:$J37,\"CP-Contrat service professionnel\",T25:T37)+SUMIF($J$25:$J37,\"CT-Contrat service technique\",T25:T37)","v":0},{"$f":"SUMIF($J$25:$J37,\"CF-Contrat fonctionnement\",U25:U37)+SUMIF($J$25:$J37,\"CP-Contrat service professionnel\",U25:U37)+SUMIF($J$25:$J37,\"CT-Contrat service technique\",U25:U37)","v":0},{"$f":"SUMIF($J$25:$J37,\"CF-Contrat fonctionnement\",V25:V37)+SUMIF($J$25:$J37,\"CP-Contrat service professionnel\",V25:V37)+SUMIF($J$25:$J37,\"CT-Contrat service technique\",V25:V37)","v":0},{"$f":"SUMIF($J$25:$J37,\"CF-Contrat fonctionnement\",W25:W37)+SUMIF($J$25:$J37,\"CP-Contrat service professionnel\",W25:W37)+SUMIF($J$25:$J37,\"CT-Contrat service technique\",W25:W37)","v":0},{"$f":"SUMIF($J$25:$J37,\"CF-Contrat fonctionnement\",X25:X37)+SUMIF($J$25:$J37,\"CP-Contrat service professionnel\",X25:X37)+SUMIF($J$25:$J37,\"CT-Contrat service technique\",X25:X37)","v":0},{"$f":"SUMIF($J$25:$J37,\"CF-Contrat fonctionnement\",Y25:Y37)+SUMIF($J$25:$J37,\"CP-Contrat service professionnel\",Y25:Y37)+SUMIF($J$25:$J37,\"CT-Contrat service technique\",Y25:Y37)","v":0},null,{"$f":"SUMIF($J$25:$J37,\"CF-Contrat fonctionnement\",AA25:AA37)+SUMIF($J$25:$J37,\"CP-Contrat service professionnel\",AA25:AA37)+SUMIF($J$25:$J37,\"CT-Contrat service technique\",AA25:AA37)","v":0},{"$f":"SUMIF($J$25:$J37,\"CF-Contrat fonctionnement\",AB25:AB37)+SUMIF($J$25:$J37,\"CP-Contrat service professionnel\",AB25:AB37)+SUMIF($J$25:$J37,\"CT-Contrat service technique\",AB25:AB37)","v":0}]
[null,"TOTAL CONTRATS IMMOBILISATION ($)",null,null,null,null,null,null,null,null,{"$f":"SUMIF(J25:J37,\"CI-Contrat immobilisation\",K25:K37)","v":0},null,null,null,{"$f":"SUMIF($J$25:$J37,\"CI-Contrat immobilisation\",O25:O37)","v":0},{"$f":"SUMIF($J$25:$J37,\"CI-Contrat immobilisation\",P25:P37)","v":0},{"$f":"SUMIF($J$25:$J37,\"CI-Contrat immobilisation\",Q25:Q37)","v":0},{"$f":"SUMIF($J$25:$J37,\"CI-Contrat immobilisation\",R25:R37)","v":0},{"$f":"SUMIF($J$25:$J37,\"CI-Contrat immobilisation\",S25:S37)","v":0},{"$f":"SUMIF($J$25:$J37,\"CI-Contrat immobilisation\",T25:T37)","v":0},{"$f":"SUMIF($J$25:$J37,\"CI-Contrat immobilisation\",U25:U37)","v":0},{"$f":"SUMIF($J$25:$J37,\"CI-Contrat immobilisation\",V25:V37)","v":0},{"$f":"SUMIF($J$25:$J37,\"CI-Contrat immobilisation\",W25:W37)","v":0},{"$f":"SUMIF($J$25:$J37,\"CI-Contrat immobilisation\",X25:X37)","v":0},{"$f":"SUMIF($J$25:$J37,\"CI-Contrat immobilisation\",Y25:Y37)","v":0},null,{"$f":"SUMIF($J$25:$J37,\"CI-Contrat immobilisation\",AA25:AA37)","v":0},{"$f":"SUMIF($J$25:$J37,\"CI-Contrat immobilisation\",AB25:AB37)","v":0}]
[null,"TOTAL DES SUBVENTIONS ($)",null,null,null,null,null,null,null,null,{"$f":"SUMIF(J25:J37,\"SU-Subvention\",K25:K37)","v":0},null,null,null,{"$f":"SUMIF($J$25:$J187,\"SU-Subvention\",O25:O27)","v":0},{"$f":"SUMIF($J$25:$J187,\"SU-Subvention\",P25:P27)","v":0},{"$f":"SUMIF($J$25:$J187,\"SU-Subvention\",Q25:Q27)","v":0},{"$f":"SUMIF($J$25:$J187,\"SU-Subvention\",R25:R27)","v":0},{"$f":"SUMIF($J$25:$J187,\"SU-Subvention\",S25:S27)","v":0},{"$f":"SUMIF($J$25:$J187,\"SU-Subvention\",T25:T27)","v":0},{"$f":"SUMIF($J$25:$J187,\"SU-Subvention\",U25:U27)","v":0},{"$f":"SUMIF($J$25:$J187,\"SU-Subvention\",V25:V27)","v":0},{"$f":"SUMIF($J$25:$J187,\"SU-Subvention\",W25:W27)","v":0},{"$f":"SUMIF($J$25:$J187,\"SU-Subvention\",X25:X27)","v":0},{"$f":"SUMIF($J$25:$J187,\"SU-Subvention\",Y25:Y27)","v":0},null,{"$f":"SUMIF($J$25:$J187,\"SU-Subvention\",AA25:AA27)","v":0},{"$f":"SUMIF($J$25:$J187,\"SU-Subvention\",AB25:AB27)","v":0}]

{"sheet":"GES","index":4,"n_rows":204,"n_cols":39,"rows_kept":204,"cut":false,"hidden":false,"merged":[[21,5,21,6],[21,7,21,37],[22,29,22,30],[22,31,22,32],[22,33,22,34],[22,35,22,36],[22,37,22,38],[22,27,22,28],[22,21,22,22],[22,23,22,24],[22,25,22,26],[22,8,23,8],[22,6,23,6],[22,9,23,9],[22,11,22,12],[22,13,22,14],[22,1,23,1],[22,2,23,2],[22,3,23,3],[22,19,22,20],[184,1,184,4],[22,4,23,4],[22,15,22,16],[22,17,22,18],[19,14,19,16],[1,14,1,16],[1,1,1,6],[2,1,2,2],[3,2,3,6],[1,11,1,13],[2,8,5,16],[4,2,4,6],[19,8,19,13],[19,1,19,5],[5,1,5,6],[1,8,1,10],[18,1,18,2],[18,3,18,4]]}
[]
[null,{"$f":"Utilitaire!E8","v":"Plan d'action 2013-2020 sur les changements climatiques"}]
[null,{"$f":"\"Action \" & Accueil!D58","v":"Action en cours"}]
[null,{"$f":"Accueil!D55","v":"21.1"},{"$f":"Accueil!E55","v":"Réduction des émissions de GES en provenance des systèmes de réfrigération (OPTER) (Écoperformance)"}]
[null,"Ministère porteur :",{"$f":"Accueil!$D$65","v":"MERN (SITE)"}]
[null,"GES"]
[]
[]
[]
[]
[]
[]
[]
[]
[]
[]
[]
[]
[null,"Informations en date du :",null,"2022-03-31"]
[null,"Potentiel de réduction des GES évalué lors de la sélection des projets de cette action : ",null,null,null,null,"Oui",null,"Réductions réelles quantifiables des émissions de GES attendues pour cette action :   ",null,null,null,null,null,"Oui"]
[]
[null,null,null,null,null,"ÉVALUATION DU POTENTIEL DE RÉDUCTION ET D'ÉVITEMENT D'ÉMISSIONS DE GES À TERME.",null,"DÉTAIL DES ÉMISSIONS DE GES RÉDUITES OU ÉVITÉES  (en tonnes éq. CO2)"]
[null,"Nom du projet","Nom du requérant ou du bénéficiaire","Région administrative","Montant engagé ($)","Potentiel de réduction des GES sur une base annuelle","Horizon temporel pour la réalisation du potentiel","Coût/tonne estimé","Type d'émission","Émissions rapportées dans l'inventaire","Durée du projet","Émissions",null,"Vérifiées",null,"2013-2014",null,"2014-2015",null,"2015-2016",null,"2016-2017",null,"2017-2018",null,"2018-2019",null,"2019-2020",null,"2020-2021",null,"2021-2022",null,"2022-2023",null,"2023-2024",null,"2024-2025"]
[null,null,null,null,null,"(tonnes éq. CO2)",null,"$\n------------ \ntonne éq. CO2",null,null,"(années)","Réduites","Évitées","Tierce partie","M/O","Vérifié","Non vérifié","Vérifié","Non vérifié","Vérifié","Non vérifié","Vérifié","Non vérifié","Vérifié","Non vérifié","Vérifié","Non vérifié","Vérifié","Non vérifié","Vérifié","Non vérifié","Vérifié","Non vérifié","Vérifié","Non vérifié","Vérifié","Non vérifié","Vérifié","Non vérifié"]
[null,{"$f":"IF(LEN('Détail des projets'!B25)=0,\"\",'Détail des projets'!B25)","v":"Étude de faisabilité afin de modifier le système de réfrigération de la glace"},{"$f":"'Détail des projets'!C25","v":"Municipalité de Sainte-Claire"},{"$f":"IF(LEN('Détail des projets'!G25)=0,\"\",'Détail des projets'!G25)","v":"12-Chaudière-Appalaches"},{"$f":"IF(LEN('Détail des projets'!K25)=0,\"\",'Détail des projets'!K25)","v":5990},0,"À la fin du projet (suite au dernier versement)",0,"QC-Québec","Oui",null,null,null,"Non","Oui"]
[null,{"$f":"IF(LEN('Détail des projets'!B26)=0,\"\",'Détail des projets'!B26)","v":"Rénovation incluant des mesures d'économies d'énergie pour le Centre sportif Sainte-Anne-des-Plaines"},{"$f":"IF(LEN('Détail des projets'!C26)=0,\"\",'Détail des projets'!C26)","v":"Centre Sportif Sainte-Anne-des-Plaines"},{"$f":"IF(LEN('Détail des projets'!G26)=0,\"\",'Détail des projets'!G26)","v":"15-Laurentides"},{"$f":"IF(LEN('Détail des projets'!K26)=0,\"\",'Détail des projets'!K26)","v":6712.35},0,"À la fin du projet (suite au dernier versement)",0,"QC-Québec","Oui",null,0,0,"Non","Oui"]
[null,{"$f":"IF(LEN('Détail des projets'!B27)=0,\"\",'Détail des projets'!B27)","v":"Étude Aréna de Grande-Rivière"},{"$f":"IF(LEN('Détail des projets'!C27)=0,\"\",'Détail des projets'!C27)","v":"Ville de Grande-Rivière"},{"$f":"IF(LEN('Détail des projets'!G27)=0,\"\",'Détail des projets'!G27)","v":"11-Gaspésie--Îles-de-la-Madeleine"},{"$f":"IF(LEN('Détail des projets'!K27)=0,\"\",'Détail des projets'!K27)","v":11750},0,"À la fin du projet (suite au dernier versement)",0,"QC-Québec","Oui",null,0,0,"Non","Oui"]
[null,{"$f":"IF(LEN('Détail des projets'!B28)=0,\"\",'Détail des projets'!B28)","v":"Étude de faisabilité - Programme ÉcoPerformance"},{"$f":"IF(LEN('Détail des projets'!C28)=0,\"\",'Détail des projets'!C28)","v":"Club de curling Bel-Aire"},{"$f":"IF(LEN('Détail des projets'!G28)=0,\"\",'Détail des projets'!G28)","v":"16-Montérégie"},{"$f":"IF(LEN('Détail des projets'!K28)=0,\"\",'Détail des projets'!K28)","v":4075},0,"À la fin du projet (suite au dernier versement)",0,"QC-Québec","Oui",null,0,35.28,"Non","Oui",null,null,null,null,null,null,null,null,16.259487477231499,null,35.0872131147541,null,35.183606557377097,null,35.0872131147541,null,35.0872131147541]
[null,{"$f":"IF(LEN('Détail des projets'!B29)=0,\"\",'Détail des projets'!B29)","v":"Modernisation du système mécanique de l'aréna Julien Beauregard"},{"$f":"IF(LEN('Détail des projets'!C29)=0,\"\",'Détail des projets'!C29)","v":"La Ville de Marieville"},{"$f":"IF(LEN('Détail des projets'!G29)=0,\"\",'Détail des projets'!G29)","v":"16-Montérégie"},{"$f":"IF(LEN('Détail des projets'!K29)=0,\"\",'Détail des projets'!K29)","v":52670.41},210.68163107999999,"À la fin du projet (suite au dernier versement)",16.666667372312748,"QC-Québec","Oui",15,0,210.68163107999999,"Non","Oui",0,null,141.03005359180301,null,210.10599820819701,null,209.530365336393,null,209.530365336393,null,209.530365336393,null,210.10599820819701,null,209.530365336393,null,209.530365336393]
[null,{"$f":"IF(LEN('Détail des projets'!B30)=0,\"\",'Détail des projets'!B30)","v":"Système de Réfrigération au CO2 avec récupération de chaleur pour 3 patinoires"},{"$f":"IF(LEN('Détail des projets'!C30)=0,\"\",'Détail des projets'!C30)","v":"Syscomax inc."},{"$f":"IF(LEN('Détail des projets'!G30)=0,\"\",'Détail des projets'!G30)","v":"16-Montérégie"},{"$f":"IF(LEN('Détail des projets'!K30)=0,\"\",'Détail des projets'!K30)","v":122792.88},492.81337624000003,"À la fin du projet (suite au dernier versement)",16.598617303161465,"QC-Québec","Oui",15,0,493.18517623999998,"Non","Oui",0,null,359.78262856852501,null,491.83767575847003,null,490.49017527694002,null,490.49017527694002,null,490.49017527694002,null,491.83767575847003,null,490.49017527694002,null,490.49017527694002]
[null,{"$f":"IF(LEN('Détail des projets'!B31)=0,\"\",'Détail des projets'!B31)","v":"Remplacement du système de réfrigération et récupération de chaleur"},{"$f":"IF(LEN('Détail des projets'!C31)=0,\"\",'Détail des projets'!C31)","v":"Ville de Sherbrooke"},{"$f":"IF(LEN('Détail des projets'!G31)=0,\"\",'Détail des projets'!G31)","v":"05-Estrie"},{"$f":"IF(LEN('Détail des projets'!K31)=0,\"\",'Détail des projets'!K31)","v":47461.63},189.84651944000001,"À la fin du projet (suite au dernier versement)",12.491974216544662,"QC-Québec","Oui",19.955595016479499,0,190.3912076,"Non","Oui",0,null,0,null,0,null,0,null,0,null,0,null,116.52358060765,null,189.35081848743201,null,189.35081848743201]
[null,{"$f":"IF(LEN('Détail des projets'!B32)=0,\"\",'Détail des projets'!B32)","v":"Étude de faisabilité pour l'Aréna de Magog"},{"$f":"IF(LEN('Détail des projets'!C32)=0,\"\",'Détail des projets'!C32)","v":"Ville de Magog"},{"$f":"IF(LEN('Détail des projets'!G32)=0,\"\",'Détail des projets'!G32)","v":"05-Estrie"},{"$f":"IF(LEN('Détail des projets'!K32)=0,\"\",'Détail des projets'!K32)","v":12850},0,"À la fin du projet (suite au dernier versement)",0,"QC-Québec","Oui",null,0,0,"Non","Oui"]
[null,{"$f":"IF(LEN('Détail des projets'!B33)=0,\"\",'Détail des projets'!B33)","v":"Installation d'une scie pour rainurer les anodes"},{"$f":"IF(LEN('Détail des projets'!C33)=0,\"\",'Détail des projets'!C33)","v":"Compagnie de Gestion Alcoa-Lauralco"},{"$f":"IF(LEN('Détail des projets'!G33)=0,\"\",'Détail des projets'!G33)","v":"03-Capitale-Nationale"},{"$f":"IF(LEN('Détail des projets'!K33)=0,\"\",'Détail des projets'!K33)","v":1892870.4},7571.4816000000001,"À la fin du projet (suite au dernier versement)",9.1798260990856271,"QC-Québec","Oui",15,0,13746.59592,"Non","Oui",0,null,0,null,2854.4843986885198,null,13671.477909508199,null,13671.477909508199,null,13671.477909508199,null,13709.036914754101,null,13671.477909508199,null,13671.477909508199]
[null,{"$f":"IF(LEN('Détail des projets'!B34)=0,\"\",'Détail des projets'!B34)","v":"Production de grosses anodes pour la série"},{"$f":"IF(LEN('Détail des projets'!C34)=0,\"\",'Détail des projets'!C34)","v":"Compagnie de Gestion Alcoa-Lauralco"},{"$f":"IF(LEN('Détail des projets'!G34)=0,\"\",'Détail des projets'!G34)","v":"03-Capitale-Nationale"},{"$f":"IF(LEN('Détail des projets'!K34)=0,\"\",'Détail des projets'!K34)","v":909000},0,"À la fin du projet (suite au dernier versement)",0,"QC-Québec","Oui",20,0,3654.1663910000002,"Non","Oui",0,null,0,null,0,null,0,null,2535.95153910929,null,3634.19826864481,null,3644.1823298223999,null,3634.19826864481,null,3634.19826864481]
[null,{"$f":"IF(LEN('Détail des projets'!B35)=0,\"\",'Détail des projets'!B35)","v":"Réfrigération CO2 avec récupération de chaleur - No 88076 - IGA Saint-Antoine"},{"$f":"IF(LEN('Détail des projets'!C35)=0,\"\",'Détail des projets'!C35)","v":"Sobeys Capital Incorporée"},{"$f":"IF(LEN('Détail des projets'!G35)=0,\"\",'Détail des projets'!G35)","v":"15-Laurentides"},{"$f":"IF(LEN('Détail des projets'!K35)=0,\"\",'Détail des projets'!K35)","v":173378.25},738.30543001199999,"À la fin du projet (suite au dernier versement)",17.365627482476022,"QC-Québec","Oui",15,0,665.59932900000001,"Non","Oui",0,null,49.1015898442623,null,663.78075159836101,null,661.96217419672098,null,661.96217419672098,null,661.96217419672098,null,663.78075159836101,null,661.96217419672098,null,661.96217419672098]
[null,{"$f":"IF(LEN('Détail des projets'!B36)=0,\"\",'Détail des projets'!B36)","v":"Supermarché Marquis l'Assomption - Réfrigération CO2 et récupération de chaleur"},{"$f":"IF(LEN('Détail des projets'!C36)=0,\"\",'Détail des projets'!C36)","v":"Supermarché Marquis l'Assomption inc."},{"$f":"IF(LEN('Détail des projets'!G36)=0,\"\",'Détail des projets'!G36)","v":"14-Lanaudière"},{"$f":"IF(LEN('Détail des projets'!K36)=0,\"\",'Détail des projets'!K36)","v":175999.45368000001},704.44593999999995,"À la fin du projet (suite au dernier versement)",18.171206300307169,"QC-Québec","Oui",15,0,645.70820000000003,"Non","Oui",0,null,148.19532459016401,null,643.94396994535498,null,642.17973989071004,null,642.17973989071004,null,642.17973989071004,null,643.94396994535498,null,642.17973989071004,null,642.17973989071004]
[null,{"$f":"IF(LEN('Détail des projets'!B37)=0,\"\",'Détail des projets'!B37)","v":"Système de réfrigération au CO2 - Curling de Port-Alfred"},{"$f":"IF(LEN('Détail des projets'!C37)=0,\"\",'Détail des projets'!C37)","v":"Ville de Saguenay"},{"$f":"IF(LEN('Détail des projets'!G37)=0,\"\",'Détail des projets'!G37)","v":"02-Saguenay--Lac-Saint-Jean"},{"$f":"IF(LEN('Détail des projets'!K37)=0,\"\",'Détail des projets'!K37)","v":17552.38},70.209514319999997,"À la fin du projet (suite au dernier versement)",16.629313463125523,"QC-Québec","Oui",15,0,70.367226479999999,"Non","Oui",0,null,24.224782886557399,null,70.174966298360701,null,69.982706116721303,null,69.982706116721303,null,69.982706116721303,null,70.174966298360701,null,69.982706116721303,null,69.982706116721303]
[null,{"$f":"IF(LEN('Détail des projets'!B38)=0,\"\",'Détail des projets'!B38)","v":"No 360 - IGA Longueuil - Réfrigération CO2 avec récupération de chaleur"},{"$f":"IF(LEN('Détail des projets'!C38)=0,\"\",'Détail des projets'!C38)","v":"Sobeys Capital Incorporée"},{"$f":"IF(LEN('Détail des projets'!G38)=0,\"\",'Détail des projets'!G38)","v":"16-Montérégie"},{"$f":"IF(LEN('Détail des projets'!K38)=0,\"\",'Détail des projets'!K38)","v":152823},846.43404824000004,"À la fin du projet (suite au dernier versement)",13.546889427429926,"QC-Québec","Oui",15,0,752.06932591999998,"Non","Oui",0,null,260.96394642579202,null,750.01449169617501,null,747.95965747235005,null,747.95965747235005,null,747.95965747235005,null,750.01449169617501,null,747.95965747235005,null,747.95965747235005]
[null,{"$f":"IF(LEN('Détail des projets'!B39)=0,\"\",'Détail des projets'!B39)","v":"Réfrigération au CO2 avec récupération de chaleur- No 08033 IGA Sainte-Thérèse (Daigle)"},{"$f":"IF(LEN('Détail des projets'!C39)=0,\"\",'Détail des projets'!C39)","v":"Sobeys Capital Incorporée"},{"$f":"IF(LEN('Détail des projets'!G39)=0,\"\",'Détail des projets'!G39)","v":"15-Laurentides"},{"$f":"IF(LEN('Détail des projets'!K39)=0,\"\",'Détail des projets'!K39)","v":187006.5},992.41707260400005,"À la fin du projet (suite au dernier versement)",14.039201438973764,"QC-Québec","Oui",15,0,888.02059392000001,"Non","Oui",0,null,97.051431029508194,null,885.59430814426298,null,883.16802236852504,null,883.16802236852504,null,883.16802236852504,null,885.59430814426298,null,883.16802236852504,null,883.16802236852504]
[null,{"$f":"IF(LEN('Détail des projets'!B40)=0,\"\",'Détail des projets'!B40)","v":"Réfrigération au CO2 avec récupération de chaleur - No 8724 - IGA  Ayer's Cliff"},{"$f":"IF(LEN('Détail des projets'!C40)=0,\"\",'Détail des projets'!C40)","v":"Sobeys Capital Incorporée"},{"$f":"IF(LEN('Détail des projets'!G40)=0,\"\",'Détail des projets'!G40)","v":"05-Estrie"},{"$f":"IF(LEN('Détail des projets'!K40)=0,\"\",'Détail des projets'!K40)","v":55315.39},221.26157423999999,"À la fin du projet (suite au dernier versement)",17.625985063172013,"QC-Québec","Oui",15,0,209.21909632000001,"Non","Oui",0,null,12.5760112542076,null,208.64745944480899,null,208.075822569617,null,208.075822569617,null,208.075822569617,null,208.64745944480899,null,208.075822569617,null,208.075822569617]
[null,{"$f":"IF(LEN('Détail des projets'!B41)=0,\"\",'Détail des projets'!B41)","v":"Réfrigération CO2 avec récupération de chaleur - No 0444  IGA Saint-Romuald"},{"$f":"IF(LEN('Détail des projets'!C41)=0,\"\",'Détail des projets'!C41)","v":"Sobeys Capital Incorporée"},{"$f":"IF(LEN('Détail des projets'!G41)=0,\"\",'Détail des projets'!G41)","v":"12-Chaudière-Appalaches"},{"$f":"IF(LEN('Détail des projets'!K41)=0,\"\",'Détail des projets'!K41)","v":187006.5},837.92380128000002,"À la fin du projet (suite au dernier versement)",15.741297275865342,"QC-Québec","Oui",15,0,791.99952719999999,"Non","Oui",0,null,108.196656721311,null,789.83559406557401,null,787.67166093114702,null,386.24044398456903,null,0,null,0,null,0,null,0]
[null,{"$f":"IF(LEN('Détail des projets'!B42)=0,\"\",'Détail des projets'!B42)","v":"Réfrigération au CO2 avec récupération de chaleur"},{"$f":"IF(LEN('Détail des projets'!C42)=0,\"\",'Détail des projets'!C42)","v":"Sobeys Capital Incorporée"},{"$f":"IF(LEN('Détail des projets'!G42)=0,\"\",'Détail des projets'!G42)","v":"06-Montréal"},{"$f":"IF(LEN('Détail des projets'!K42)=0,\"\",'Détail des projets'!K42)","v":48057.946360700007},192.2311722,"À la fin du projet (suite au dernier versement)",18.490876223886456,"QC-Québec","Oui",15,0,173.26724012,"Non","Oui",0,null,3.3138543192349701,null,172.79383236010901,null,172.32042460021901,null,172.32042460021901,null,172.32042460021901,null,172.79383236010901,null,172.32042460021901,null,172.32042460021901]
[null,{"$f":"IF(LEN('Détail des projets'!B43)=0,\"\",'Détail des projets'!B43)","v":"Réfrigération CO2 avec récupération de chaleur - No 8187 -  IGA Sainte-Julie"},{"$f":"IF(LEN('Détail des projets'!C43)=0,\"\",'Détail des projets'!C43)","v":"Sobeys Capital Incorporée"},{"$f":"IF(LEN('Détail des projets'!G43)=0,\"\",'Détail des projets'!G43)","v":"16-Montérégie"},{"$f":"IF(LEN('Détail des projets'!K43)=0,\"\",'Détail des projets'!K43)","v":36188.14},145.33841036000001,"À la fin du projet (suite au dernier versement)",16.599484339279975,"QC-Québec","Oui",15,0,145.33841036000001,"Non","Oui",0,null,2.3825968911475401,null,144.94131087814199,null,144.544211396284,null,144.544211396284,null,144.544211396284,null,144.94131087814199,null,144.544211396284,null,144.544211396284]
[null,{"$f":"IF(LEN('Détail des projets'!B44)=0,\"\",'Détail des projets'!B44)","v":"Réfrigération CO2 avec récupération de chaleur (89035)"},{"$f":"IF(LEN('Détail des projets'!C44)=0,\"\",'Détail des projets'!C44)","v":"Sobeys Capital Incorporée"},{"$f":"IF(LEN('Détail des projets'!G44)=0,\"\",'Détail des projets'!G44)","v":"08-Abitibi-Témiscamingue"},{"$f":"IF(LEN('Détail des projets'!K44)=0,\"\",'Détail des projets'!K44)","v":74153.14},296.61254652000002,"À la fin du projet (suite au dernier versement)",17.840455565395182,"QC-Québec","Oui",15,0,277.09733355999998,"Non","Oui",0,null,88.580295154426295,null,276.34023702021898,null,275.58314048043701,null,275.58314048043701,null,275.58314048043701,null,276.34023702021898,null,275.58314048043701,null,275.58314048043701]
[null,{"$f":"IF(LEN('Détail des projets'!B45)=0,\"\",'Détail des projets'!B45)","v":"Complexe intégré de gestion optimale des appareils froids et des frigorigènes"},{"$f":"IF(LEN('Détail des projets'!C45)=0,\"\",'Détail des projets'!C45)","v":"Groupe PureSphera inc."},{"$f":"IF(LEN('Détail des projets'!G45)=0,\"\",'Détail des projets'!G45)","v":"17-Centre-du-Québec"},{"$f":"IF(LEN('Détail des projets'!K45)=0,\"\",'Détail des projets'!K45)","v":2938500},85125.037500000006,"À la fin du projet (suite au dernier versement)",2.301320572105475,"QC-Québec","Oui",15,0,85125.037500000006,"Non","Oui",0,null,0,null,0,null,null,null,42080,null,30247,null,45394]
[null,{"$f":"IF(LEN('Détail des projets'!B46)=0,\"\",'Détail des projets'!B46)","v":"Approvisionnement pour système de réduction des émissions de GES SEG"},{"$f":"IF(LEN('Détail des projets'!C46)=0,\"\",'Détail des projets'!C46)","v":"Groupe PureSphera inc."},{"$f":"IF(LEN('Détail des projets'!G46)=0,\"\",'Détail des projets'!G46)","v":"17-Centre-du-Québec"},{"$f":"IF(LEN('Détail des projets'!K46)=0,\"\",'Détail des projets'!K46)","v":32146},0,"À la fin du projet (suite au dernier versement)",0,"QC-Québec","Oui",null,0,0,"Non","Oui"]
[null,{"$f":"IF(LEN('Détail des projets'!B47)=0,\"\",'Détail des projets'!B47)","v":"Refroidissement rapide avec système de réfrigération au CO2."},{"$f":"IF(LEN('Détail des projets'!C47)=0,\"\",'Détail des projets'!C47)","v":"Plaisirs gastronomiques inc."},{"$f":"IF(LEN('Détail des projets'!G47)=0,\"\",'Détail des projets'!G47)","v":"15-Laurentides"},{"$f":"IF(LEN('Détail des projets'!K47)=0,\"\",'Détail des projets'!K47)","v":155712.07},622.84826811999994,"À la fin du projet (suite au dernier versement)",27.261775366423663,"QC-Québec","Oui",30,0,190.3912076,"Non","Oui",0,null,0,null,0,null,0,null,0,null,0,null,85.832101786885204,null,189.35081848743201,null,189.35081848743201]
[null,{"$f":"IF(LEN('Détail des projets'!B48)=0,\"\",'Détail des projets'!B48)","v":"Système CO2 pour le département de charcuteries"},{"$f":"IF(LEN('Détail des projets'!C48)=0,\"\",'Détail des projets'!C48)","v":"Plaisirs gastronomiques inc."},{"$f":"IF(LEN('Détail des projets'!G48)=0,\"\",'Détail des projets'!G48)","v":"15-Laurentides"},{"$f":"IF(LEN('Détail des projets'!K48)=0,\"\",'Détail des projets'!K48)","v":90628.78},362.515138156364,"À la fin du projet (suite au dernier versement)",8.3333329159630836,"QC-Québec","Oui",30,0,362.515138156364,"Non","Oui",0,null,0,null,0,null,0,null,0,null,0,null,0,null,0.990478519552906,null,360.53418111725802]
[null,{"$f":"IF(LEN('Détail des projets'!B49)=0,\"\",'Détail des projets'!B49)","v":"Interpac - Étude pour l'installation d'un épurateur à composés organiques volatils (COV)"},{"$f":"IF(LEN('Détail des projets'!C49)=0,\"\",'Détail des projets'!C49)","v":"Corporation Interpac inc."},{"$f":"IF(LEN('Détail des projets'!G49)=0,\"\",'Détail des projets'!G49)","v":"06-Montréal"},{"$f":"IF(LEN('Détail des projets'!K49)=0,\"\",'Détail des projets'!K49)","v":13025},0,"À la fin du projet (suite au dernier versement)",0,"QC-Québec","Oui",null,0,0,"Non","Oui"]
[null,{"$f":"IF(LEN('Détail des projets'!B50)=0,\"\",'Détail des projets'!B50)","v":"Réfrigération CO2 avec récupération de chaleur - Phase 1"},{"$f":"IF(LEN('Détail des projets'!C50)=0,\"\",'Détail des projets'!C50)","v":"SportPlex de l'Énergie inc."},{"$f":"IF(LEN('Détail des projets'!G50)=0,\"\",'Détail des projets'!G50)","v":"16-Montérégie"},{"$f":"IF(LEN('Détail des projets'!K50)=0,\"\",'Détail des projets'!K50)","v":81981.966680800004},164.8963,"À la fin du projet (suite au dernier versement)",9.9999837380111014,"QC-Québec","Oui",25,0,327.92840000000001,"Non","Oui",0,null,0,null,26.879377049180299,null,326.13644153005498,null,326.13644153005498,null,326.13644153005498,null,327.03242076502698,null,326.13644153005498,null,326.13644153005498]
[null,{"$f":"IF(LEN('Détail des projets'!B51)=0,\"\",'Détail des projets'!B51)","v":"Réfrigération CO2 avec récupération de chaleur - #8240 - IGA Marché St-Canut"},{"$f":"IF(LEN('Détail des projets'!C51)=0,\"\",'Détail des projets'!C51)","v":"Marché St-Canut inc."},{"$f":"IF(LEN('Détail des projets'!G51)=0,\"\",'Détail des projets'!G51)","v":"15-Laurentides"},{"$f":"IF(LEN('Détail des projets'!K51)=0,\"\",'Détail des projets'!K51)","v":187006.5},918.60920611999995,"À la fin du projet (suite au dernier versement)",12.934028618098132,"QC-Québec","Oui",15.7395420074463,0,918.60920611999995,"Non","Oui",0,null,0,null,880.96128783639404,null,913.58948368218603,null,913.58948368218603,null,913.58948368218603,null,916.09934490109299,null,913.58948368218603,null,913.58948368218603]
[null,{"$f":"IF(LEN('Détail des projets'!B52)=0,\"\",'Détail des projets'!B52)","v":"Réfrigération au CO2 avec récupération de chaleur"},{"$f":"IF(LEN('Détail des projets'!C52)=0,\"\",'Détail des projets'!C52)","v":"Métro Richelieu inc."},{"$f":"IF(LEN('Détail des projets'!G52)=0,\"\",'Détail des projets'!G52)","v":"16-Montérégie"},{"$f":"IF(LEN('Détail des projets'!K52)=0,\"\",'Détail des projets'!K52)","v":70936.551543599999},283.74449415999999,"À la fin du projet (suite au dernier versement)",18.143697624428423,"QC-Québec","Oui",15,0,260.64716984,"Non","Oui",0,null,0,null,0,null,205.099412333115,null,259.22286836546402,null,259.22286836546402,null,259.93501910273199,null,259.22286836546402,null,259.22286836546402]
[null,{"$f":"IF(LEN('Détail des projets'!B53)=0,\"\",'Détail des projets'!B53)","v":"Étude en optimisation de la réfrigération"},{"$f":"IF(LEN('Détail des projets'!C53)=0,\"\",'Détail des projets'!C53)","v":"Municipalité Saint-Joseph-de-Coleraine"},{"$f":"IF(LEN('Détail des projets'!G53)=0,\"\",'Détail des projets'!G53)","v":"12-Chaudière-Appalaches"},{"$f":"IF(LEN('Détail des projets'!K53)=0,\"\",'Détail des projets'!K53)","v":7000},0,"À la fin du projet (suite au dernier versement)",0,"QC-Québec","Oui",null,0,null,"Non","Oui"]
[null,{"$f":"IF(LEN('Détail des projets'!B54)=0,\"\",'Détail des projets'!B54)","v":"Optimisation du système de réfrigération de l'aréna"},{"$f":"IF(LEN('Détail des projets'!C54)=0,\"\",'Détail des projets'!C54)","v":"Ville de Chambly"},{"$f":"IF(LEN('Détail des projets'!G54)=0,\"\",'Détail des projets'!G54)","v":"16-Montérégie"},{"$f":"IF(LEN('Détail des projets'!K54)=0,\"\",'Détail des projets'!K54)","v":58585.645399499997},234.34188044000001,"À la fin du projet (suite au dernier versement)",0,"QC-Québec","Oui",26.4869594573975,0,0,"Non","Oui",0,null,0,null,0,null,0,null,0,null,0,null,0,null,0,null,0]
[null,{"$f":"IF(LEN('Détail des projets'!B55)=0,\"\",'Détail des projets'!B55)","v":"Réfrigération CO2 avec récupération de chaleur (08547)"},{"$f":"IF(LEN('Détail des projets'!C55)=0,\"\",'Détail des projets'!C55)","v":"Sobeys Capital Incorporée"},{"$f":"IF(LEN('Détail des projets'!G55)=0,\"\",'Détail des projets'!G55)","v":"06-Montréal"},{"$f":"IF(LEN('Détail des projets'!K55)=0,\"\",'Détail des projets'!K55)","v":192782.48},794.34369751999998,"À la fin du projet (suite au dernier versement)",17.31622380254581,"QC-Québec","Oui",15,0,742.20369751999999,"Non","Oui",0,null,0,null,40.557579099453498,null,738.147939610055,null,738.147939610055,null,738.147939610055,null,740.17581856502704,null,738.147939610055,null,738.147939610055]
[null,{"$f":"IF(LEN('Détail des projets'!B56)=0,\"\",'Détail des projets'!B56)","v":"Réfrigération CO2 avec récupération de chaleur (88086)"},{"$f":"IF(LEN('Détail des projets'!C56)=0,\"\",'Détail des projets'!C56)","v":"Sobeys Capital Incorporée"},{"$f":"IF(LEN('Détail des projets'!G56)=0,\"\",'Détail des projets'!G56)","v":"07-Outaouais"},{"$f":"IF(LEN('Détail des projets'!K56)=0,\"\",'Détail des projets'!K56)","v":129279},566.52563780000003,"À la fin du projet (suite au dernier versement)",17.015692062094878,"QC-Québec","Oui",15,0,506.50893120000001,"Non","Oui",0,null,0,null,0,null,0,null,0,null,305.84282457704899,null,505.12502701639301,null,503.74112283278703,null,503.74112283278703]
[null,{"$f":"IF(LEN('Détail des projets'!B57)=0,\"\",'Détail des projets'!B57)","v":"Réfrigération CO2 avec récupération de chaleur (000259)"},{"$f":"IF(LEN('Détail des projets'!C57)=0,\"\",'Détail des projets'!C57)","v":"Sobeys Capital Incorporée"},null,null,null,null,null,null,null,null,0,671.83828970800005,"Non","Oui",0,null,0,null,53.233088528776001,null,668.167042223257,null,668.167042223257,null,668.167042223257,null,670.00266596562801,null,668.167042223257,null,668.167042223257]
[null,{"$f":"IF(LEN('Détail des projets'!B58)=0,\"\",'Détail des projets'!B58)","v":"Réfrigération CO2 avec récupération de chaleur (88734)"},{"$f":"IF(LEN('Détail des projets'!C58)=0,\"\",'Détail des projets'!C58)","v":"Sobeys Capital Incorporée"},{"$f":"IF(LEN('Détail des projets'!G58)=0,\"\",'Détail des projets'!G58)","v":"03-Capitale-Nationale"},{"$f":"IF(LEN('Détail des projets'!K58)=0,\"\",'Détail des projets'!K58)","v":159937.5},776.45096808000005,"À la fin du projet (suite au dernier versement)",16.585648642191781,"QC-Québec","Oui",15,0,642.87506808000001,"Non","Oui",0,null,0,null,0,null,339.00242661049202,null,639.36208956590201,null,639.36208956590201,null,641.11857882295101,null,639.36208956590201,null,639.36208956590201]
[null,{"$f":"IF(LEN('Détail des projets'!B59)=0,\"\",'Détail des projets'!B59)","v":"Étude de faisabilité - Climatisation et efficacité énergétique dans un édifice multilogement"},{"$f":"IF(LEN('Détail des projets'!C59)=0,\"\",'Détail des projets'!C59)","v":"Syndicat des copropriétaires de Manoir Un"},{"$f":"IF(LEN('Détail des projets'!G59)=0,\"\",'Détail des projets'!G59)","v":"06-Montréal"},{"$f":"IF(LEN('Détail des projets'!K59)=0,\"\",'Détail des projets'!K59)","v":9000},0,"À la fin du projet (suite au dernier versement)",0,"QC-Québec","Oui",null,0,0,"Non","Oui"]
[null,{"$f":"IF(LEN('Détail des projets'!B60)=0,\"\",'Détail des projets'!B60)","v":"Réfrigération CO2 avec récupération de chaleur (8182)"},{"$f":"IF(LEN('Détail des projets'!C60)=0,\"\",'Détail des projets'!C60)","v":"Sobeys Capital Incorporée"},{"$f":"IF(LEN('Détail des projets'!G60)=0,\"\",'Détail des projets'!G60)","v":"02-Saguenay--Lac-Saint-Jean"},{"$f":"IF(LEN('Détail des projets'!K60)=0,\"\",'Détail des projets'!K60)","v":114265.17},457.06066214800001,"À la fin du projet (suite au dernier versement)",19.134799994941652,"QC-Québec","Oui",15,0,398.10596410800002,"Non","Oui",0,null,0,null,0,null,162.07046079806599,null,395.93052168117998,null,395.93052168117998,null,397.01824289459,null,395.93052168117998,null,395.93052168117998]
[null,{"$f":"IF(LEN('Détail des projets'!B61)=0,\"\",'Détail des projets'!B61)","v":"Récupération de chaleur et réfrigération au CO2"},{"$f":"IF(LEN('Détail des projets'!C61)=0,\"\",'Détail des projets'!C61)","v":"Maître Saladier inc."},{"$f":"IF(LEN('Détail des projets'!G61)=0,\"\",'Détail des projets'!G61)","v":"15-Laurentides"},{"$f":"IF(LEN('Détail des projets'!K61)=0,\"\",'Détail des projets'!K61)","v":168352.523472},673.40729543999998,"À la fin du projet (suite au dernier versement)",9.7372305711649254,"QC-Québec","Oui",25.686098098754901,0,673.10999544000003,"Non","Oui",0,null,0,null,0,null,283.22114562229501,null,669.43179874360601,null,669.43179874360601,null,671.27089709180302,null,669.43179874360601,null,669.43179874360601]
[null,{"$f":"IF(LEN('Détail des projets'!B62)=0,\"\",'Détail des projets'!B62)","v":"Réfrigération CO2 avec récupération de chaleur"},{"$f":"IF(LEN('Détail des projets'!C62)=0,\"\",'Détail des projets'!C62)","v":"Sobeys Capital Incorporée"},{"$f":"IF(LEN('Détail des projets'!G62)=0,\"\",'Détail des projets'!G62)","v":"08-Abitibi-Témiscamingue"},{"$f":"IF(LEN('Détail des projets'!K62)=0,\"\",'Détail des projets'!K62)","v":192782.48},900.59844782000005,"À la fin du projet (suite au dernier versement)",19.173990746785798,"QC-Québec","Oui",15,0,670.29162071999997,"Non","Oui",0,null,0,null,0,null,274.709680622951,null,666.62882497836097,null,666.62882497836097,null,668.46022284918001,null,666.62882497836097,null,666.62882497836097]
[null,{"$f":"IF(LEN('Détail des projets'!B63)=0,\"\",'Détail des projets'!B63)","v":"Réfrigération CO2 avec récupération de chaleur (89056)"},{"$f":"IF(LEN('Détail des projets'!C63)=0,\"\",'Détail des projets'!C63)","v":"Sobeys Capital Incorporée"},{"$f":"IF(LEN('Détail des projets'!G63)=0,\"\",'Détail des projets'!G63)","v":"04-Mauricie"},{"$f":"IF(LEN('Détail des projets'!K63)=0,\"\",'Détail des projets'!K63)","v":154506.69},618.02674314800004,"À la fin du projet (suite au dernier versement)",17.515134281545652,"QC-Québec","Oui",15,0,588.08832603999997,"Non","Oui",0,null,0,null,0,null,0,null,456.330832227759,null,584.87472862994503,null,586.48152733497204,null,584.87472862994503,null,584.87472862994503]
[null,{"$f":"IF(LEN('Détail des projets'!B64)=0,\"\",'Détail des projets'!B64)","v":"Réfrigération CO2 avec récupération de chaleur (8341)"},{"$f":"IF(LEN('Détail des projets'!C64)=0,\"\",'Détail des projets'!C64)","v":"Sobeys Capital Incorporée"},{"$f":"IF(LEN('Détail des projets'!G64)=0,\"\",'Détail des projets'!G64)","v":"16-Montérégie"},{"$f":"IF(LEN('Détail des projets'!K64)=0,\"\",'Détail des projets'!K64)","v":176015.83000000002},872.558498052,"À la fin du projet (suite au dernier versement)",15.22915089601825,"QC-Québec","Oui",15,0,770.52153115999999,"Non","Oui",0,null,0,null,0,null,0,null,408.41851651650302,null,766.31103098972699,null,768.41628107486304,null,766.31103098972699,null,766.31103098972699]
[null,{"$f":"IF(LEN('Détail des projets'!B65)=0,\"\",'Détail des projets'!B65)","v":"Réfrigération CO2 avec récupération de chaleur (8085)"},{"$f":"IF(LEN('Détail des projets'!C65)=0,\"\",'Détail des projets'!C65)","v":"Sobeys Capital Incorporée"},{"$f":"IF(LEN('Détail des projets'!G65)=0,\"\",'Détail des projets'!G65)","v":"07-Outaouais"},{"$f":"IF(LEN('Détail des projets'!K65)=0,\"\",'Détail des projets'!K65)","v":150319.47},601.277886072,"À la fin du projet (suite au dernier versement)",21.914172476483792,"QC-Québec","Oui",15,0,457.29757812000003,"Non","Oui",0,null,0,null,0,null,0,null,0,null,0,null,171.17423006131099,null,454.79868425049199,null,454.79868425049199]
[null,{"$f":"IF(LEN('Détail des projets'!B66)=0,\"\",'Détail des projets'!B66)","v":"Réfrigération CO2 avec récupération de chaleur (8296)"},{"$f":"IF(LEN('Détail des projets'!C66)=0,\"\",'Détail des projets'!C66)","v":"Sobeys Capital Incorporée"},{"$f":"IF(LEN('Détail des projets'!G66)=0,\"\",'Détail des projets'!G66)","v":"14-Lanaudière"},{"$f":"IF(LEN('Détail des projets'!K66)=0,\"\",'Détail des projets'!K66)","v":159937.5},652.02512365200005,"À la fin du projet (suite au dernier versement)",18.961790212403304,"QC-Québec","Oui",15,0,562.31504940000002,"Non","Oui",0,null,0,null,0,null,0,null,56.846056906557401,null,559.24228956721299,null,560.77866948360702,null,559.24228956721299,null,559.24228956721299]
[null,{"$f":"IF(LEN('Détail des projets'!B67)=0,\"\",'Détail des projets'!B67)","v":"Réfrigération CO2 avec récupération de chaleur (8046)"},{"$f":"IF(LEN('Détail des projets'!C67)=0,\"\",'Détail des projets'!C67)","v":"Sobeys Capital Incorporée"},{"$f":"IF(LEN('Détail des projets'!G67)=0,\"\",'Détail des projets'!G67)","v":"05-Estrie"},{"$f":"IF(LEN('Détail des projets'!K67)=0,\"\",'Détail des projets'!K67)","v":158550.17000000001},634.20069088399998,"À la fin du projet (suite au dernier versement)",18.453133924233843,"QC-Québec","Oui",15,0,572.80304672,"Non","Oui",0,null,0,null,0,null,0,null,446.03515933114801,null,569.67297542644803,null,571.23801107322402,null,569.67297542644803,null,569.67297542644803]
[null,{"$f":"IF(LEN('Détail des projets'!B68)=0,\"\",'Détail des projets'!B68)","v":"Réfrigération au CO2"},{"$f":"IF(LEN('Détail des projets'!C68)=0,\"\",'Détail des projets'!C68)","v":"Emblème Canneberge inc."},{"$f":"IF(LEN('Détail des projets'!G68)=0,\"\",'Détail des projets'!G68)","v":"17-Centre-du-Québec"},{"$f":"IF(LEN('Détail des projets'!K68)=0,\"\",'Détail des projets'!K68)","v":225017.26},900.06904359999999,"À la fin du projet (suite au dernier versement)",8.3333333000025576,"QC-Québec","Oui",30,0,900.06904359999999,"Non","Oui",0,null,0,null,0,null,445.11611172568303,null,895.15063352568302,null,895.15063352568302,null,897.60983856284201,null,895.15063352568302,null,895.15063352568302]
[null,{"$f":"IF(LEN('Détail des projets'!B69)=0,\"\",'Détail des projets'!B69)","v":"Système de réfrigération au CO2 - Phase 2"},{"$f":"IF(LEN('Détail des projets'!C69)=0,\"\",'Détail des projets'!C69)","v":"Emblème Canneberge inc."},{"$f":"IF(LEN('Détail des projets'!G69)=0,\"\",'Détail des projets'!G69)","v":"17-Centre-du-Québec"},{"$f":"IF(LEN('Détail des projets'!K69)=0,\"\",'Détail des projets'!K69)","v":160627.49},642.50996267999994,"À la fin du projet (suite au dernier versement)",12.499999947860729,"QC-Québec","Oui",20,0,642.50996267999994,"Non","Oui",0,null,0,null,0,null,0,null,324.765964742623,null,638.99897927737698,null,640.75447097868903,null,638.99897927737698,null,638.99897927737698]
[null,{"$f":"IF(LEN('Détail des projets'!B70)=0,\"\",'Détail des projets'!B70)","v":"Efficacité énergétique impliquant un système CO2 - Édifice multilogement"},{"$f":"IF(LEN('Détail des projets'!C70)=0,\"\",'Détail des projets'!C70)","v":"Syndicat des copropriétaires du Manoir II"},{"$f":"IF(LEN('Détail des projets'!G70)=0,\"\",'Détail des projets'!G70)","v":"06-Montréal"},{"$f":"IF(LEN('Détail des projets'!K70)=0,\"\",'Détail des projets'!K70)","v":9000},0,"À la fin du projet (suite au dernier versement)",0,"QC-Québec","Oui",null,0,0,"Non","Oui"]
[null,{"$f":"IF(LEN('Détail des projets'!B71)=0,\"\",'Détail des projets'!B71)","v":"Congélateur-Agrandissement"},{"$f":"IF(LEN('Détail des projets'!C71)=0,\"\",'Détail des projets'!C71)","v":"Les Atocas de l'érable inc."},{"$f":"IF(LEN('Détail des projets'!G71)=0,\"\",'Détail des projets'!G71)","v":"17-Centre-du-Québec"},{"$f":"IF(LEN('Détail des projets'!K71)=0,\"\",'Détail des projets'!K71)","v":201226.42},246.26648632000001,"À la fin du projet (suite au dernier versement)",8.333333255477422,"QC-Québec","Oui",30,0,804.90568752000001,"Non","Oui",0,null,0,null,0,null,332.07857599868902,null,800.50729578491803,null,800.50729578491803,null,802.70649165245902,null,800.50729578491803,null,800.50729578491803]
[null,{"$f":"IF(LEN('Détail des projets'!B72)=0,\"\",'Détail des projets'!B72)","v":"Réfrigération CO2 avec récupération de chaleur - Super C - Baie St-Paul"},{"$f":"IF(LEN('Détail des projets'!C72)=0,\"\",'Détail des projets'!C72)","v":"Métro Richelieu inc."},{"$f":"IF(LEN('Détail des projets'!G72)=0,\"\",'Détail des projets'!G72)","v":"03-Capitale-Nationale"},{"$f":"IF(LEN('Détail des projets'!K72)=0,\"\",'Détail des projets'!K72)","v":56002.96},224.01184644,"À la fin du projet (suite au dernier versement)",16.66666618752534,"QC-Québec","Oui",15,0,224.01184644,"Non","Oui",0,null,0,null,0,null,55.696934497377001,null,222.787737989508,null,222.787737989508,null,223.399792214754,null,222.787737989508,null,222.787737989508]
[null,{"$f":"IF(LEN('Détail des projets'!B73)=0,\"\",'Détail des projets'!B73)","v":"Réfrigération CO2 avec récupération de chaleur - Metro Drummondville"},{"$f":"IF(LEN('Détail des projets'!C73)=0,\"\",'Détail des projets'!C73)","v":"Métro Richelieu inc."},{"$f":"IF(LEN('Détail des projets'!G73)=0,\"\",'Détail des projets'!G73)","v":"17-Centre-du-Québec"},{"$f":"IF(LEN('Détail des projets'!K73)=0,\"\",'Détail des projets'!K73)","v":77482.67},309.93067380000002,"À la fin du projet (suite au dernier versement)",16.666667000074558,"QC-Québec","Oui",15,0,309.93067380000002,"Non","Oui",0,null,0,null,0,null,0,null,0,null,0,null,187.99073656721299,null,308.237063560656,null,308.237063560656]
[null,{"$f":"IF(LEN('Détail des projets'!B74)=0,\"\",'Détail des projets'!B74)","v":"Remplacement du système de réfrigération et amélioration de l’efficacité énergétique du complexe"},{"$f":"IF(LEN('Détail des projets'!C74)=0,\"\",'Détail des projets'!C74)","v":"Complexe sportif Kirkland"},{"$f":"IF(LEN('Détail des projets'!G74)=0,\"\",'Détail des projets'!G74)","v":"06-Montréal"},{"$f":"IF(LEN('Détail des projets'!K74)=0,\"\",'Détail des projets'!K74)","v":41212.444082499998},183.42993956000001,"À la fin du projet (suite au dernier versement)",8.9870703073571878,"QC-Québec","Oui",25,0,183.42993956000001,"Non","Oui",0,null,0,null,0,null,0,null,39.091626463606602,null,182.427590163497,null,182.92876486174899,null,182.427590163497,null,182.427590163497]
[null,{"$f":"IF(LEN('Détail des projets'!B75)=0,\"\",'Détail des projets'!B75)","v":"Réfrigération CO2 avec récupération de chaleur (8188)"},{"$f":"IF(LEN('Détail des projets'!C75)=0,\"\",'Détail des projets'!C75)","v":"Sobeys Capital Incorporée"},{"$f":"IF(LEN('Détail des projets'!G75)=0,\"\",'Détail des projets'!G75)","v":"03-Capitale-Nationale"},{"$f":"IF(LEN('Détail des projets'!K75)=0,\"\",'Détail des projets'!K75)","v":106813.37},427.25346472000001,"À la fin du projet (suite au dernier versement)",17.88965915002688,"QC-Québec","Oui",13.9745540618896,0,427.25346472000001,"Non","Oui",0,null,0,null,0,null,0,null,0,null,59.535318854426201,null,426.08610552677601,null,424.91874633355201,null,424.91874633355201]
[null,{"$f":"IF(LEN('Détail des projets'!B76)=0,\"\",'Détail des projets'!B76)","v":"Réfrigération CO2 avec récupération de chaleur (08092)"},{"$f":"IF(LEN('Détail des projets'!C76)=0,\"\",'Détail des projets'!C76)","v":"Sobeys Capital Incorporée"},{"$f":"IF(LEN('Détail des projets'!G76)=0,\"\",'Détail des projets'!G76)","v":"05-Estrie"},{"$f":"IF(LEN('Détail des projets'!K76)=0,\"\",'Détail des projets'!K76)","v":159937.5},695.26685318800003,"À la fin du projet (suite au dernier versement)",17.817447519378764,"QC-Québec","Oui",14.033415794372599,0,639.64855318800005,"Non","Oui",0,null,0,null,0,null,0,null,312.833582023639,null,636.15320590281999,null,637.90087954541002,null,636.15320590281999,null,636.15320590281999]
[null,{"$f":"IF(LEN('Détail des projets'!B77)=0,\"\",'Détail des projets'!B77)","v":"Réfrigération CO2 avec récupération de chaleur (134)"},{"$f":"IF(LEN('Détail des projets'!C77)=0,\"\",'Détail des projets'!C77)","v":"Sobeys Capital Incorporée"},{"$f":"IF(LEN('Détail des projets'!G77)=0,\"\",'Détail des projets'!G77)","v":"03-Capitale-Nationale"},{"$f":"IF(LEN('Détail des projets'!K77)=0,\"\",'Détail des projets'!K77)","v":141557.51999999999},566.23006551599997,"À la fin du projet (suite au dernier versement)",15.62203820213241,"QC-Québec","Oui",14.955758094787599,0,605.88028080000004,"Non","Oui",0,null,0,null,0,null,0,null,355.91327970491801,null,602.56945959344296,null,604.22487019672099,null,602.56945959344296,null,602.56945959344296]
[null,{"$f":"IF(LEN('Détail des projets'!B78)=0,\"\",'Détail des projets'!B78)","v":"Système de réfrigération CO2 avec récupération de chaleur - Super C Saint-Hyacinthe"},{"$f":"IF(LEN('Détail des projets'!C78)=0,\"\",'Détail des projets'!C78)","v":"Métro Richelieu inc."},{"$f":"IF(LEN('Détail des projets'!G78)=0,\"\",'Détail des projets'!G78)","v":"16-Montérégie"},{"$f":"IF(LEN('Détail des projets'!K78)=0,\"\",'Détail des projets'!K78)","v":75313.399999999994},301.25361096,"À la fin du projet (suite au dernier versement)",16.666666060311552,"QC-Québec","Oui",15,0,301.25361096,"Non","Oui",0,null,0,null,0,null,0,null,0,null,0,null,242.813702822951,null,299.60741636458999,null,299.60741636458999]
[null,{"$f":"IF(LEN('Détail des projets'!B79)=0,\"\",'Détail des projets'!B79)","v":"Réfrigération CO2 avec récupération de chaleur (88029)"},{"$f":"IF(LEN('Détail des projets'!C79)=0,\"\",'Détail des projets'!C79)","v":"Sobeys Capital Incorporée"},{"$f":"IF(LEN('Détail des projets'!G79)=0,\"\",'Détail des projets'!G79)","v":"16-Montérégie"},{"$f":"IF(LEN('Détail des projets'!K79)=0,\"\",'Détail des projets'!K79)","v":171672},770.19963072400003,"À la fin du projet (suite au dernier versement)",18.159402135091607,"QC-Québec","Oui",15,0,630.24101315999997,"Non","Oui",0,null,0,null,0,null,0,null,489.03947469245901,null,626.79707319737702,null,628.519043178689,null,626.79707319737702,null,626.79707319737702]
[null,{"$f":"IF(LEN('Détail des projets'!B80)=0,\"\",'Détail des projets'!B80)","v":"Réfrigération CO2 avec récupération de chaleur (8340)"},{"$f":"IF(LEN('Détail des projets'!C80)=0,\"\",'Détail des projets'!C80)","v":"Sobeys Capital Incorporée"},{"$f":"IF(LEN('Détail des projets'!G80)=0,\"\",'Détail des projets'!G80)","v":"04-Mauricie"},{"$f":"IF(LEN('Détail des projets'!K80)=0,\"\",'Détail des projets'!K80)","v":127767.62},511.07047437599999,"À la fin du projet (suite au dernier versement)",17.743221685540256,"QC-Québec","Oui",15,0,480.06170944000002,"Non","Oui",0,null,0,null,0,null,0,null,373.81854423606597,null,477.43842141027301,null,478.750065425137,null,477.43842141027301,null,477.43842141027301]
[null,{"$f":"IF(LEN('Détail des projets'!B81)=0,\"\",'Détail des projets'!B81)","v":"Aréna Michael-Bilodeau : Réfrigération au CO2"},{"$f":"IF(LEN('Détail des projets'!C81)=0,\"\",'Détail des projets'!C81)","v":"Ville de Saint-Bruno-de-Montarville"},{"$f":"IF(LEN('Détail des projets'!G81)=0,\"\",'Détail des projets'!G81)","v":"16-Montérégie"},{"$f":"IF(LEN('Détail des projets'!K81)=0,\"\",'Détail des projets'!K81)","v":61566.62},246.26648632000001,"À la fin du projet (suite au dernier versement)",9.9999997433674359,"QC-Québec","Oui",25,0,246.26648632000001,"Non","Oui",0,null,0,null,0,null,0,null,0,null,87.471702791256803,null,245.59362706776,null,244.92076781551901,null,244.92076781551901]
[null,{"$f":"IF(LEN('Détail des projets'!B82)=0,\"\",'Détail des projets'!B82)","v":"Étude de faisabilité en efficacité énergétique - CSRJQ"},{"$f":"IF(LEN('Détail des projets'!C82)=0,\"\",'Détail des projets'!C82)","v":"Centre sportif régional les Jardins du Québec inc."},{"$f":"IF(LEN('Détail des projets'!G82)=0,\"\",'Détail des projets'!G82)","v":"16-Montérégie"},{"$f":"IF(LEN('Détail des projets'!K82)=0,\"\",'Détail des projets'!K82)","v":7750},0,"À la fin du projet (suite au dernier versement)",0,"QC-Québec","Oui",null,0,0,"Non","Oui"]
[null,{"$f":"IF(LEN('Détail des projets'!B83)=0,\"\",'Détail des projets'!B83)","v":"Agrandissement Centre de distribution et entrepôt réfrigéré de Michal"},{"$f":"IF(LEN('Détail des projets'!C83)=0,\"\",'Détail des projets'!C83)","v":"Michal inc."},{"$f":"IF(LEN('Détail des projets'!G83)=0,\"\",'Détail des projets'!G83)","v":"06-Montréal"},{"$f":"IF(LEN('Détail des projets'!K83)=0,\"\",'Détail des projets'!K83)","v":159240},637.15017083999999,"À la fin du projet (suite au dernier versement)",9.9970152901356162,"QC-Québec","Oui",25,0,637.15017083999999,"Non","Oui",0,null,0,null,0,null,0,null,271.57220396459002,null,633.66847591737701,null,635.40932337868799,null,633.66847591737701,null,633.66847591737701]
[null,{"$f":"IF(LEN('Détail des projets'!B84)=0,\"\",'Détail des projets'!B84)","v":"Réfrigération CO2 avec récupération de chaleur"},{"$f":"IF(LEN('Détail des projets'!C84)=0,\"\",'Détail des projets'!C84)","v":"Les Viandes Concord"},{"$f":"IF(LEN('Détail des projets'!G84)=0,\"\",'Détail des projets'!G84)","v":"15-Laurentides"},{"$f":"IF(LEN('Détail des projets'!K84)=0,\"\",'Détail des projets'!K84)","v":316347.55443850002},1265.37858304,"À la fin du projet (suite au dernier versement)",9.7494977531915321,"QC-Québec","Oui",25.641407012939499,0,1265.43658304,"Non","Oui",0,null,0,null,0,null,0,null,124.469172102295,null,1258.5216290343201,null,1261.9791060371599,null,1258.5216290343201,null,1258.5216290343201]
[null,{"$f":"IF(LEN('Détail des projets'!B85)=0,\"\",'Détail des projets'!B85)","v":"Réfrigération CO2 avec récupération de chaleur (88093)"},{"$f":"IF(LEN('Détail des projets'!C85)=0,\"\",'Détail des projets'!C85)","v":"Sobeys Capital Incorporée"},{"$f":"IF(LEN('Détail des projets'!G85)=0,\"\",'Détail des projets'!G85)","v":"06-Montréal"},{"$f":"IF(LEN('Détail des projets'!K85)=0,\"\",'Détail des projets'!K85)","v":171672},746.76212694000003,"À la fin du projet (suite au dernier versement)",17.450234436215013,"QC-Québec","Oui",15,0,655.85365295999998,"Non","Oui",0,null,0,null,0,null,0,null,0,null,0,null,537.58496144262301,null,652.26975321704901,null,652.26975321704901]
[null,{"$f":"IF(LEN('Détail des projets'!B86)=0,\"\",'Détail des projets'!B86)","v":"Système de réfrigération au CO2 avec récupération de chaleur"},{"$f":"IF(LEN('Détail des projets'!C86)=0,\"\",'Détail des projets'!C86)","v":"Distribution Alimentaire Aubut inc."},{"$f":"IF(LEN('Détail des projets'!G86)=0,\"\",'Détail des projets'!G86)","v":"13-Laval"},{"$f":"IF(LEN('Détail des projets'!K86)=0,\"\",'Détail des projets'!K86)","v":143297.1},675.42681059999995,"À la fin du projet (suite au dernier versement)",7.1925588450519662,"QC-Québec","Oui",29.496852874755898,0,675.42681059999995,"Non","Oui",0,null,0,null,0,null,0,null,241.75112619836099,null,671.73595371147496,null,673.58138215573797,null,671.73595371147496,null,671.73595371147496]
[null,{"$f":"IF(LEN('Détail des projets'!B87)=0,\"\",'Détail des projets'!B87)","v":"Implantation d'un système de réfrigération au CO2"},{"$f":"IF(LEN('Détail des projets'!C87)=0,\"\",'Détail des projets'!C87)","v":"Frigora Solutions d'Entreposage inc."},{"$f":"IF(LEN('Détail des projets'!G87)=0,\"\",'Détail des projets'!G87)","v":"16-Montérégie"},{"$f":"IF(LEN('Détail des projets'!K87)=0,\"\",'Détail des projets'!K87)","v":222116.85},804.90568752000001,"À la fin du projet (suite au dernier versement)",9.9983241586162279,"QC-Québec","Oui",25,0,888.61631799999998,"Non","Oui",0,null,0,null,0,null,0,null,0,null,769.64855957923498,null,886.18840456284204,null,883.76049112568296,null,883.76049112568296]
[null,{"$f":"IF(LEN('Détail des projets'!B88)=0,\"\",'Détail des projets'!B88)","v":"Implantation d'une système de réfrigération au CO2"},{"$f":"IF(LEN('Détail des projets'!C88)=0,\"\",'Détail des projets'!C88)","v":"Complexe Sportif Saint-Raphaël"},{"$f":"IF(LEN('Détail des projets'!G88)=0,\"\",'Détail des projets'!G88)","v":"06-Montréal"},{"$f":"IF(LEN('Détail des projets'!K88)=0,\"\",'Détail des projets'!K88)","v":52710.62},210.8425,"À la fin du projet (suite au dernier versement)",10.072673043150148,"QC-Québec","Oui",24.819625854492202,0,210.8425,"Non","Oui",0,null,0,null,0,null,0,null,57.031168032786901,null,209.690355191257,null,210.26642759562799,null,209.690355191257,null,209.690355191257]
[null,{"$f":"IF(LEN('Détail des projets'!B89)=0,\"\",'Détail des projets'!B89)","v":"Réfrigération CO2 avec récupération de chaleur (075016)"},{"$f":"IF(LEN('Détail des projets'!C89)=0,\"\",'Détail des projets'!C89)","v":"Sobeys Capital Incorporée"},{"$f":"IF(LEN('Détail des projets'!G89)=0,\"\",'Détail des projets'!G89)","v":"06-Montréal"},{"$f":"IF(LEN('Détail des projets'!K89)=0,\"\",'Détail des projets'!K89)","v":143894.01},567.19567949999998,"À la fin du projet (suite au dernier versement)",17.119774608264962,"QC-Québec","Oui",15,0,560.34230704000004,"Non","Oui",0,null,0,null,0,null,0,null,0,null,468.48291244327902,null,558.81131713005504,null,557.28032722010903,null,557.28032722010903]
[null,{"$f":"IF(LEN('Détail des projets'!B90)=0,\"\",'Détail des projets'!B90)","v":"Système de réfrigération au CO2 avec récupération de chaleur"},{"$f":"IF(LEN('Détail des projets'!C90)=0,\"\",'Détail des projets'!C90)","v":"Métro Richelieu inc."},{"$f":"IF(LEN('Détail des projets'!G90)=0,\"\",'Détail des projets'!G90)","v":"07-Outaouais"},{"$f":"IF(LEN('Détail des projets'!K90)=0,\"\",'Détail des projets'!K90)","v":78223.58},312.89433680000002,"À la fin du projet (suite au dernier versement)",12.499999328846913,"QC-Québec","Oui",20,0,312.89433680000002,"Non","Oui",0,null,0,null,0,null,0,null,0,null,0,null,165.85109655519099,null,311.18453168087399,null,311.18453168087399]
[null,{"$f":"IF(LEN('Détail des projets'!B91)=0,\"\",'Détail des projets'!B91)","v":"Agrandissement du site"},{"$f":"IF(LEN('Détail des projets'!C91)=0,\"\",'Détail des projets'!C91)","v":"Frigo Chambly"},{"$f":"IF(LEN('Détail des projets'!G91)=0,\"\",'Détail des projets'!G91)","v":"16-Montérégie"},{"$f":"IF(LEN('Détail des projets'!K91)=0,\"\",'Détail des projets'!K91)","v":146250},755.89063999999996,"À la fin du projet (suite au dernier versement)",7.739214762601109,"QC-Québec","Oui",25,0,755.89063999999996,"Non","Oui",0,null,0,null,0,null,0,null,394.467519781421,null,751.76009005464505,null,753.82536502732205,null,751.76009005464505,null,751.76009005464505]
[null,{"$f":"IF(LEN('Détail des projets'!B92)=0,\"\",'Détail des projets'!B92)","v":"Entrepôt frigorifique pour aliments congelés"},{"$f":"IF(LEN('Détail des projets'!C92)=0,\"\",'Détail des projets'!C92)","v":"Frigo Chambly"},{"$f":"IF(LEN('Détail des projets'!G92)=0,\"\",'Détail des projets'!G92)","v":"16-Montérégie"},{"$f":"IF(LEN('Détail des projets'!K92)=0,\"\",'Détail des projets'!K92)","v":126978.12},507.91250000000002,"À la fin du projet (suite au dernier versement)",9.9999996062313876,"QC-Québec","Oui",25,0,507.91250000000002,"Non","Oui",0,null,0,null,0,null,0,null,0,null,0,null,253.95625000000001,null,505.137021857923,null,505.137021857923]
[null,{"$f":"IF(LEN('Détail des projets'!B93)=0,\"\",'Détail des projets'!B93)","v":"Réfrigération CO2 avec récupération de chaleur"},{"$f":"IF(LEN('Détail des projets'!C93)=0,\"\",'Détail des projets'!C93)","v":"Métro Richelieu inc."},{"$f":"IF(LEN('Détail des projets'!G93)=0,\"\",'Détail des projets'!G93)","v":"07-Outaouais"},{"$f":"IF(LEN('Détail des projets'!K93)=0,\"\",'Détail des projets'!K93)","v":75072.55},300.29020012000001,"À la fin du projet (suite au dernier versement)",15.612152726334575,"QC-Québec","Oui",16.013166427612301,0,300.29020012000001,"Non","Oui",0,null,0,null,0,null,0,null,0,null,0,null,188.70695635956301,null,298.64927006469901,null,298.64927006469901]
[null,{"$f":"IF(LEN('Détail des projets'!B94)=0,\"\",'Détail des projets'!B94)","v":"Réfrigération au CO2 - Verger Hamel 2017"},{"$f":"IF(LEN('Détail des projets'!C94)=0,\"\",'Détail des projets'!C94)","v":"Verger Hamel S.E.N.C."},{"$f":"IF(LEN('Détail des projets'!G94)=0,\"\",'Détail des projets'!G94)","v":"16-Montérégie"},{"$f":"IF(LEN('Détail des projets'!K94)=0,\"\",'Détail des projets'!K94)","v":33339.19},133.35676964000001,"À la fin du projet (suite au dernier versement)",9.9999992771270616,"QC-Québec","Oui",25,0,133.35676964000001,"Non","Oui",0,null,0,null,0,null,0,null,0,null,47.731521373879801,null,132.992406881421,null,132.628044122842,null,132.628044122842]
[null,{"$f":"IF(LEN('Détail des projets'!B95)=0,\"\",'Détail des projets'!B95)","v":"Étude de faisabilité en efficacité énergétique"},{"$f":"IF(LEN('Détail des projets'!C95)=0,\"\",'Détail des projets'!C95)","v":"Ville de Saint-Jérôme"},{"$f":"IF(LEN('Détail des projets'!G95)=0,\"\",'Détail des projets'!G95)","v":"15-Laurentides"},{"$f":"IF(LEN('Détail des projets'!K95)=0,\"\",'Détail des projets'!K95)","v":8635.02},0,"À la fin du projet (suite au dernier versement)",0,"QC-Québec","Oui",null,0,0,"Non","Oui"]
[null,{"$f":"IF(LEN('Détail des projets'!B96)=0,\"\",'Détail des projets'!B96)","v":"Étude de faisabilité en efficacité énergétique"},{"$f":"IF(LEN('Détail des projets'!C96)=0,\"\",'Détail des projets'!C96)","v":"La Corporation de développement culturel et sportif de Rosemère inc."},{"$f":"IF(LEN('Détail des projets'!G96)=0,\"\",'Détail des projets'!G96)","v":"15-Laurentides"},{"$f":"IF(LEN('Détail des projets'!K96)=0,\"\",'Détail des projets'!K96)","v":8000},0,"À la fin du projet (suite au dernier versement)",0,"QC-Québec","Oui",null,0,0,"Non","Oui"]
[null,{"$f":"IF(LEN('Détail des projets'!B97)=0,\"\",'Détail des projets'!B97)","v":"Étude d'efficacité énergétique"},{"$f":"IF(LEN('Détail des projets'!C97)=0,\"\",'Détail des projets'!C97)","v":"Ville de Saint-Pamphile"},{"$f":"IF(LEN('Détail des projets'!G97)=0,\"\",'Détail des projets'!G97)","v":"12-Chaudière-Appalaches"},{"$f":"IF(LEN('Détail des projets'!K97)=0,\"\",'Détail des projets'!K97)","v":8750},0,"À la fin du projet (suite au dernier versement)",0,"QC-Québec","Oui",null,0,0,"Non","Oui"]
[null,{"$f":"IF(LEN('Détail des projets'!B98)=0,\"\",'Détail des projets'!B98)","v":"Agrandissement Phase II - Réfrigération au CO2 avec récupération de chaleur"},{"$f":"IF(LEN('Détail des projets'!C98)=0,\"\",'Détail des projets'!C98)","v":"Première société de placement Manuvie"},{"$f":"IF(LEN('Détail des projets'!G98)=0,\"\",'Détail des projets'!G98)","v":"17-Centre-du-Québec"},{"$f":"IF(LEN('Détail des projets'!K98)=0,\"\",'Détail des projets'!K98)","v":214112.518235},1115.93272368,"À la fin du projet (suite au dernier versement)",7.6747464678309036,"QC-Québec","Oui",25,0,1115.93272368,"Non","Oui",0,null,0,null,0,null,0,null,0,null,0,null,621.99528860852502,null,1109.8347306544299,null,1109.8347306544299]
[null,{"$f":"IF(LEN('Détail des projets'!B99)=0,\"\",'Détail des projets'!B99)","v":"Système de refrigération au CO2"},{"$f":"IF(LEN('Détail des projets'!C99)=0,\"\",'Détail des projets'!C99)","v":"La Fernandière inc."},{"$f":"IF(LEN('Détail des projets'!G99)=0,\"\",'Détail des projets'!G99)","v":"04-Mauricie"},{"$f":"IF(LEN('Détail des projets'!K99)=0,\"\",'Détail des projets'!K99)","v":304233.5},1216.93400176,"À la fin du projet (suite au dernier versement)",9.9991996456332295,"QC-Québec","Oui",25,0,1217.03140564,"Non","Oui",0,null,0,null,0,null,0,null,39.902669037377002,null,1210.3809608004401,null,1213.7061832202201,null,1210.3809608004401,null,1210.3809608004401]
[null,{"$f":"IF(LEN('Détail des projets'!B100)=0,\"\",'Détail des projets'!B100)","v":"Système de réfrigération au CO2"},{"$f":"IF(LEN('Détail des projets'!C100)=0,\"\",'Détail des projets'!C100)","v":"Olymel S.E.C."},{"$f":"IF(LEN('Détail des projets'!G100)=0,\"\",'Détail des projets'!G100)","v":"16-Montérégie"},{"$f":"IF(LEN('Détail des projets'!K100)=0,\"\",'Détail des projets'!K100)","v":154631.35999999999},1040.3359190399999,"À la fin du projet (suite au dernier versement)",5.270819310016182,"QC-Québec","Oui",25,0,1173.49012292,"Non","Oui",0,null,0,null,0,null,0,null,0,null,676.52026212054602,null,1170.2838657535499,null,1167.0776085871,null,1167.0776085871]
[null,{"$f":"IF(LEN('Détail des projets'!B101)=0,\"\",'Détail des projets'!B101)","v":"Système de réfrigération au CO2."},{"$f":"IF(LEN('Détail des projets'!C101)=0,\"\",'Détail des projets'!C101)","v":"BLB Congélation inc."},{"$f":"IF(LEN('Détail des projets'!G101)=0,\"\",'Détail des projets'!G101)","v":"17-Centre-du-Québec"},{"$f":"IF(LEN('Détail des projets'!K101)=0,\"\",'Détail des projets'!K101)","v":260083.98},28.658404040000001,"À la fin du projet (suite au dernier versement)",8.3333333410231578,"QC-Québec","Oui",30,0,1040.3359190399999,"Non","Oui",0,null,0,null,0,null,0,null,321.196608883934,null,1034.6510233075401,null,1037.4934711737701,null,1034.6510233075401,null,1034.6510233075401]
[null,{"$f":"IF(LEN('Détail des projets'!B102)=0,\"\",'Détail des projets'!B102)","v":"Implantation d'un système de réfrigération au CO2"},{"$f":"IF(LEN('Détail des projets'!C102)=0,\"\",'Détail des projets'!C102)","v":"Bell Canada"},{"$f":"IF(LEN('Détail des projets'!G102)=0,\"\",'Détail des projets'!G102)","v":"16-Montérégie"},{"$f":"IF(LEN('Détail des projets'!K102)=0,\"\",'Détail des projets'!K102)","v":7164.6},28.658404040000001,"À la fin du projet (suite au dernier versement)",9.9999985902913533,"QC-Québec","Oui",25,0,28.658404040000001,"Non","Oui",0,null,0,null,0,null,0,null,0,null,0,null,12.6065657115847,null,28.501800739235001,null,28.501800739235001]
[null,{"$f":"IF(LEN('Détail des projets'!B103)=0,\"\",'Détail des projets'!B103)","v":"Installation d'un système de refroidissement au CO2 (D00197 Bell 6250, Côte-des-Neiges)"},{"$f":"IF(LEN('Détail des projets'!C103)=0,\"\",'Détail des projets'!C103)","v":"Bell Canada"},{"$f":"IF(LEN('Détail des projets'!G103)=0,\"\",'Détail des projets'!G103)","v":"06-Montréal"},{"$f":"IF(LEN('Détail des projets'!K103)=0,\"\",'Détail des projets'!K103)","v":16731.36},66.925458079999999,"À la fin du projet (suite au dernier versement)",9.9999972984869263,"QC-Québec","Oui",25,0,66.925458079999999,"Non","Oui",0,null,0,null,0,null,0,null,0,null,19.565639384043699,null,66.742601637158501,null,66.559745194316903,null,66.559745194316903]
[null,{"$f":"IF(LEN('Détail des projets'!B104)=0,\"\",'Détail des projets'!B104)","v":"Système de refrigération au CO2"},{"$f":"IF(LEN('Détail des projets'!C104)=0,\"\",'Détail des projets'!C104)","v":"9257-3195 Québec inc."},{"$f":"IF(LEN('Détail des projets'!G104)=0,\"\",'Détail des projets'!G104)","v":"16-Montérégie"},{"$f":"IF(LEN('Détail des projets'!K104)=0,\"\",'Détail des projets'!K104)","v":183680.93},734.72371364000003,"À la fin du projet (suite au dernier versement)",12.500000108203938,"QC-Québec","Oui",20,0,734.72371364000003,"Non","Oui",0,null,0,null,0,null,0,null,0,null,365.354414979453,null,732.71627179945301,null,730.70882995890702,null,730.70882995890702]
[null,{"$f":"IF(LEN('Détail des projets'!B105)=0,\"\",'Détail des projets'!B105)","v":"Installation d'un système de réfrigération au CO2 au Avril Supermarché Santé"},{"$f":"IF(LEN('Détail des projets'!C105)=0,\"\",'Détail des projets'!C105)","v":"Avril Supermarché Santé"},{"$f":"IF(LEN('Détail des projets'!G105)=0,\"\",'Détail des projets'!G105)","v":"13-Laval"},{"$f":"IF(LEN('Détail des projets'!K105)=0,\"\",'Détail des projets'!K105)","v":76889.88},307.55952303999999,"À la fin du projet (suite au dernier versement)",16.666666501928912,"QC-Québec","Oui",15,0,307.55952303999999,"Non","Oui",0,null,0,null,0,null,0,null,0,null,221.00588677464501,null,306.71919647431702,null,305.87886990863399,null,305.87886990863399]
[null,{"$f":"IF(LEN('Détail des projets'!B106)=0,\"\",'Détail des projets'!B106)","v":"Réfrigération CO2 avec récupération de chaleur (089130)"},{"$f":"IF(LEN('Détail des projets'!C106)=0,\"\",'Détail des projets'!C106)","v":"Sobeys Capital Incorporée"},{"$f":"IF(LEN('Détail des projets'!G106)=0,\"\",'Détail des projets'!G106)","v":"06-Montréal"},{"$f":"IF(LEN('Détail des projets'!K106)=0,\"\",'Détail des projets'!K106)","v":138661.74},554.64697992640004,"À la fin du projet (suite au dernier versement)",17.699892690274822,"QC-Québec","Oui",15,0,522.26960703999998,"Non","Oui",0,null,0,null,0,null,0,null,0,null,0,null,0,null,0,null,393.84265448918001]
[null,{"$f":"IF(LEN('Détail des projets'!B107)=0,\"\",'Détail des projets'!B107)","v":"Réfrigération CO2 avec récupération de chaleur (088077)"},{"$f":"IF(LEN('Détail des projets'!C107)=0,\"\",'Détail des projets'!C107)","v":"Sobeys Capital Incorporée"},{"$f":"IF(LEN('Détail des projets'!G107)=0,\"\",'Détail des projets'!G107)","v":"06-Montréal"},{"$f":"IF(LEN('Détail des projets'!K107)=0,\"\",'Détail des projets'!K107)","v":151698.57},606.79428768703701,"À la fin du projet (suite au dernier versement)",16.977530532410853,"QC-Québec","Oui",15,0,595.68368796000004,"Non","Oui",0,null,0,null,0,null,0,null,0,null,0,null,462.22450104000001,null,592.42858583999998,null,592.42858583999998]
[null,{"$f":"IF(LEN('Détail des projets'!B108)=0,\"\",'Détail des projets'!B108)","v":"Réfrigération au CO2 avec récupération de chaleur (08123)"},{"$f":"IF(LEN('Détail des projets'!C108)=0,\"\",'Détail des projets'!C108)","v":"Sobeys Capital Incorporée"},{"$f":"IF(LEN('Détail des projets'!G108)=0,\"\",'Détail des projets'!G108)","v":"14-Lanaudière"},{"$f":"IF(LEN('Détail des projets'!K108)=0,\"\",'Détail des projets'!K108)","v":171672.49},0,"À la fin du projet (suite au dernier versement)",0,"QC-Québec","Oui",15,0,671.38153623999995,"Non","Oui",0,null,0,null,0,null,0,null,0,null,0,null,0,null,616.35026277770498,null,667.71278467584705]
[null,{"$f":"IF(LEN('Détail des projets'!B109)=0,\"\",'Détail des projets'!B109)","v":"Climatisation CO2 au 4450, rue Dudemaine - Bell Canada (1033-001)"},{"$f":"IF(LEN('Détail des projets'!C109)=0,\"\",'Détail des projets'!C109)","v":"Bell Canada"},{"$f":"IF(LEN('Détail des projets'!G109)=0,\"\",'Détail des projets'!G109)","v":"06-Montréal"},{"$f":"IF(LEN('Détail des projets'!K109)=0,\"\",'Détail des projets'!K109)","v":7362.4949999999999},28.04760404,"À la fin du projet (suite au dernier versement)",17.499997479285579,"QC-Québec","Oui",15,0,28.04760404,"Non","Oui",0,null,0,null,0,null,0,null,0,null,0,null,22.989839377049201,null,27.894338444153,null,27.894338444153]
[null,{"$f":"IF(LEN('Détail des projets'!B110)=0,\"\",'Détail des projets'!B110)","v":"Réfrigération CO2 avec récupération de chaleur (000110)"},{"$f":"IF(LEN('Détail des projets'!C110)=0,\"\",'Détail des projets'!C110)","v":"Sobeys Capital Incorporée"},{"$f":"IF(LEN('Détail des projets'!G110)=0,\"\",'Détail des projets'!G110)","v":"16-Montérégie"},{"$f":"IF(LEN('Détail des projets'!K110)=0,\"\",'Détail des projets'!K110)","v":131897.03},527.58813201835096,"À la fin du projet (suite au dernier versement)",17.276251442867569,"QC-Québec","Oui",15,0,508.97241004,"Non","Oui",0,null,0,null,0,null,0,null,0,null,0,null,57.016035004480898,null,506.19114003978098,null,506.19114003978098]
[null,{"$f":"IF(LEN('Détail des projets'!B111)=0,\"\",'Détail des projets'!B111)","v":"Réfrigération au CO2 pour une nouvelle ligne de tortillas."},{"$f":"IF(LEN('Détail des projets'!C111)=0,\"\",'Détail des projets'!C111)","v":"Boulangeries Weston Québec Limitée"},{"$f":"IF(LEN('Détail des projets'!G111)=0,\"\",'Détail des projets'!G111)","v":"16-Montérégie"},{"$f":"IF(LEN('Détail des projets'!K111)=0,\"\",'Détail des projets'!K111)","v":182492.25},1182.7815840400001,"À la fin du projet (suite au dernier versement)",5.1430247833434972,"QC-Québec","Oui",30,0,1182.7815840400001,"Non","Oui",0,null,0,null,0,null,0,null,0,null,0,null,814.37420540459004,null,1176.3182966955201,null,1176.3182966955201]
[null,{"$f":"IF(LEN('Détail des projets'!B112)=0,\"\",'Détail des projets'!B112)","v":"Phase 2 : Agrandissement / Congélateur"},{"$f":"IF(LEN('Détail des projets'!C112)=0,\"\",'Détail des projets'!C112)","v":"Boulangeries Weston Québec Limitée"},{"$f":"IF(LEN('Détail des projets'!G112)=0,\"\",'Détail des projets'!G112)","v":"16-Montérégie"},{"$f":"IF(LEN('Détail des projets'!K112)=0,\"\",'Détail des projets'!K112)","v":137420.03},549.68013675999998,"À la fin du projet (suite au dernier versement)",8.3333330792461702,"QC-Québec","Oui",30,0,549.68013675999998,"Non","Oui",0,null,0,null,0,null,0,null,0,null,0,null,271.83635178568301,null,546.676420165683,null,546.676420165683]
[null,{"$f":"IF(LEN('Détail des projets'!B113)=0,\"\",'Détail des projets'!B113)","v":"Système de réfrigération au CO2 avec récupération de chaleur"},{"$f":"IF(LEN('Détail des projets'!C113)=0,\"\",'Détail des projets'!C113)","v":"Avril Supermarché Santé"},{"$f":"IF(LEN('Détail des projets'!G113)=0,\"\",'Détail des projets'!G113)","v":"05-Estrie"},{"$f":"IF(LEN('Détail des projets'!K113)=0,\"\",'Détail des projets'!K113)","v":152231.89257239999},608.92555607999998,"À la fin du projet (suite au dernier versement)",16.666721796821189,"QC-Québec","Oui",15,0,608.92555607999998,"Non","Oui",0,null,0,null,0,null,0,null,0,null,0,null,0,null,455.86230154623001,null,605.59809402491805]
[null,{"$f":"IF(LEN('Détail des projets'!B114)=0,\"\",'Détail des projets'!B114)","v":"Réfrigération au CO2 avec récupération de chaleur"},{"$f":"IF(LEN('Détail des projets'!C114)=0,\"\",'Détail des projets'!C114)","v":"Fleury Michon Amérique inc."},{"$f":"IF(LEN('Détail des projets'!G114)=0,\"\",'Détail des projets'!G114)","v":"16-Montérégie"},{"$f":"IF(LEN('Détail des projets'!K114)=0,\"\",'Détail des projets'!K114)","v":514500.28183420002},1959.99099172,"À la fin du projet (suite au dernier versement)",8.7500450088412176,"QC-Québec","Oui",30,0,1959.99099172,"Non","Oui",0,null,0,null,0,null,0,null,0,null,0,null,0,null,899.66799619934397,null,1949.2806584319101]
[null,{"$f":"IF(LEN('Détail des projets'!B115)=0,\"\",'Détail des projets'!B115)","v":"Système de réfrigération au CO2"},{"$f":"IF(LEN('Détail des projets'!C115)=0,\"\",'Détail des projets'!C115)","v":"Aliments Expresco inc."},{"$f":"IF(LEN('Détail des projets'!G115)=0,\"\",'Détail des projets'!G115)","v":"06-Montréal"},{"$f":"IF(LEN('Détail des projets'!K115)=0,\"\",'Détail des projets'!K115)","v":195000},1150.3779643600001,"À la fin du projet (suite au dernier versement)",6.7803802242851923,"QC-Québec","Oui",25,0,1150.3779643600001,"Non","Oui",0,null,0,null,0,null,0,null,0,null,0,null,169.72789638098399,null,1144.0917459755201,null,1144.0917459755201]
[null,{"$f":"IF(LEN('Détail des projets'!B116)=0,\"\",'Détail des projets'!B116)","v":"Agrandissement de l'entrepôt réfrigéré - Réfrigération au CO2"},{"$f":"IF(LEN('Détail des projets'!C116)=0,\"\",'Détail des projets'!C116)","v":"Artic Blast Mtl inc."},{"$f":"IF(LEN('Détail des projets'!G116)=0,\"\",'Détail des projets'!G116)","v":"14-Lanaudière"},{"$f":"IF(LEN('Détail des projets'!K116)=0,\"\",'Détail des projets'!K116)","v":80170.649999999994},320.68259999999998,"À la fin du projet (suite au dernier versement)",7.7881314447237848,"QC-Québec","Oui",25,0,411.75807351999998,"Non","Oui",0,null,0,null,0,null,0,null,0,null,0,null,227.25445587715799,null,409.50802940240402,null,409.50802940240402]
[null,{"$f":"IF(LEN('Détail des projets'!B117)=0,\"\",'Détail des projets'!B117)","v":"Agrandissement de l'entrepôt réfrigéré d'Artic Blast - Phase II"},{"$f":"IF(LEN('Détail des projets'!C117)=0,\"\",'Détail des projets'!C117)","v":"Artic Blast Mtl inc."},{"$f":"IF(LEN('Détail des projets'!G117)=0,\"\",'Détail des projets'!G117)","v":"14-Lanaudière"},{"$f":"IF(LEN('Détail des projets'!K117)=0,\"\",'Détail des projets'!K117)","v":47427.953999999998},180.67789999999999,"À la fin du projet (suite au dernier versement)",10.500001162289355,"QC-Québec","Oui",25,0,180.67789999999999,"Non","Oui",0,null,0,null,0,null,0,null,0,null,0,null,0,null,0,null,0]
[null,{"$f":"IF(LEN('Détail des projets'!B118)=0,\"\",'Détail des projets'!B118)","v":"Réfrigération CO2 avec récupération de chaleur"},{"$f":"IF(LEN('Détail des projets'!C118)=0,\"\",'Détail des projets'!C118)","v":"Métro Richelieu inc."},{"$f":"IF(LEN('Détail des projets'!G118)=0,\"\",'Détail des projets'!G118)","v":"06-Montréal"},{"$f":"IF(LEN('Détail des projets'!K118)=0,\"\",'Détail des projets'!K118)","v":36941.384228000003},147.7655862,"À la fin du projet (suite au dernier versement)",16.666661107411041,"QC-Québec","Oui",15,0,147.7655862,"Non","Oui",0,null,0,null,0,null,0,null,0,null,0,null,20.186555491803301,null,146.958123980328,null,146.958123980328]
[null,{"$f":"IF(LEN('Détail des projets'!B119)=0,\"\",'Détail des projets'!B119)","v":"Réfrigération CO2 avec récupération de chaleur (089125)"},{"$f":"IF(LEN('Détail des projets'!C119)=0,\"\",'Détail des projets'!C119)","v":"Sobeys Capital Incorporée"},{"$f":"IF(LEN('Détail des projets'!G119)=0,\"\",'Détail des projets'!G119)","v":"06-Montréal"},{"$f":"IF(LEN('Détail des projets'!K119)=0,\"\",'Détail des projets'!K119)","v":113659.35},432.98799663599999,"À la fin du projet (suite au dernier versement)",14.87837252784705,"QC-Québec","Oui",15,0,509.28218027999998,"Non","Oui",0,null,0,null,0,null,0,null,0,null,0,null,140.53961805540999,null,506.49921754623,null,506.49921754623]
[null,{"$f":"IF(LEN('Détail des projets'!B120)=0,\"\",'Détail des projets'!B120)","v":"Études pour le remplacement du système au R-22"},{"$f":"IF(LEN('Détail des projets'!C120)=0,\"\",'Détail des projets'!C120)","v":"La Société d'exploitation des glaces de Boucherville inc."},{"$f":"IF(LEN('Détail des projets'!G120)=0,\"\",'Détail des projets'!G120)","v":"16-Montérégie"},{"$f":"IF(LEN('Détail des projets'!K120)=0,\"\",'Détail des projets'!K120)","v":9950},0,"À la fin du projet (suite au dernier versement)",0,"QC-Québec","Oui",null,0,270.70800000000003,"Non","Oui",null,null,null,null,null,null,null,null,null,null,null,null,null,null,224.110721311475,null,269.228721311475]
[null,{"$f":"IF(LEN('Détail des projets'!B121)=0,\"\",'Détail des projets'!B121)","v":"075023 IGA - Ville Mont-Royal -Montréal"},{"$f":"IF(LEN('Détail des projets'!C121)=0,\"\",'Détail des projets'!C121)","v":"Sobeys Capital Incorporée"},{"$f":"IF(LEN('Détail des projets'!G121)=0,\"\",'Détail des projets'!G121)","v":"06-Montréal"},{"$f":"IF(LEN('Détail des projets'!K121)=0,\"\",'Détail des projets'!K121)","v":119937.5},654.207680222146,"À la fin du projet (suite au dernier versement)",12.222163656987684,"QC-Québec","Oui",15,0,654.207680222146,"Non","Oui",0,null,0,null,0,null,0,null,0,null,0,null,121.546782117776,null,650.632774865741,null,650.632774865741]
[null,{"$f":"IF(LEN('Détail des projets'!B122)=0,\"\",'Détail des projets'!B122)","v":"Métro Beaumont - Ville Mont-Royal"},{"$f":"IF(LEN('Détail des projets'!C122)=0,\"\",'Détail des projets'!C122)","v":"Métro Richelieu inc."},{"$f":"IF(LEN('Détail des projets'!G122)=0,\"\",'Détail des projets'!G122)","v":"06-Montréal"},{"$f":"IF(LEN('Détail des projets'!K122)=0,\"\",'Détail des projets'!K122)","v":58135.47},232.54189596000001,"À la fin du projet (suite au dernier versement)",9.9999993136720615,"QC-Québec","Oui",25,0,232.54189596000001,"Non","Oui",0,null,0,null,0,null,0,null,0,null,0,null,26.0497752304918,null,231.27117521704901,null,231.27117521704901]
[null,{"$f":"IF(LEN('Détail des projets'!B123)=0,\"\",'Détail des projets'!B123)","v":"Réfrigération au CO2 avec récupération de chaleur"},{"$f":"IF(LEN('Détail des projets'!C123)=0,\"\",'Détail des projets'!C123)","v":"3246256 Canada inc."},{"$f":"IF(LEN('Détail des projets'!G123)=0,\"\",'Détail des projets'!G123)","v":"06-Montréal"},{"$f":"IF(LEN('Détail des projets'!K123)=0,\"\",'Détail des projets'!K123)","v":102939.3146302},411.75807351999998,"À la fin du projet (suite au dernier versement)",8.3333168390362289,"QC-Québec","Oui",30,0,411.75807351999998,"Non","Oui",0,null,0,null,0,null,0,null,0,null,0,null,0,null,0,null,400.50785293202199]
[null,{"$f":"IF(LEN('Détail des projets'!B124)=0,\"\",'Détail des projets'!B124)","v":"Réfrigération CO2 avec récupération de chaleur (000332)"},{"$f":"IF(LEN('Détail des projets'!C124)=0,\"\",'Détail des projets'!C124)","v":"Sobeys Capital Incorporée"},{"$f":"IF(LEN('Détail des projets'!G124)=0,\"\",'Détail des projets'!G124)","v":"16-Montérégie"},{"$f":"IF(LEN('Détail des projets'!K124)=0,\"\",'Détail des projets'!K124)","v":103451.55},413.80621595999997,"À la fin du projet (suite au dernier versement)",19.895982545353295,"QC-Québec","Oui",15,0,346.64133748,"Non","Oui",0,null,0,null,0,null,0,null,0,null,0,null,45.461159013770498,null,344.74712252109299,null,344.74712252109299]
[null,{"$f":"IF(LEN('Détail des projets'!B125)=0,\"\",'Détail des projets'!B125)","v":"Système de réfrigération au CO2"},{"$f":"IF(LEN('Détail des projets'!C125)=0,\"\",'Détail des projets'!C125)","v":"Burnbrae Farms Limited"},{"$f":"IF(LEN('Détail des projets'!G125)=0,\"\",'Détail des projets'!G125)","v":"16-Montérégie"},{"$f":"IF(LEN('Détail des projets'!K125)=0,\"\",'Détail des projets'!K125)","v":142297.32999999999},569.18930172,"À la fin du projet (suite au dernier versement)",10.000000321158531,"QC-Québec","Oui",25,0,569.18930172,"Non","Oui",0,null,0,null,0,null,0,null,0,null,0,null,387.235344612787,null,566.07897766688495,null,566.07897766688495]
[null,{"$f":"IF(LEN('Détail des projets'!B126)=0,\"\",'Détail des projets'!B126)","v":"Réfrigération CO2 avec récupération de chaleur - Site Farnham"},{"$f":"IF(LEN('Détail des projets'!C126)=0,\"\",'Détail des projets'!C126)","v":"Cannara Biotech (OPS) Inc."},{"$f":"IF(LEN('Détail des projets'!G126)=0,\"\",'Détail des projets'!G126)","v":"05-Estrie"},{"$f":"IF(LEN('Détail des projets'!K126)=0,\"\",'Détail des projets'!K126)","v":346495.27810600499},1319.98692084,"À la fin du projet (suite au dernier versement)",8.7499674589074932,"QC-Québec","Oui",30,0,1319.98692084,"Non","Oui",0,null,0,null,0,null,0,null,0,null,0,null,385.89781565541,null,1312.77387755672,null,1312.77387755672]
[null,{"$f":"IF(LEN('Détail des projets'!B127)=0,\"\",'Détail des projets'!B127)","v":"Système de réfrigération au CO2 - Adonis Galerie des Sources"},{"$f":"IF(LEN('Détail des projets'!C127)=0,\"\",'Détail des projets'!C127)","v":"Métro Richelieu inc."},{"$f":"IF(LEN('Détail des projets'!G127)=0,\"\",'Détail des projets'!G127)","v":"06-Montréal"},{"$f":"IF(LEN('Détail des projets'!K127)=0,\"\",'Détail des projets'!K127)","v":135488.92000000001},541.95569039999998,"À la fin du projet (suite au dernier versement)",16.666666346837324,"QC-Québec","Oui",15,0,541.95569039999998,"Non","Oui",0,null,0,null,0,null,0,null,0,null,0,null,519.744391613115,null,538.99418389508196,null,538.99418389508196]
[null,{"$f":"IF(LEN('Détail des projets'!B128)=0,\"\",'Détail des projets'!B128)","v":"Études pour le remplacement du système au R-22"},{"$f":"IF(LEN('Détail des projets'!C128)=0,\"\",'Détail des projets'!C128)","v":"Les Loisirs Saint-Fabien inc."},{"$f":"IF(LEN('Détail des projets'!G128)=0,\"\",'Détail des projets'!G128)","v":"01-Bas-Saint-Laurent"},{"$f":"IF(LEN('Détail des projets'!K128)=0,\"\",'Détail des projets'!K128)","v":5400},0,"À la fin du projet (suite au dernier versement)",0,"QC-Québec","Oui",null,0,114.03,"Non","Oui",null,null,null,null,null,null,null,null,null,null,null,null,null,null,55.860510436589898,null,113.406885245902]
[null,{"$f":"IF(LEN('Détail des projets'!B129)=0,\"\",'Détail des projets'!B129)","v":"Nouvelle patinoire extérieure de Joliette - Système de réfrigération au CO2"},{"$f":"IF(LEN('Détail des projets'!C129)=0,\"\",'Détail des projets'!C129)","v":"Ville de Joliette"},{"$f":"IF(LEN('Détail des projets'!G129)=0,\"\",'Détail des projets'!G129)","v":"14-Lanaudière"},{"$f":"IF(LEN('Détail des projets'!K129)=0,\"\",'Détail des projets'!K129)","v":39149.050000000003},156.59618520000001,"À la fin du projet (suite au dernier versement)",10.000000945106038,"QC-Québec","Oui",25,0,156.59618520000001,"Non","Oui",0,null,0,null,0,null,0,null,0,null,0,null,64.606622855737697,null,155.74046834098399,null,155.74046834098399]
[null,{"$f":"IF(LEN('Détail des projets'!B130)=0,\"\",'Détail des projets'!B130)","v":"Réfrigération au CO2 avec récupération de chaleur"},{"$f":"IF(LEN('Détail des projets'!C130)=0,\"\",'Détail des projets'!C130)","v":"11077422 Canada inc."},{"$f":"IF(LEN('Détail des projets'!G130)=0,\"\",'Détail des projets'!G130)","v":"02-Saguenay--Lac-Saint-Jean"},{"$f":"IF(LEN('Détail des projets'!K130)=0,\"\",'Détail des projets'!K130)","v":272357.23985000001},1089.4295984400001,"À la fin du projet (suite au dernier versement)",8.3376984621083743,"QC-Québec","Oui",30,0,1088.8585984399999,"Non","Oui",0,null,0,null,0,null,0,null,0,null,0,null,636.65502750316898,null,1082.90855145399,null,1082.90855145399]
[null,{"$f":"IF(LEN('Détail des projets'!B131)=0,\"\",'Détail des projets'!B131)","v":"Réfrigération au CO2"},{"$f":"IF(LEN('Détail des projets'!C131)=0,\"\",'Détail des projets'!C131)","v":"Verger des Bois-Francs inc."},{"$f":"IF(LEN('Détail des projets'!G131)=0,\"\",'Détail des projets'!G131)","v":"16-Montérégie"},{"$f":"IF(LEN('Détail des projets'!K131)=0,\"\",'Détail des projets'!K131)","v":39289},157.156017523636,"À la fin du projet (suite au dernier versement)",8.3333324041274253,"QC-Québec","Oui",30,0,157.156017523636,"Non","Oui",0,null,0,null,0,null,0,null,0,null,0,null,98.329857958777893,null,156.29724147159499,null,156.29724147159499]
[null,{"$f":"IF(LEN('Détail des projets'!B132)=0,\"\",'Détail des projets'!B132)","v":"D00242 Telus Gaspé"},{"$f":"IF(LEN('Détail des projets'!C132)=0,\"\",'Détail des projets'!C132)","v":"TELUS Communications inc."},{"$f":"IF(LEN('Détail des projets'!G132)=0,\"\",'Détail des projets'!G132)","v":"11-Gaspésie--Îles-de-la-Madeleine"},{"$f":"IF(LEN('Détail des projets'!K132)=0,\"\",'Détail des projets'!K132)","v":6613.93},26.455704545454498,"À la fin du projet (suite au dernier versement)",16.66667640278078,"QC-Québec","Oui",15,0,26.455704545454498,"Non","Oui",0,null,0,null,0,null,0,null,0,null,0,null,22.6969705663189,null,26.311137853949301,null,26.311137853949301]
[null,{"$f":"IF(LEN('Détail des projets'!B133)=0,\"\",'Détail des projets'!B133)","v":"008107 - IGA Joliette rue Gauthier Nord"},{"$f":"IF(LEN('Détail des projets'!C133)=0,\"\",'Détail des projets'!C133)","v":"Supermarché Crevier (Joliette) inc."},{"$f":"IF(LEN('Détail des projets'!G133)=0,\"\",'Détail des projets'!G133)","v":"14-Lanaudière"},{"$f":"IF(LEN('Détail des projets'!K133)=0,\"\",'Détail des projets'!K133)","v":165842.27265375},631.78203684000005,"À la fin du projet (suite au dernier versement)",17.499945971160923,"QC-Québec","Oui",15,0,631.78203684000005,"Non","Oui",0,null,0,null,0,null,0,null,0,null,0,null,252.02234256458999,null,628.32967598295102,null,628.32967598295102]
[null,{"$f":"IF(LEN('Détail des projets'!B134)=0,\"\",'Détail des projets'!B134)","v":"Construction du centre de production de St-Roch-de-l’Achigan - Système de réfrigération au CO2"},{"$f":"IF(LEN('Détail des projets'!C134)=0,\"\",'Détail des projets'!C134)","v":"Harmonia World inc."},{"$f":"IF(LEN('Détail des projets'!G134)=0,\"\",'Détail des projets'!G134)","v":"14-Lanaudière"},{"$f":"IF(LEN('Détail des projets'!K134)=0,\"\",'Détail des projets'!K134)","v":79510.115999999995},302.89567825454498,"À la fin du projet (suite au dernier versement)",10.500000060506897,"QC-Québec","Oui",25,0,302.89567825454498,"Non","Oui",0,null,0,null,0,null,0,null,0,null,0,null,0,null,244.964810828813,null,301.24051061380999]
[null,{"$f":"IF(LEN('Détail des projets'!B135)=0,\"\",'Détail des projets'!B135)","v":"Réfrigération au CO2 avec récupération de chaleur - Marché Pie-IX"},{"$f":"IF(LEN('Détail des projets'!C135)=0,\"\",'Détail des projets'!C135)","v":"Le Marché Pie-IX S.E.C."},{"$f":"IF(LEN('Détail des projets'!G135)=0,\"\",'Détail des projets'!G135)","v":"06-Montréal"},{"$f":"IF(LEN('Détail des projets'!K135)=0,\"\",'Détail des projets'!K135)","v":614971.92815099994},2342.73576568,"À la fin du projet (suite au dernier versement)",8.7500539207203172,"QC-Québec","Oui",30,0,2342.73576568,"Non","Oui",0,null,0,null,0,null,0,null,0,null,0,null,0,null,947.33577410010901,null,2329.9339308948602]
[null,{"$f":"IF(LEN('Détail des projets'!B136)=0,\"\",'Détail des projets'!B136)","v":"Remplacement du système de réfrigération"},{"$f":"IF(LEN('Détail des projets'!C136)=0,\"\",'Détail des projets'!C136)","v":"Bonanza Lalumière"},{"$f":"IF(LEN('Détail des projets'!G136)=0,\"\",'Détail des projets'!G136)","v":"06-Montréal"},{"$f":"IF(LEN('Détail des projets'!K136)=0,\"\",'Détail des projets'!K136)","v":74347.306509419999},283.23178475999998,"À la fin du projet (suite au dernier versement)",12.419457281198662,"QC-Québec","Oui",25,0,239.45428476000001,"Non","Oui",0,null,0,null,0,null,0,null,0,null,0,null,75.892614841967202,null,238.14579140065601,null,238.14579140065601]
[null,{"$f":"IF(LEN('Détail des projets'!B137)=0,\"\",'Détail des projets'!B137)","v":"Construction Métro plus Fournier"},{"$f":"IF(LEN('Détail des projets'!C137)=0,\"\",'Détail des projets'!C137)","v":"Supermarché R. Fournier inc."},{"$f":"IF(LEN('Détail des projets'!G137)=0,\"\",'Détail des projets'!G137)","v":"04-Mauricie"},{"$f":"IF(LEN('Détail des projets'!K137)=0,\"\",'Détail des projets'!K137)","v":172500.24612299999},727.19730000000004,"À la fin du projet (suite au dernier versement)",11.860622015717054,"QC-Québec","Oui",20,0,727.19730000000004,"Non","Oui",0,null,0,null,0,null,0,null,0,null,0,null,361.61177213114797,null,723.22354426229504,null,723.22354426229504]
[null,{"$f":"IF(LEN('Détail des projets'!B138)=0,\"\",'Détail des projets'!B138)","v":"Réfrigération au CO2 avec récupération chaleur (Metro Lachine)"},{"$f":"IF(LEN('Détail des projets'!C138)=0,\"\",'Détail des projets'!C138)","v":"Métro Richelieu inc."},{"$f":"IF(LEN('Détail des projets'!G138)=0,\"\",'Détail des projets'!G138)","v":"06-Montréal"},{"$f":"IF(LEN('Détail des projets'!K138)=0,\"\",'Détail des projets'!K138)","v":74215.679999999993},208.00892008,"À la fin du projet (suite au dernier versement)",17.49999876205414,"QC-Québec","Oui",15,0,282.72642000000002,"Non","Oui",0,null,0,null,0,null,0,null,0,null,0,null,0,null,133.638444426229,null,281.18146688524598]
[null,{"$f":"IF(LEN('Détail des projets'!B139)=0,\"\",'Détail des projets'!B139)","v":"Réfrigération au CO2 avec récupération de chaleur (001758)"},{"$f":"IF(LEN('Détail des projets'!C139)=0,\"\",'Détail des projets'!C139)","v":"Sobeys Capital Incorporée"},{"$f":"IF(LEN('Détail des projets'!G139)=0,\"\",'Détail des projets'!G139)","v":"06-Montréal"},{"$f":"IF(LEN('Détail des projets'!K139)=0,\"\",'Détail des projets'!K139)","v":79126.14},316.50457455600002,"À la fin du projet (suite au dernier versement)",16.816958989182162,"QC-Québec","Oui",15,0,313.67597455600003,"Non","Oui",0,null,0,null,0,null,0,null,0,null,0,null,190.262476370033,null,311.96189819230602,null,311.96189819230602]
[null,{"$f":"IF(LEN('Détail des projets'!B140)=0,\"\",'Détail des projets'!B140)","v":"Réfrigération CO2 avec récupération de chaleur (008299)"},{"$f":"IF(LEN('Détail des projets'!C140)=0,\"\",'Détail des projets'!C140)","v":"Sobeys Capital Incorporée"},{"$f":"IF(LEN('Détail des projets'!G140)=0,\"\",'Détail des projets'!G140)","v":"12-Chaudière-Appalaches"},{"$f":"IF(LEN('Détail des projets'!K140)=0,\"\",'Détail des projets'!K140)","v":58761.853499999997},223.85466034800001,"À la fin du projet (suite au dernier versement)",17.490500296466863,"QC-Québec","Oui",15,0,223.97626331999999,"Non","Oui",0,null,0,null,0,null,0,null,0,null,0,null,101.584862598689,null,222.752349312787,null,222.752349312787]
[null,{"$f":"IF(LEN('Détail des projets'!B141)=0,\"\",'Détail des projets'!B141)","v":"Réfrigération au CO2 avec récupération de chaleur (008274)"},{"$f":"IF(LEN('Détail des projets'!C141)=0,\"\",'Détail des projets'!C141)","v":"Sobeys Capital Incorporée"},{"$f":"IF(LEN('Détail des projets'!G141)=0,\"\",'Détail des projets'!G141)","v":"12-Chaudière-Appalaches"},{"$f":"IF(LEN('Détail des projets'!K141)=0,\"\",'Détail des projets'!K141)","v":80201.42},320.80567959199999,"À la fin du projet (suite au dernier versement)",23.620973171399644,"QC-Québec","Oui",15,0,226.35652200000001,"Non","Oui",0,null,0,null,0,null,0,null,0,null,0,null,137.29821826229499,null,225.119601114754,null,225.119601114754]
[null,{"$f":"IF(LEN('Détail des projets'!B142)=0,\"\",'Détail des projets'!B142)","v":"Immeubles Marquis-Thibeault Prévost inc."},{"$f":"IF(LEN('Détail des projets'!C142)=0,\"\",'Détail des projets'!C142)","v":"Marché Élite Prévost inc."},{"$f":"IF(LEN('Détail des projets'!G142)=0,\"\",'Détail des projets'!G142)","v":"15-Laurentides"},{"$f":"IF(LEN('Détail des projets'!K142)=0,\"\",'Détail des projets'!K142)","v":67809.787500000006},258.32299999999998,"À la fin du projet (suite au dernier versement)",9.3680112703842262,"QC-Québec","Oui",20,0,361.92200000000003,"Non","Oui",0,null,0,null,0,null,0,null,0,null,0,null,0,null,12.8551530054645,null,359.94428415300501]
[null,{"$f":"IF(LEN('Détail des projets'!B143)=0,\"\",'Détail des projets'!B143)","v":"Nouvelle patinoire extérieure de Val d'Or - Système de réfrigération au CO2"},{"$f":"IF(LEN('Détail des projets'!C143)=0,\"\",'Détail des projets'!C143)","v":"Ville de Val d'Or"},{"$f":"IF(LEN('Détail des projets'!G143)=0,\"\",'Détail des projets'!G143)","v":"08-Abitibi-Témiscamingue"},{"$f":"IF(LEN('Détail des projets'!K143)=0,\"\",'Détail des projets'!K143)","v":41106.502500000002},156.59618520000001,"À la fin du projet (suite au dernier versement)",10.50000099236134,"QC-Québec","Oui",25,0,156.59618520000001,"Non","Oui",0,null,0,null,0,null,0,null,0,null,0,null,0,null,44.925135098360698,null,155.74046834098399]
[null,{"$f":"IF(LEN('Détail des projets'!B144)=0,\"\",'Détail des projets'!B144)","v":"Réfrigération au CO2 - Usine Vachon de Ste-Marie-de-Beauce"},{"$f":"IF(LEN('Détail des projets'!C144)=0,\"\",'Détail des projets'!C144)","v":"Boulangerie Vachon Inc."},{"$f":"IF(LEN('Détail des projets'!G144)=0,\"\",'Détail des projets'!G144)","v":"12-Chaudière-Appalaches"},{"$f":"IF(LEN('Détail des projets'!K144)=0,\"\",'Détail des projets'!K144)","v":11877.138000000001},45.246239039999999,"À la fin du projet (suite au dernier versement)",13.125000278476184,"QC-Québec","Oui",20,0,45.246239039999999,"Non","Oui",0,null,0,null,0,null,0,null,0,null,0,null,0,null,18.172669778360699,null,44.998991832131097]
[null,{"$f":"IF(LEN('Détail des projets'!B145)=0,\"\",'Détail des projets'!B145)","v":"Nouveau système de réfrigération au CO2 et récupération de chaleur"},{"$f":"IF(LEN('Détail des projets'!C145)=0,\"\",'Détail des projets'!C145)","v":"2737-1137 Québec inc."},{"$f":"IF(LEN('Détail des projets'!G145)=0,\"\",'Détail des projets'!G145)","v":"02-Saguenay--Lac-Saint-Jean"},{"$f":"IF(LEN('Détail des projets'!K145)=0,\"\",'Détail des projets'!K145)","v":117249.1475925},446.66092992,"À la fin du projet (suite au dernier versement)",10.500058522109835,"QC-Québec","Oui",25,0,446.66092992,"Non","Oui",0,null,0,null,0,null,0,null,0,null,0,null,0,null,391.74360247082001,null,444.22015981114703]
[null,{"$f":"IF(LEN('Détail des projets'!B146)=0,\"\",'Détail des projets'!B146)","v":"Aliments Roma - Entrepôt frigorifique"},{"$f":"IF(LEN('Détail des projets'!C146)=0,\"\",'Détail des projets'!C146)","v":"Les Aliments Roma ltée"},{"$f":"IF(LEN('Détail des projets'!G146)=0,\"\",'Détail des projets'!G146)","v":"06-Montréal"},{"$f":"IF(LEN('Détail des projets'!K146)=0,\"\",'Détail des projets'!K146)","v":50653.980690074997},192.96818181818199,"À la fin du projet (suite au dernier versement)",13.642508292366507,"QC-Québec","Oui",19.241266250610401,0,192.96818181818199,"Non","Oui",0,null,0,null,0,null,0,null,0,null,0,null,0,null,92.266207153502194,null,191.913710879284]
[null,{"$f":"IF(LEN('Détail des projets'!B147)=0,\"\",'Détail des projets'!B147)","v":"D00267 Telus Saint-Georges"},{"$f":"IF(LEN('Détail des projets'!C147)=0,\"\",'Détail des projets'!C147)","v":"TELUS Communications inc."},{"$f":"IF(LEN('Détail des projets'!G147)=0,\"\",'Détail des projets'!G147)","v":"12-Chaudière-Appalaches"},{"$f":"IF(LEN('Détail des projets'!K147)=0,\"\",'Détail des projets'!K147)","v":7122.78},27.134383636363602,"À la fin du projet (suite au dernier versement)",17.50001055353388,"QC-Québec","Oui",15,0,27.134383636363602,"Non","Oui",0,null,0,null,0,null,0,null,0,null,0,null,0,null,13.048228196721301,null,26.9861083159463]
[null,{"$f":"IF(LEN('Détail des projets'!B148)=0,\"\",'Détail des projets'!B148)","v":"Réfrigération au CO2 avec récupération de chaleur (Brossard)"},{"$f":"IF(LEN('Détail des projets'!C148)=0,\"\",'Détail des projets'!C148)","v":"Mayrand limitée"},{"$f":"IF(LEN('Détail des projets'!G148)=0,\"\",'Détail des projets'!G148)","v":"16-Montérégie"},{"$f":"IF(LEN('Détail des projets'!K148)=0,\"\",'Détail des projets'!K148)","v":78323.133000000002},298.3738243148,"À la fin du projet (suite au dernier versement)",17.478227370857127,"QC-Québec","Oui",15,0,298.74552431479998,"Non","Oui",0,null,0,null,0,null,0,null,0,null,0,null,23.671093456637202,null,297.11303511089397,null,297.11303511089397]
[null,{"$f":"IF(LEN('Détail des projets'!B149)=0,\"\",'Détail des projets'!B149)","v":"Entrepôts Frigorifiques Riendeau - Système de réfrigération au CO2"},{"$f":"IF(LEN('Détail des projets'!C149)=0,\"\",'Détail des projets'!C149)","v":"Les Entrepôts Frigorifiques Riendeau inc."},{"$f":"IF(LEN('Détail des projets'!G149)=0,\"\",'Détail des projets'!G149)","v":"14-Lanaudière"},{"$f":"IF(LEN('Détail des projets'!K149)=0,\"\",'Détail des projets'!K149)","v":52002.23},208.00892008,"À la fin du projet (suite au dernier versement)",9.9999999961540116,"QC-Québec","Oui",25,0,208.00892008,"Non","Oui",0,null,0,null,0,null,0,null,0,null,0,null,0,null,5.1149734445901602,null,206.872259314536]
[null,{"$f":"IF(LEN('Détail des projets'!B150)=0,\"\",'Détail des projets'!B150)","v":"Entrepôt du 1124"},{"$f":"IF(LEN('Détail des projets'!C150)=0,\"\",'Détail des projets'!C150)","v":"Verger des Bois-Francs inc."},{"$f":"IF(LEN('Détail des projets'!G150)=0,\"\",'Détail des projets'!G150)","v":"16-Montérégie"},{"$f":"IF(LEN('Détail des projets'!K150)=0,\"\",'Détail des projets'!K150)","v":91913.073000000004},350.14504083272698,"À la fin du projet (suite au dernier versement)",10.499623780773213,"QC-Québec","Oui",25,0,350.15758628727298,"Non","Oui",0,null,0,null,0,null,0,null,0,null,0,null,0,null,0,null,193.25637275964201]
[null,{"$f":"IF(LEN('Détail des projets'!B151)=0,\"\",'Détail des projets'!B151)","v":"Les Aliments Kamloop - Système de réfrigération au CO2"},{"$f":"IF(LEN('Détail des projets'!C151)=0,\"\",'Détail des projets'!C151)","v":"Les aliments Kamloop"},{"$f":"IF(LEN('Détail des projets'!G151)=0,\"\",'Détail des projets'!G151)","v":"15-Laurentides"},{"$f":"IF(LEN('Détail des projets'!K151)=0,\"\",'Détail des projets'!K151)","v":68811.959999999992},262.14081450545501,"À la fin du projet (suite au dernier versement)",10.499999418986782,"QC-Québec","Oui",25,0,262.14081450545501,"Non","Oui",0,null,0,null,0,null,0,null,0,null,0,null,0,null,71.623173362146005,null,260.70835103821202]
[null,{"$f":"IF(LEN('Détail des projets'!B152)=0,\"\",'Détail des projets'!B152)","v":"Projet d'efficacité énergétique à l'aréna Westwood"},{"$f":"IF(LEN('Détail des projets'!C152)=0,\"\",'Détail des projets'!C152)","v":"Ville de Dorval"},{"$f":"IF(LEN('Détail des projets'!G152)=0,\"\",'Détail des projets'!G152)","v":"06-Montréal"},{"$f":"IF(LEN('Détail des projets'!K152)=0,\"\",'Détail des projets'!K152)","v":51058.520237999997},0,"À la fin du projet (suite au dernier versement)",0,"QC-Québec","Oui",33.198585510253899,0,0,"Non","Oui",0,null,0,null,0,null,0,null,0,null,0,null,0,null,0,null,0]
[null,{"$f":"IF(LEN('Détail des projets'!B153)=0,\"\",'Détail des projets'!B153)","v":"Réfrigération au CO2 avec mesures d'efficacité énergétique."},{"$f":"IF(LEN('Détail des projets'!C153)=0,\"\",'Détail des projets'!C153)","v":"Ville de Dorval"},{"$f":"IF(LEN('Détail des projets'!G153)=0,\"\",'Détail des projets'!G153)","v":"06-Montréal"},{"$f":"IF(LEN('Détail des projets'!K153)=0,\"\",'Détail des projets'!K153)","v":44011.416421000002},0,"À la fin du projet (suite au dernier versement)",0,"QC-Québec","Oui",40.407657623291001,0,0,"Non","Oui",0,null,0,null,0,null,0,null,0,null,0,null,0,null,0,null,0]
[null,{"$f":"IF(LEN('Détail des projets'!B154)=0,\"\",'Détail des projets'!B154)","v":"Conversion électrique et efficacité énergétique"},{"$f":"IF(LEN('Détail des projets'!C154)=0,\"\",'Détail des projets'!C154)","v":"Société Bon Pasteur S.E.N.C."},{"$f":"IF(LEN('Détail des projets'!G154)=0,\"\",'Détail des projets'!G154)","v":"03-Capitale-Nationale"},{"$f":"IF(LEN('Détail des projets'!K154)=0,\"\",'Détail des projets'!K154)","v":63337.305315199999},241.29545454545399,"À la fin du projet (suite au dernier versement)",14.66244444783022,"QC-Québec","Oui",17.902103424072301,0,241.29545454545399,"Non","Oui",0,null,0,null,0,null,0,null,0,null,0,null,0,null,0,null,0]
[null,{"$f":"IF(LEN('Détail des projets'!B155)=0,\"\",'Détail des projets'!B155)","v":"Marché Pasquier Delson - Système de réfrigération au CO2"},{"$f":"IF(LEN('Détail des projets'!C155)=0,\"\",'Détail des projets'!C155)","v":"Groupe alimentaire PMA Delson inc."},{"$f":"IF(LEN('Détail des projets'!G155)=0,\"\",'Détail des projets'!G155)","v":"16-Montérégie"},{"$f":"IF(LEN('Détail des projets'!K155)=0,\"\",'Détail des projets'!K155)","v":240829.9684639},917.44123844000001,"À la fin du projet (suite au dernier versement)",10.585406964235785,"QC-Québec","Oui",24.798460006713899,0,917.44123844000001,"Non","Oui",0,null,0,null,0,null,0,null,0,null,0,null,0,null,0,null,0]
[null,{"$f":"IF(LEN('Détail des projets'!B156)=0,\"\",'Détail des projets'!B156)","v":"Réduction des émissions de gaz à effet de serre générés par les effets anodiques"},{"$f":"IF(LEN('Détail des projets'!C156)=0,\"\",'Détail des projets'!C156)","v":"Aluminerie de Bécancour inc."},{"$f":"IF(LEN('Détail des projets'!G156)=0,\"\",'Détail des projets'!G156)","v":"17-Centre-du-Québec"},{"$f":"IF(LEN('Détail des projets'!K156)=0,\"\",'Détail des projets'!K156)","v":1162464.75},14307.104073799999,"À la fin du projet (suite au dernier versement)",4.0625438383745776,"QC-Québec","Oui",20,0,14307.104073799999,"Non","Oui",0,null,0,null,0,null,0,null,0,null,0,null,0,null,0,null,0]
[null,{"$f":"IF(LEN('Détail des projets'!B157)=0,\"\",'Détail des projets'!B157)","v":"Efficacité énergétique pour l'usine de Produits Vegkiss"},{"$f":"IF(LEN('Détail des projets'!C157)=0,\"\",'Détail des projets'!C157)","v":"Produits Vegkiss inc."},{"$f":"IF(LEN('Détail des projets'!G157)=0,\"\",'Détail des projets'!G157)","v":"14-Lanaudière"},{"$f":"IF(LEN('Détail des projets'!K157)=0,\"\",'Détail des projets'!K157)","v":179733.80913631499},684.68166719999999,"À la fin du projet (suite au dernier versement)",12.591820674564898,"QC-Québec","Oui",20.8474311828613,0,684.68166719999999,"Non","Oui",0,null,0,null,0,null,0,null,0,null,0,null,0,null,0,null,0]
[null,{"$f":"IF(LEN('Détail des projets'!B158)=0,\"\",'Détail des projets'!B158)","v":"Réfrigération au CO2 avec récupération de chaleur (000408)"},{"$f":"IF(LEN('Détail des projets'!C158)=0,\"\",'Détail des projets'!C158)","v":"Sobeys Capital Incorporée"},{"$f":"IF(LEN('Détail des projets'!G158)=0,\"\",'Détail des projets'!G158)","v":"12-Chaudière-Appalaches"},{"$f":"IF(LEN('Détail des projets'!K158)=0,\"\",'Détail des projets'!K158)","v":118131.85649999999},450.02612335200001,"À la fin du projet (suite au dernier versement)",17.499999869652008,"QC-Québec","Oui",15,0,450.02612335200001,"Non","Oui",0,null,0,null,0,null,0,null,0,null,0,null,0,null,0,null,0]
[null,{"$f":"IF(LEN('Détail des projets'!B159)=0,\"\",'Détail des projets'!B159)","v":"Modernisation des brûleurs four C et D"},{"$f":"IF(LEN('Détail des projets'!C159)=0,\"\",'Détail des projets'!C159)","v":"ArcelorMittal Produits longs Canada s.e.n.c."},{"$f":"IF(LEN('Détail des projets'!G159)=0,\"\",'Détail des projets'!G159)","v":"16-Montérégie"},{"$f":"IF(LEN('Détail des projets'!K159)=0,\"\",'Détail des projets'!K159)","v":1147637.9384362199},4372,"À la fin du projet (suite au dernier versement)",26.249724117937326,"QC-Québec","Oui",10,0,4372,"Non","Oui",0,null,0,null,0,null,0,null,0,null,0,null,0,null,0,null,0]
[null,{"$f":"IF(LEN('Détail des projets'!B160)=0,\"\",'Détail des projets'!B160)","v":"Réfrigération CO2 avec récupération de chaleur (008608)"},{"$f":"IF(LEN('Détail des projets'!C160)=0,\"\",'Détail des projets'!C160)","v":"Sobeys Capital Incorporée"},{"$f":"IF(LEN('Détail des projets'!G160)=0,\"\",'Détail des projets'!G160)","v":"06-Montréal"},{"$f":"IF(LEN('Détail des projets'!K160)=0,\"\",'Détail des projets'!K160)","v":58592.83},176.12292426400001,"À la fin du projet (suite au dernier versement)",24.344275675154709,"QC-Québec","Oui",13.6656951904297,0,176.12292426400001,"Non","Oui",0,null,0,null,0,null,0,null,0,null,0,null,0,null,0,null,0]
[null,{"$f":"IF(LEN('Détail des projets'!B161)=0,\"\",'Détail des projets'!B161)","v":"Réfrigération au CO2 avec récupération de chaleur (075022)"},{"$f":"IF(LEN('Détail des projets'!C161)=0,\"\",'Détail des projets'!C161)","v":"Sobeys Capital Incorporée"},{"$f":"IF(LEN('Détail des projets'!G161)=0,\"\",'Détail des projets'!G161)","v":"06-Montréal"},{"$f":"IF(LEN('Détail des projets'!K161)=0,\"\",'Détail des projets'!K161)","v":97079.92349999999},369.82829464399998,"À la fin du projet (suite au dernier versement)",17.499999307056804,"QC-Québec","Oui",15,0,369.82829464399998,"Non","Oui",0,null,0,null,0,null,0,null,0,null,0,null,0,null,0,null,0]
[null,{"$f":"IF(LEN('Détail des projets'!B162)=0,\"\",'Détail des projets'!B162)","v":"Réfrigération CO2 avec récupération de chaleur (000000)"},{"$f":"IF(LEN('Détail des projets'!C162)=0,\"\",'Détail des projets'!C162)","v":"Sobeys Capital Incorporée"},{"$f":"IF(LEN('Détail des projets'!G162)=0,\"\",'Détail des projets'!G162)","v":"06-Montréal"},{"$f":"IF(LEN('Détail des projets'!K162)=0,\"\",'Détail des projets'!K162)","v":141887.49},790.70810728799995,"À la fin du projet (suite au dernier versement)",11.96290503766731,"QC-Québec","Oui",15,0,790.70810728799995,"Non","Oui",0,null,0,null,0,null,0,null,0,null,0,null,0,null,0,null,0]
[null,{"$f":"IF(LEN('Détail des projets'!B163)=0,\"\",'Détail des projets'!B163)","v":"Remplacement des systèmes de réfrigération"},{"$f":"IF(LEN('Détail des projets'!C163)=0,\"\",'Détail des projets'!C163)","v":"Goupe Robert Inc."},{"$f":"IF(LEN('Détail des projets'!G163)=0,\"\",'Détail des projets'!G163)","v":"16-Montérégie"},{"$f":"IF(LEN('Détail des projets'!K163)=0,\"\",'Détail des projets'!K163)","v":1097937.0149999999},4182.61719439636,"À la fin du projet (suite au dernier versement)",8.7500000117227668,"QC-Québec","Oui",30,0,4182.61719439636,"Non","Oui",0,null,0,null,0,null,0,null,0,null,0,null,0,null,0,null,0]
[null,{"$f":"IF(LEN('Détail des projets'!B164)=0,\"\",'Détail des projets'!B164)","v":"Réfrigération au CO2 avec récupération de chaleur (000284)"},{"$f":"IF(LEN('Détail des projets'!C164)=0,\"\",'Détail des projets'!C164)","v":"Sobeys Capital Incorporée"},{"$f":"IF(LEN('Détail des projets'!G164)=0,\"\",'Détail des projets'!G164)","v":"06-Montréal"},{"$f":"IF(LEN('Détail des projets'!K164)=0,\"\",'Détail des projets'!K164)","v":44809.033499999998},170.70109116,"À la fin du projet (suite au dernier versement)",17.499998855894834,"QC-Québec","Oui",15,0,170.70109116,"Non","Oui",0,null,0,null,0,null,0,null,0,null,0,null,0,null,0,null,0]
[null,{"$f":"IF(LEN('Détail des projets'!B165)=0,\"\",'Détail des projets'!B165)","v":"Réfrigération au CO2 avec récupération de chaleur (096096)"},{"$f":"IF(LEN('Détail des projets'!C165)=0,\"\",'Détail des projets'!C165)","v":"Sobeys Capital Incorporée"},{"$f":"IF(LEN('Détail des projets'!G165)=0,\"\",'Détail des projets'!G165)","v":"06-Montréal"},{"$f":"IF(LEN('Détail des projets'!K165)=0,\"\",'Détail des projets'!K165)","v":70541.90849999999},268.73109428399999,"À la fin du projet (suite au dernier versement)",17.499999069813633,"QC-Québec","Oui",15,0,268.73109428399999,"Non","Oui",0,null,0,null,0,null,0,null,0,null,0,null,0,null,0,null,0]
[null,{"$f":"IF(LEN('Détail des projets'!B166)=0,\"\",'Détail des projets'!B166)","v":"Réfrigération au CO2 avec récupération de chaleur (008087)"},{"$f":"IF(LEN('Détail des projets'!C166)=0,\"\",'Détail des projets'!C166)","v":"Sobeys Capital Incorporée"},{"$f":"IF(LEN('Détail des projets'!G166)=0,\"\",'Détail des projets'!G166)","v":"16-Montérégie"},{"$f":"IF(LEN('Détail des projets'!K166)=0,\"\",'Détail des projets'!K166)","v":100023.52499999999},381.04201499999999,"À la fin du projet (suite au dernier versement)",17.49999931109959,"QC-Québec","Oui",15,0,381.04201499999999,"Non","Oui",0,null,0,null,0,null,0,null,0,null,0,null,0,null,0,null,0]
[null,{"$f":"IF(LEN('Détail des projets'!B167)=0,\"\",'Détail des projets'!B167)","v":"Réfrigération CO2 avec récupération de chaleur (008261)"},{"$f":"IF(LEN('Détail des projets'!C167)=0,\"\",'Détail des projets'!C167)","v":"Sobeys Capital Incorporée"},{"$f":"IF(LEN('Détail des projets'!G167)=0,\"\",'Détail des projets'!G167)","v":"15-Laurentides"},{"$f":"IF(LEN('Détail des projets'!K167)=0,\"\",'Détail des projets'!K167)","v":91611.891000000003},348.997672384,"À la fin du projet (suite au dernier versement)",17.500000381893667,"QC-Québec","Oui",15,0,348.997672384,"Non","Oui",0,null,0,null,0,null,0,null,0,null,0,null,0,null,0,null,0]
[null,{"$f":"IF(LEN('Détail des projets'!B168)=0,\"\",'Détail des projets'!B168)","v":"Les Viandes Valleyfield - Système de réfrigération au CO2"},{"$f":"IF(LEN('Détail des projets'!C168)=0,\"\",'Détail des projets'!C168)","v":"Les Viandes Valleyfield"},{"$f":"IF(LEN('Détail des projets'!G168)=0,\"\",'Détail des projets'!G168)","v":"16-Montérégie"},{"$f":"IF(LEN('Détail des projets'!K168)=0,\"\",'Détail des projets'!K168)","v":73314.570000000007},279.29359090909099,"À la fin du projet (suite au dernier versement)",10.50000034177134,"QC-Québec","Oui",25,0,279.29359090909099,"Non","Oui",0,null,0,null,0,null,0,null,0,null,0,null,0,null,0,null,0]
[null,{"$f":"IF(LEN('Détail des projets'!B169)=0,\"\",'Détail des projets'!B169)","v":"Nouvelle patinoire extérieure de Saguenay - Système de réfrigération au CO2"},{"$f":"IF(LEN('Détail des projets'!C169)=0,\"\",'Détail des projets'!C169)","v":"Fondation du club de hockey Canadien pour l'enfance"},{"$f":"IF(LEN('Détail des projets'!G169)=0,\"\",'Détail des projets'!G169)","v":"02-Saguenay--Lac-Saint-Jean"},{"$f":"IF(LEN('Détail des projets'!K169)=0,\"\",'Détail des projets'!K169)","v":30358.37},115.65093520000001,"À la fin du projet (suite au dernier versement)",10.4999998305245,"QC-Québec","Oui",25,0,115.65093520000001,"Non","Oui",0,null,0,null,0,null,0,null,0,null,0,null,0,null,0,null,0]
[null,{"$f":"IF(LEN('Détail des projets'!B170)=0,\"\",'Détail des projets'!B170)","v":""},{"$f":"IF(LEN('Détail des projets'!C170)=0,\"\",'Détail des projets'!C170)","v":""},{"$f":"IF(LEN('Détail des projets'!G170)=0,\"\",'Détail des projets'!G170)","v":""},{"$f":"IF(LEN('Détail des projets'!K170)=0,\"\",'Détail des projets'!K170)","v":""}]
[null,{"$f":"IF(LEN('Détail des projets'!B171)=0,\"\",'Détail des projets'!B171)","v":""},{"$f":"IF(LEN('Détail des projets'!C171)=0,\"\",'Détail des projets'!C171)","v":""},{"$f":"IF(LEN('Détail des projets'!G171)=0,\"\",'Détail des projets'!G171)","v":""},{"$f":"IF(LEN('Détail des projets'!K171)=0,\"\",'Détail des projets'!K171)","v":""}]
[null,{"$f":"IF(LEN('Détail des projets'!B172)=0,\"\",'Détail des projets'!B172)","v":""},{"$f":"IF(LEN('Détail des projets'!C172)=0,\"\",'Détail des projets'!C172)","v":""},{"$f":"IF(LEN('Détail des projets'!G172)=0,\"\",'Détail des projets'!G172)","v":""},{"$f":"IF(LEN('Détail des projets'!K172)=0,\"\",'Détail des projets'!K172)","v":""}]
[null,{"$f":"IF(LEN('Détail des projets'!B173)=0,\"\",'Détail des projets'!B173)","v":""},{"$f":"IF(LEN('Détail des projets'!C173)=0,\"\",'Détail des projets'!C173)","v":""},{"$f":"IF(LEN('Détail des projets'!G173)=0,\"\",'Détail des projets'!G173)","v":""},{"$f":"IF(LEN('Détail des projets'!K173)=0,\"\",'Détail des projets'!K173)","v":""}]
[null,{"$f":"IF(LEN('Détail des projets'!B174)=0,\"\",'Détail des projets'!B174)","v":""},{"$f":"IF(LEN('Détail des projets'!C174)=0,\"\",'Détail des projets'!C174)","v":""},{"$f":"IF(LEN('Détail des projets'!G174)=0,\"\",'Détail des projets'!G174)","v":""},{"$f":"IF(LEN('Détail des projets'!K174)=0,\"\",'Détail des projets'!K174)","v":""}]
[null,{"$f":"IF(LEN('Détail des projets'!B175)=0,\"\",'Détail des projets'!B175)","v":""},{"$f":"IF(LEN('Détail des projets'!C175)=0,\"\",'Détail des projets'!C175)","v":""},{"$f":"IF(LEN('Détail des projets'!G175)=0,\"\",'Détail des projets'!G175)","v":""},{"$f":"IF(LEN('Détail des projets'!K175)=0,\"\",'Détail des projets'!K175)","v":""}]
[null,{"$f":"IF(LEN('Détail des projets'!B176)=0,\"\",'Détail des projets'!B176)","v":""},{"$f":"IF(LEN('Détail des projets'!C176)=0,\"\",'Détail des projets'!C176)","v":""},{"$f":"IF(LEN('Détail des projets'!G176)=0,\"\",'Détail des projets'!G176)","v":""},{"$f":"IF(LEN('Détail des projets'!K176)=0,\"\",'Détail des projets'!K176)","v":""}]
[null,{"$f":"IF(LEN('Détail des projets'!B177)=0,\"\",'Détail des projets'!B177)","v":""},{"$f":"IF(LEN('Détail des projets'!C177)=0,\"\",'Détail des projets'!C177)","v":""},{"$f":"IF(LEN('Détail des projets'!G177)=0,\"\",'Détail des projets'!G177)","v":""},{"$f":"IF(LEN('Détail des projets'!K177)=0,\"\",'Détail des projets'!K177)","v":""}]
[null,{"$f":"IF(LEN('Détail des projets'!B178)=0,\"\",'Détail des projets'!B178)","v":""},{"$f":"IF(LEN('Détail des projets'!C178)=0,\"\",'Détail des projets'!C178)","v":""},{"$f":"IF(LEN('Détail des projets'!G178)=0,\"\",'Détail des projets'!G178)","v":""},{"$f":"IF(LEN('Détail des projets'!K178)=0,\"\",'Détail des projets'!K178)","v":""}]
[null,{"$f":"IF(LEN('Détail des projets'!B179)=0,\"\",'Détail des projets'!B179)","v":""},{"$f":"IF(LEN('Détail des projets'!C179)=0,\"\",'Détail des projets'!C179)","v":""},{"$f":"IF(LEN('Détail des projets'!G179)=0,\"\",'Détail des projets'!G179)","v":""},{"$f":"IF(LEN('Détail des projets'!K179)=0,\"\",'Détail des projets'!K179)","v":""}]
[null,{"$f":"IF(LEN('Détail des projets'!B180)=0,\"\",'Détail des projets'!B180)","v":""},{"$f":"IF(LEN('Détail des projets'!C180)=0,\"\",'Détail des projets'!C180)","v":""},{"$f":"IF(LEN('Détail des projets'!G180)=0,\"\",'Détail des projets'!G180)","v":""},{"$f":"IF(LEN('Détail des projets'!K180)=0,\"\",'Détail des projets'!K180)","v":""}]
[null,{"$f":"IF(LEN('Détail des projets'!B181)=0,\"\",'Détail des projets'!B181)","v":""},{"$f":"IF(LEN('Détail des projets'!C181)=0,\"\",'Détail des projets'!C181)","v":""},{"$f":"IF(LEN('Détail des projets'!G181)=0,\"\",'Détail des projets'!G181)","v":""},{"$f":"IF(LEN('Détail des projets'!K181)=0,\"\",'Détail des projets'!K181)","v":""}]
[null,{"$f":"IF(LEN('Détail des projets'!B182)=0,\"\",'Détail des projets'!B182)","v":""},{"$f":"IF(LEN('Détail des projets'!C182)=0,\"\",'Détail des projets'!C182)","v":""},{"$f":"IF(LEN('Détail des projets'!G182)=0,\"\",'Détail des projets'!G182)","v":""},{"$f":"IF(LEN('Détail des projets'!K182)=0,\"\",'Détail des projets'!K182)","v":""}]
[null,{"$f":"IF(LEN('Détail des projets'!B183)=0,\"\",'Détail des projets'!B183)","v":""},{"$f":"IF(LEN('Détail des projets'!C183)=0,\"\",'Détail des projets'!C183)","v":""},{"$f":"IF(LEN('Détail des projets'!G183)=0,\"\",'Détail des projets'!G183)","v":""},{"$f":"IF(LEN('Détail des projets'!K183)=0,\"\",'Détail des projets'!K183)","v":""}]
[null,{"$f":"IF(LEN('Détail des projets'!B184)=0,\"\",'Détail des projets'!B184)","v":""},{"$f":"IF(LEN('Détail des projets'!C184)=0,\"\",'Détail des projets'!C184)","v":""},{"$f":"IF(LEN('Détail des projets'!G184)=0,\"\",'Détail des projets'!G184)","v":""}]
[null,"TOTAL (tonnes éq. CO2)",null,null,null,0,null,null,null,null,null,null,{"$f":"SUM(M25:M184)","v":186988.50937125113},null,null,{"$f":"SUM(P25:P184)","v":0},0,1295.3991712769391,0,9164.1263266203587,0,23707.981665398485,0,75104.272002310434,0,73724.675793705785,0,99214.671907759039,0,66818.410960257665,0,72146.98896466897,0,{"$f":"SUM(AH25:AH49)","v":0},0,0,0,0,0]
[]
[]
[]
[]
[]
[]
[]
[]
[]
[]
[]
[]
[]
[]
[]
[]
[]
[]
[null," TOTAL (tonnes CO2 éq.)"]

{"sheet":"Indicateurs","index":5,"n_rows":292,"n_cols":43,"rows_kept":292,"cut":false,"hidden":false,"merged":[[1,1,1,5],[1,7,1,8],[2,7,5,20],[152,1,152,4],[68,1,68,4],[70,1,72,3],[73,1,75,3],[69,1,69,3],[68,5,68,20],[1,18,1,19],[22,21,23,21],[2,1,2,3],[5,1,5,5],[3,2,3,5],[4,2,4,5],[22,19,23,19],[21,1,21,5],[22,18,23,18],[22,3,23,3],[22,4,23,4],[22,1,23,1],[22,2,23,2],[22,5,23,5],[19,1,19,3],[19,4,19,5],[155,18,155,19],[155,9,155,10],[156,18,156,19],[156,9,156,10],[154,9,154,10],[153,9,153,10],[155,1,155,2],[155,7,155,8],[155,5,155,6],[154,5,154,6],[153,5,153,6],[154,7,154,8],[153,7,153,8],[156,5,156,6],[156,1,156,2],[156,7,156,8],[154,18,154,19],[155,11,155,13],[156,11,156,13],[153,11,154,15],[157,1,157,2],[157,5,157,6],[157,7,157,8],[157,9,157,10],[157,18,157,19],[172,1,172,2],[173,1,173,2],[174,1,174,2],[158,1,158,2],[159,1,159,2],[160,1,160,2],[161,1,161,2],[162,1,162,2],[163,1,163,2],[164,1,164,2],[165,1,165,2],[166,1,166,2],[167,1,167,2],[168,1,168,2],[169,1,169,2],[170,1,170,2],[171,1,171,2],[158,5,158,6],[159,5,159,6],[175,1,175,2],[176,1,176,2],[177,1,177,2],[178,1,178,2],[179,1,179,2],[274,18,274,19],[275,1,275,2],[275,5,275,6],[275,7,275,8],[275,9,275,10],[275,18,275,19],[274,1,274,2],[274,5,274,6],[274,7,274,8],[274,9,274,10],[181,1,181,2],[182,1,182,2],[183,1,183,2],[184,1,184,2],[185,1,185,2],[180,1,180,2],[191,1,191,2],[192,1,192,2],[193,1,193,2],[276,18,276,19],[277,1,277,2],[277,5,277,6],[277,7,277,8],[277,9,277,10],[277,18,277,19],[276,1,276,2],[276,5,276,6],[276,7,276,8],[276,9,276,10],[277,11,277,13],[278,18,278,19],[279,1,279,2],[279,5,279,6],[279,7,279,8],[279,9,279,10],[279,18,279,19],[278,1,278,2],[278,5,278,6],[278,7,278,8],[278,9,278,10],[278,11,278,13],[279,11,279,13],[280,18,280,19],[281,1,281,2],[281,5,281,6],[281,7,281,8],[281,9,281,10],[281,18,281,19],[280,1,280,2],[280,5,280,6],[280,7,280,8],[280,9,280,10],[280,11,280,13],[281,11,281,13],[282,18,282,19],[283,1,283,2],[283,5,283,6],[283,7,283,8],[283,9,283,10],[283,18,283,19],[282,1,282,2],[282,5,282,6],[282,7,282,8],[282,9,282,10],[283,11,283,13],[282,11,282,13],[284,18,284,19],[285,1,285,2],[285,5,285,6],[285,7,285,8],[285,9,285,10],[285,18,285,19],[284,1,284,2],[284,5,284,6],[284,7,284,8],[284,9,284,10],[284,11,284,13],[285,11,285,13],[286,18,286,19],[287,1,287,2],[287,5,287,6],[287,7,287,8],[287,9,287,10],[287,18,287,19],[286,1,286,2],[286,5,286,6],[286,7,286,8],[286,9,286,10],[286,11,286,13],[287,11,287,13],[290,18,290,19],[290,1,290,2],[290,5,290,6],[290,7,290,8],[290,9,290,10],[288,18,288,19],[289,1,289,2],[289,5,289,6],[289,7,289,8],[289,9,289,10],[289,18,289,19],[288,1,288,2],[288,5,288,6],[288,7,288,8],[288,9,288,10],[288,11,288,13],[289,11,289,13],[290,11,290,13],[194,1,194,2],[195,1,195,2],[186,1,186,2],[187,1,187,2],[188,1,188,2],[189,1,189,2],[190,1,190,2],[201,1,201,2],[202,1,202,2],[203,1,203,2],[204,1,204,2],[205,1,205,2],[196,1,196,2],[197,1,197,2],[198,1,198,2],[199,1,199,2],[200,1,200,2],[211,1,211,2],[212,1,212,2],[213,1,213,2],[214,1,214,2],[215,1,215,2],[206,1,206,2],[207,1,207,2],[208,1,208,2],[209,1,209,2],[210,1,210,2],[221,1,221,2],[222,1,222,2],[223,1,223,2],[224,1,224,2],[225,1,225,2],[216,1,216,2],[217,1,217,2],[218,1,218,2],[219,1,219,2],[220,1,220,2],[231,1,231,2],[232,1,232,2],[233,1,233,2],[234,1,234,2],[235,1,235,2],[226,1,226,2],[227,1,227,2],[228,1,228,2],[229,1,229,2],[230,1,230,2],[241,1,241,2],[242,1,242,2],[243,1,243,2],[244,1,244,2],[245,1,245,2],[236,1,236,2],[237,1,237,2],[238,1,238,2],[239,1,239,2],[240,1,240,2],[252,1,252,2],[253,1,253,2],[254,1,254,2],[255,1,255,2],[246,1,246,2],[247,1,247,2],[248,1,248,2],[249,1,249,2],[250,1,250,2],[160,5,160,6],[161,5,161,6],[162,5,162,6],[272,1,272,2],[273,1,273,2],[267,1,267,2],[268,1,268,2],[269,1,269,2],[261,1,261,2],[262,1,262,2],[263,1,263,2],[270,1,270,2],[271,1,271,2],[266,1,266,2],[265,1,265,2],[264,1,264,2],[256,1,256,2],[257,1,257,2],[258,1,258,2],[259,1,259,2],[260,1,260,2],[251,1,251,2],[168,5,168,6],[169,5,169,6],[170,5,170,6],[171,5,171,6],[172,5,172,6],[163,5,163,6],[164,5,164,6],[165,5,165,6],[166,5,166,6],[167,5,167,6],[178,5,178,6],[179,5,179,6],[180,5,180,6],[181,5,181,6],[182,5,182,6],[173,5,173,6],[174,5,174,6],[175,5,175,6],[176,5,176,6],[177,5,177,6],[188,5,188,6],[189,5,189,6],[190,5,190,6],[191,5,191,6],[192,5,192,6],[183,5,183,6],[184,5,184,6],[185,5,185,6],[186,5,186,6],[187,5,187,6],[198,5,198,6],[199,5,199,6],[200,5,200,6],[201,5,201,6],[202,5,202,6],[193,5,193,6],[194,5,194,6],[195,5,195,6],[196,5,196,6],[197,5,197,6],[208,5,208,6],[209,5,209,6],[210,5,210,6],[211,5,211,6],[212,5,212,6],[203,5,203,6],[204,5,204,6],[205,5,205,6],[206,5,206,6],[207,5,207,6],[218,5,218,6],[219,5,219,6],[220,5,220,6],[221,5,221,6],[222,5,222,6],[213,5,213,6],[214,5,214,6],[215,5,215,6],[216,5,216,6],[217,5,217,6],[228,5,228,6],[229,5,229,6],[230,5,230,6],[231,5,231,6],[232,5,232,6],[223,5,223,6],[224,5,224,6],[225,5,225,6],[226,5,226,6],[227,5,227,6],[238,5,238,6],[239,5,239,6],[240,5,240,6],[241,5,241,6],[242,5,242,6],[233,5,233,6],[234,5,234,6],[235,5,235,6],[236,5,236,6],[237,5,237,6],[248,5,248,6],[249,5,249,6],[250,5,250,6],[251,5,251,6],[252,5,252,6],[243,5,243,6],[244,5,244,6],[245,5,245,6],[246,5,246,6],[247,5,247,6],[266,5,266,6],[267,5,267,6],[258,5,258,6],[259,5,259,6],[260,5,260,6],[261,5,261,6],[262,5,262,6],[253,5,253,6],[254,5,254,6],[255,5,255,6],[256,5,256,6],[257,5,257,6],[273,5,273,6],[229,7,229,8],[230,7,230,8],[231,7,231,8],[232,7,232,8],[233,7,233,8],[234,7,234,8],[235,7,235,8],[236,7,236,8],[237,7,237,8],[238,7,238,8],[239,7,239,8],[240,7,240,8],[241,7,241,8],[242,7,242,8],[243,7,243,8],[268,5,268,6],[269,5,269,6],[270,5,270,6],[271,5,271,6],[272,5,272,6],[263,5,263,6],[264,5,264,6],[265,5,265,6],[249,7,249,8],[250,7,250,8],[251,7,251,8],[252,7,252,8],[253,7,253,8],[244,7,244,8],[245,7,245,8],[246,7,246,8],[247,7,247,8],[248,7,248,8],[259,7,259,8],[260,7,260,8],[261,7,261,8],[262,7,262,8],[263,7,263,8],[254,7,254,8],[255,7,255,8],[256,7,256,8],[257,7,257,8],[258,7,258,8],[269,7,269,8],[270,7,270,8],[271,7,271,8],[272,7,272,8],[273,7,273,8],[264,7,264,8],[265,7,265,8],[266,7,266,8],[267,7,267,8],[268,7,268,8],[228,7,228,8],[208,7,208,8],[209,7,209,8],[210,7,210,8],[211,7,211,8],[212,7,212,8],[213,7,213,8],[214,7,214,8],[215,7,215,8],[216,7,216,8],[222,7,222,8],[223,7,223,8],[224,7,224,8],[225,7,225,8],[226,7,226,8],[217,7,217,8],[218,7,218,8],[219,7,219,8],[220,7,220,8],[221,7,221,8],[203,7,203,8],[204,7,204,8],[200,7,200,8],[201,7,201,8],[202,7,202,8],[205,7,205,8],[206,7,206,8],[207,7,207,8],[227,7,227,8],[170,7,170,8],[171,7,171,8],[172,7,172,8],[173,7,173,8],[174,7,174,8],[175,7,175,8],[176,7,176,8],[177,7,177,8],[178,7,178,8],[179,7,179,8],[180,7,180,8],[181,7,181,8],[182,7,182,8],[195,7,195,8],[196,7,196,8],[197,7,197,8],[198,7,198,8],[199,7,199,8],[190,7,190,8],[191,7,191,8],[192,7,192,8],[193,7,193,8],[194,7,194,8],[185,7,185,8],[186,7,186,8],[187,7,187,8],[188,7,188,8],[189,7,189,8],[158,9,158,10],[159,9,159,10],[160,9,160,10],[161,9,161,10],[162,9,162,10],[183,7,183,8],[184,7,184,8],[158,7,158,8],[159,7,159,8],[160,7,160,8],[161,7,161,8],[162,7,162,8],[163,7,163,8],[164,7,164,8],[165,7,165,8],[166,7,166,8],[167,7,167,8],[168,7,168,8],[169,7,169,8],[168,9,168,10],[169,9,169,10],[170,9,170,10],[171,9,171,10],[172,9,172,10],[163,9,163,10],[164,9,164,10],[165,9,165,10],[166,9,166,10],[167,9,167,10],[178,9,178,10],[179,9,179,10],[180,9,180,10],[181,9,181,10],[182,9,182,10],[173,9,173,10],[174,9,174,10],[175,9,175,10],[176,9,176,10],[177,9,177,10],[188,9,188,10],[189,9,189,10],[190,9,190,10],[208,9,208,10],[191,9,191,10],[192,9,192,10],[183,9,183,10],[184,9,184,10],[185,9,185,10],[186,9,186,10],[187,9,187,10],[198,9,198,10],[199,9,199,10],[203,9,203,10],[204,9,204,10],[205,9,205,10],[206,9,206,10],[207,9,207,10],[200,9,200,10],[201,9,201,10],[202,9,202,10],[193,9,193,10],[194,9,194,10],[195,9,195,10],[196,9,196,10],[197,9,197,10],[213,9,213,10],[214,9,214,10],[215,9,215,10],[216,9,216,10],[217,9,217,10],[209,9,209,10],[210,9,210,10],[211,9,211,10],[212,9,212,10],[223,9,223,10],[224,9,224,10],[225,9,225,10],[226,9,226,10],[227,9,227,10],[218,9,218,10],[219,9,219,10],[220,9,220,10],[221,9,221,10],[222,9,222,10],[233,9,233,10],[234,9,234,10],[235,9,235,10],[236,9,236,10],[237,9,237,10],[228,9,228,10],[229,9,229,10],[230,9,230,10],[231,9,231,10],[232,9,232,10],[243,9,243,10],[244,9,244,10],[245,9,245,10],[246,9,246,10],[247,9,247,10],[238,9,238,10],[239,9,239,10],[240,9,240,10],[241,9,241,10],[242,9,242,10],[253,9,253,10],[254,9,254,10],[255,9,255,10],[256,9,256,10],[257,9,257,10],[248,9,248,10],[249,9,249,10],[250,9,250,10],[251,9,251,10],[252,9,252,10],[175,11,175,13],[176,11,176,13],[177,11,177,13],[178,11,178,13],[179,11,179,13],[180,11,180,13],[181,11,181,13],[182,11,182,13],[273,9,273,10],[268,9,268,10],[269,9,269,10],[270,9,270,10],[271,9,271,10],[272,9,272,10],[263,9,263,10],[264,9,264,10],[265,9,265,10],[266,9,266,10],[267,9,267,10],[258,9,258,10],[259,9,259,10],[260,9,260,10],[261,9,261,10],[262,9,262,10],[202,11,202,13],[183,11,183,13],[184,11,184,13],[185,11,185,13],[186,11,186,13],[187,11,187,13],[188,11,188,13],[189,11,189,13],[190,11,190,13],[191,11,191,13],[192,11,192,13],[193,11,193,13],[194,11,194,13],[195,11,195,13],[196,11,196,13],[197,11,197,13],[198,11,198,13],[199,11,199,13],[200,11,200,13],[201,11,201,13],[216,11,216,13],[217,11,217,13],[218,11,218,13],[219,11,219,13],[220,11,220,13],[221,11,221,13],[223,11,223,13],[224,11,224,13],[225,11,225,13],[207,11,207,13],[208,11,208,13],[209,11,209,13],[210,11,210,13],[211,11,211,13],[212,11,212,13],[213,11,213,13],[214,11,214,13],[215,11,215,13],[167,18,167,19],[168,18,168,19],[169,18,169,19],[170,18,170,19],[171,18,171,19],[172,18,172,19],[263,11,263,13],[264,11,264,13],[238,11,238,13],[239,11,239,13],[240,11,240,13],[241,11,241,13],[242,11,242,13],[233,11,233,13],[234,11,234,13],[235,11,235,13],[236,11,236,13],[237,11,237,13],[256,11,256,13],[257,11,257,13],[258,11,258,13],[259,11,259,13],[253,11,253,13],[254,11,254,13],[158,18,158,19],[159,18,159,19],[160,18,160,19],[161,18,161,19],[162,18,162,19],[163,18,163,19],[164,18,164,19],[165,18,165,19],[166,18,166,19],[178,18,178,19],[179,18,179,19],[180,18,180,19],[181,18,181,19],[182,18,182,19],[173,18,173,19],[174,18,174,19],[175,18,175,19],[176,18,176,19],[177,18,177,19],[188,18,188,19],[189,18,189,19],[190,18,190,19],[191,18,191,19],[192,18,192,19],[183,18,183,19],[184,18,184,19],[185,18,185,19],[186,18,186,19],[187,18,187,19],[198,18,198,19],[199,18,199,19],[200,18,200,19],[201,18,201,19],[202,18,202,19],[193,18,193,19],[194,18,194,19],[195,18,195,19],[196,18,196,19],[197,18,197,19],[208,18,208,19],[209,18,209,19],[210,18,210,19],[211,18,211,19],[212,18,212,19],[203,18,203,19],[204,18,204,19],[205,18,205,19],[206,18,206,19],[207,18,207,19],[218,18,218,19],[219,18,219,19],[220,18,220,19],[221,18,221,19],[222,18,222,19],[213,18,213,19],[214,18,214,19],[215,18,215,19],[216,18,216,19],[217,18,217,19],[228,18,228,19],[229,18,229,19],[230,18,230,19],[231,18,231,19],[232,18,232,19],[223,18,223,19],[224,18,224,19],[225,18,225,19],[226,18,226,19],[227,18,227,19],[238,18,238,19],[239,18,239,19],[240,18,240,19],[241,18,241,19],[242,18,242,19],[233,18,233,19],[234,18,234,19],[235,18,235,19],[236,18,236,19],[237,18,237,19],[257,18,257,19],[248,18,248,19],[249,18,249,19],[250,18,250,19],[251,18,251,19],[252,18,252,19],[243,18,243,19],[244,18,244,19],[245,18,245,19],[246,18,246,19],[247,18,247,19],[273,18,273,19],[153,1,154,2],[153,3,154,3],[153,4,154,4],[153,18,153,19],[268,18,268,19],[269,18,269,19],[270,18,270,19],[271,18,271,19],[272,18,272,19],[263,18,263,19],[264,18,264,19],[265,18,265,19],[266,18,266,19],[267,18,267,19],[258,18,258,19],[259,18,259,19],[260,18,260,19],[261,18,261,19],[262,18,262,19],[253,18,253,19],[254,18,254,19],[255,18,255,19],[256,18,256,19],[273,11,273,13],[166,11,166,13],[167,11,167,13],[168,11,168,13],[169,11,169,13],[170,11,170,13],[171,11,171,13],[172,11,172,13],[173,11,173,13],[174,11,174,13],[261,11,261,13],[262,11,262,13],[248,11,248,13],[249,11,249,13],[250,11,250,13],[251,11,251,13],[252,11,252,13],[232,11,232,13],[222,11,222,13],[255,11,255,13],[203,11,203,13],[204,11,204,13],[205,11,205,13],[206,11,206,13],[260,11,260,13],[265,11,265,13],[266,11,266,13],[267,11,267,13],[268,11,268,13],[269,11,269,13],[270,11,270,13],[271,11,271,13],[272,11,272,13],[291,1,291,20],[157,11,157,13],[158,11,158,13],[159,11,159,13],[160,11,160,13],[161,11,161,13],[162,11,162,13],[274,11,274,13],[275,11,275,13],[276,11,276,13],[163,11,163,13],[164,11,164,13],[165,11,165,13],[243,11,243,13],[244,11,244,13],[245,11,245,13],[246,11,246,13],[247,11,247,13],[226,11,226,13],[227,11,227,13],[228,11,228,13],[229,11,229,13],[230,11,230,13],[231,11,231,13]]}
[]
[null,{"$f":"Utilitaire!E8","v":"Plan d'action 2013-2020 sur les changements climatiques"}]
[null,{"$f":"\"Action \" & Accueil!D58","v":"Action en cours"}]
[null,{"$f":"Accueil!D55","v":"21.1"},{"$f":"Accueil!E55","v":"Réduction des émissions de GES en provenance des systèmes de réfrigération (OPTER) (Écoperformance)"}]
[null,"Ministère porteur:",{"$f":"Accueil!$D$65","v":"MERN (SITE)"}]
[null,"Indicateurs"]
[]
[]
[]
[]
[]
[]
[]
[]
[]
[]
[]
[]
[]
[null,"Informations en date du :",null,null,"2022-03-31"]
[]
[null,"INDICATEURS DE PERFORMANCE",null,null,null,null,null,{"$f":"IF(OR(AND(MONTH(#REF!)>6,YEAR(#REF!)=VALUE(MID(G23,1,4))),YEAR(#REF!)>VALUE(MID(G23,1,4))),\"Réel\",\"Prévu\")","v":{"$error":"#REF!"}},{"$f":"IF(OR(AND(MONTH(#REF!)>6,YEAR(#REF!)=VALUE(MID(H23,1,4))),YEAR(#REF!)>VALUE(MID(H23,1,4))),\"Réel\",\"Prévu\")","v":{"$error":"#REF!"}},{"$f":"IF(OR(AND(MONTH(#REF!)>6,YEAR(#REF!)=VALUE(MID(I23,1,4))),YEAR(#REF!)>VALUE(MID(I23,1,4))),\"Réel\",\"Prévu\")","v":{"$error":"#REF!"}},{"$f":"IF(OR(AND(MONTH(#REF!)>6,YEAR(#REF!)=VALUE(MID(J23,1,4))),YEAR(#REF!)>VALUE(MID(J23,1,4))),\"Réel\",\"Prévu\")","v":{"$error":"#REF!"}},{"$f":"IF(OR(AND(MONTH(#REF!)>6,YEAR(#REF!)=VALUE(MID(K23,1,4))),YEAR(#REF!)>VALUE(MID(K23,1,4))),\"Réel\",\"Prévu\")","v":{"$error":"#REF!"}},{"$f":"IF(OR(AND(MONTH(#REF!)>6,YEAR(#REF!)=VALUE(MID(L23,1,4))),YEAR(#REF!)>VALUE(MID(L23,1,4))),\"Réel\",\"Prévu\")","v":{"$error":"#REF!"}},{"$f":"IF(OR(AND(MONTH(#REF!)>6,YEAR(#REF!)=VALUE(MID(M23,1,4))),YEAR(#REF!)>VALUE(MID(M23,1,4))),\"Réel\",\"Prévu\")","v":{"$error":"#REF!"}},{"$f":"IF(OR(AND(MONTH(#REF!)>6,YEAR(#REF!)=VALUE(MID(N23,1,4))),YEAR(#REF!)>VALUE(MID(N23,1,4))),\"Réel\",\"Prévu\")","v":{"$error":"#REF!"}},{"$f":"IF(OR(AND(MONTH(#REF!)>6,YEAR(#REF!)=VALUE(MID(O23,1,4))),YEAR(#REF!)>VALUE(MID(O23,1,4))),\"Réel\",\"Prévu\")","v":{"$error":"#REF!"}},{"$f":"IF(OR(AND(MONTH(#REF!)>6,YEAR(#REF!)=VALUE(MID(P23,1,4))),YEAR(#REF!)>VALUE(MID(P23,1,4))),\"Réel\",\"Prévu\")","v":{"$error":"#REF!"}},null,{"$f":"IF(OR(AND(MONTH(#REF!)>6,YEAR(#REF!)=VALUE(MID(Q23,1,4))),YEAR(#REF!)>VALUE(MID(Q23,1,4))),\"Réel\",\"Prévu\")","v":{"$error":"#REF!"}},{"$f":"MONTH(#REF!)","v":{"$error":"#REF!"}}]
[null,"Cible","Unité de mesure","Année prévue d'atteinte de la cible","Description de l'indicateur","Type d'indicateur","2013-2014","2014-2015","2015-2016","2016-2017","2017-2018","2018-2019","2019-2020","2020-2021","2021-2022","2022-2023","2023-2024","2024-2025","RÉSULTAT À COMPARER AVEC LA CIBLE","Pourcentage d'atteinte de la cible","Commentaires sur les résultats"]
[null,null,null,null,null,null,"Réel","Réel","Réel","Réel","Réel","Réel","Réel","Réel","Réel","Prévu","Prévu","Prévu",null,null,"(facultatif)"]
[1,null,null,null,null,null,null,null,null,null,null,null,null,null,null,null,null,null,null,{"$f":"IF(COUNTA(B25)=1,IF(COUNTA(S25)=1,IF(F25=\"Minimum à atteindre\",IF(B25=0,IF(S25>0,1,0),S25/B25),IF(F25=\"Maximum à ne pas dépasser\",IF(B25=0,IF(S25<0,1,0),(B25-S25)/B25+1),IF(F25=\"Binaire\",IF(B25=S25,1,0),\"\"))),0),\"\")","v":""}]
[2,null,"$ / tonne",null,"Aide financière / tonne à vie (aucune cible)",null,null,null,null,null,null,null,null,null,null,null,null,null,11.81,{"$f":"IF(COUNTA(B26)=1,IF(COUNTA(S26)=1,IF(F26=\"Minimum à atteindre\",IF(B26=0,IF(S26>0,1,0),S26/B26),IF(F26=\"Maximum à ne pas dépasser\",IF(B26=0,IF(S26<0,1,0),(B26-S26)/B26+1),IF(F26=\"Binaire\",IF(B26=S26,1,0),\"\"))),0),\"\")","v":""}]
[3,null,"emplois",null,"Emplois créés (aucune cible)",null,null,null,null,null,null,null,null,null,null,null,null,null,2811,""]
[4,null,"dossiers",null,"Nombre de dossiers acceptés (aucune cible)",null,null,null,null,null,null,null,null,null,null,null,null,null,145,""]
[5,null,"tonnes éq. CO2",null,"Réduction annuel des émissions de gaz à effet de serre (GES) pour les dossiers en cours",null,null,null,null,null,null,null,null,null,null,null,null,null,29716.48,""]
[6,null,"tonnes éq. CO2",null,"Réduction annuel des émissions de gaz à effet de serre (GES) pour les dossiers en traitement",null,null,null,null,null,null,null,null,null,null,null,null,null,null,""]
[7,66500,"tonnes éq. CO2",2020,"Réduction annuelle des émissions de gaz à effet de serre (GES)","minimum à atteindre",0,1295.3609581999999,9164.0156298999991,23707.871272,75104.160000000003,73724.679999999993,99214.67,66818.41,72146.990000000005,null,null,null,72146.990000000005,1.0849171428571429,"Les résultats ont atteint la cible lors de l'année préve et ont dépassé la cible avec une année de retard."]
[8,null,null,null,null,null,null,null,null,null,null,null,null,null,null,null,null,null,null,""]
[9,null,null,null,null,null,null,null,null,null,null,null,null,null,null,null,null,null,null,""]
[10,null,null,null,null,null,null,null,null,null,null,null,null,null,null,null,null,null,null,""]
[11,null,null,null,null,null,null,null,null,null,null,null,null,null,null,null,null,null,null,""]
[12,null,null,null,null,null,null,null,null,null,null,null,null,null,null,null,null,null,null,""]
[13,null,null,null,null,null,null,null,null,null,null,null,null,null,null,null,null,null,null,""]
[14,null,null,null,null,null,null,null,null,null,null,null,null,null,null,null,null,null,null,""]
[15,null,null,null,null,null,null,null,null,null,null,null,null,null,null,null,null,null,null,""]
[16,null,null,null,null,null,null,null,null,null,null,null,null,null,null,null,null,null,null,""]
[17,null,null,null,null,null,null,null,null,null,null,null,null,null,null,null,null,null,null,""]
[18,null,null,null,null,null,null,null,null,null,null,null,null,null,null,null,null,null,null,""]
[19,null,null,null,null,null,null,null,null,null,null,null,null,null,null,null,null,null,null,""]
[20,null,null,null,null,null,null,null,null,null,null,null,null,null,null,null,null,null,null,""]
[21,null,null,null,null,null,null,null,null,null,null,null,null,null,null,null,null,null,null,"",null,null,null,null,null,null,null,null,null,null,null,null,null,null,null,null,null,null,null,null,null,null,false]
[]
[]
[]
[]
[]
[]
[]
[]
[]
[]
[]
[]
[]
[]
[]
[]
[]
[]
[]
[]
[]
[]
[]
[null,"PRÉVISIONS DES RETOMBÉES SUR LES RÉDUCTIONS DES ÉMISSIONS DE GES",null,null,null,"Ce tableau et les résultats par action qu'il contient ne seront pas publiés. L'objectif est de permettre une appréciation à l'échelle du PACC des résultats escomptés. Veuillez le compléter et vérifier l'information qui y est contenue, au meilleur de vos connaissances et avec l'information dont vous disposez."]
[null,"Niveau de certitude",null,null,"Lieu",2020,2021,2022,2023,2024,2025,2026,2030,2035,2027,2038,2029,2031,2040,2050,"Commentaires sur les résultats"]
[null,"Pérennité des réductions d'émissions de GES réalisées à ce jour \n(T éq. CO2)",null,null,"Au Québec",null,null,null,null,null,null,null,null,null,null,null,null,null,null,null,""]
[null,null,null,null,"Hors Québec",null,null,null,null,null,null,null,null,null,null,null,null,null,null,null,""]
[null,null,null,null,"Non distingué",null,null,null,null,null,null,null,null,null,null,null,null,null,null,null,""]
[null,"Développement du potentiel de réduction des émissions de GES pour le futur \n(T éq. CO2)",null,null,"Au Québec",null,null,null,null,null,null,null,null,null,null,null,null,null,null,null,""]
[null,null,null,null,"Hors Québec",null,null,null,null,null,null,null,null,null,null,null,null,null,null,null,""]
[null,null,null,null,"Non distingué",null,null,null,null,null,null,null,null,null,null,null,null,null,null,null,""]
[]
[]
[]
[]
[]
[]
[]
[]
[]
[]
[]
[]
[]
[]
[]
[]
[]
[]
[]
[]
[]
[]
[]
[]
[]
[]
[]
[]
[]
[]
[]
[]
[]
[]
[]
[]
[]
[]
[]
[]
[]
[]
[]
[]
[]
[]
[]
[]
[]
[]
[]
[]
[]
[]
[]
[]
[]
[]
[]
[]
[]
[]
[]
[]
[]
[]
[]
[]
[]
[]
[]
[]
[]
[]
[]
[]
[null,"ADAPTATION AUX EFFETS DES CHANGEMENTS CLIMATIQUES"]
[null,"Solutions d'adaptation proposées",null,"Lignes concernées de l'onglet Détail des projets","Étape","Ajustements",null,"Risques",null,"Effets des changements climatiques",null,"Région",null,null,null,null,null,null,"Échelle humaine",null,"Échelle environnementale"]
[null,null,null,null,null,"La solution agit sur : ",null,"afin de protéger : ",null,"de :",null,null,null,null,null,null,null,null,"(estimation du nombre de personnes desservies)",null,"(estimation du nombre d'espèces desservies)"]
[]
[]
[]
[]
[]
[]
[]
[]
[]
[]
[]
[]
[]
[]
[]
[]
[]
[]
[]
[]
[]
[]
[]
[]
[]
[]
[]
[]
[]
[]
[]
[]
[]
[]
[]
[]
[]
[]
[]
[]
[]
[]
[]
[]
[]
[]
[]
[]
[]
[]
[]
[]
[]
[]
[]
[]
[]
[]
[]
[]
[]
[]
[]
[]
[]
[]
[]
[]
[]
[]
[]
[]
[]
[]
[]
[]
[]
[]
[]
[]
[]
[]
[]
[]
[]
[]
[]
[]
[]
[]
[]
[]
[]
[]
[]
[]
[]
[]
[]
[]
[]
[]
[]
[]
[]
[]
[]
[]
[]
[]
[]
[]
[]
[]
[]
[]
[]
[]
[]
[]
[]
[]
[]
[]
[]
[]
[]
[]
[]
[]
[]
[]
[]
[]
[]
[]
[null,"Ajouter une ligne"]

{"sheet":"Commentaires","index":6,"n_rows":33,"n_cols":20,"rows_kept":33,"cut":false,"hidden":true,"merged":[[26,1,26,11],[28,12,28,13],[28,1,28,11],[33,12,33,13],[33,1,33,11],[31,12,31,13],[32,12,32,13],[29,1,29,11],[27,1,27,11],[24,12,24,13],[25,12,25,13],[26,12,26,13],[27,12,27,13],[29,12,29,13],[34,1,34,11],[34,12,34,13],[31,1,31,11],[32,1,32,11],[30,1,30,11],[30,12,30,13],[24,1,24,11],[3,2,3,5],[5,1,5,5],[25,1,25,11],[2,1,2,2],[4,2,4,5],[19,1,19,3],[19,4,19,5],[1,7,1,11],[2,7,5,17],[23,1,23,11],[23,12,23,13],[1,1,1,5],[1,15,1,16]]}
[]
[null,{"$f":"Utilitaire!E8","v":"Plan d'action 2013-2020 sur les changements climatiques"},null,null,null,null,null,null,null,null,null,null,null,null,null,null,null,null,null,"COF"]
[null,{"$f":"\"Action \" & Accueil!D58","v":"Action en cours"},null,null,null,null,null,null,null,null,null,null,null,null,null,null,null,null,null,"Frais"]
[null,{"$f":"Accueil!D55","v":"21.1"},{"$f":"Accueil!E55","v":"Réduction des émissions de GES en provenance des systèmes de réfrigération (OPTER) (Écoperformance)"},null,null,null,null,null,null,null,null,null,null,null,null,null,null,null,null,"ETC"]
[null,"Ministère porteur:",{"$f":"Accueil!$D$65","v":"MERN (SITE)"},null,null,null,null,null,null,null,null,null,null,null,null,null,null,null,null,"Détail des projets"]
[null,"Commentaires",null,null,null,null,null,null,null,null,null,null,null,null,null,null,null,null,null,"Détail des projets (GES)"]
[null,null,null,null,null,null,null,null,null,null,null,null,null,null,null,null,null,null,null,"Bilan GES"]
[null,null,null,null,null,null,null,null,null,null,null,null,null,null,null,null,null,null,null,"Indicateurs"]
[null,null,null,null,null,null,null,null,null,null,null,null,null,null,null,null,null,null,null,"Toutes-Autre"]
[]
[]
[null,null,null,null,null,null,null,null,null,null,null,null,null,null,null,null,null,null,null,"2013-2014"]
[null,null,null,null,null,null,null,null,null,null,null,null,null,null,null,null,null,null,null,"2014-2015"]
[null,null,null,null,null,null,null,null,null,null,null,null,null,null,null,null,null,null,null,"2015-2016"]
[null,null,null,null,null,null,null,null,null,null,null,null,null,null,null,null,null,null,null,"2016-2017"]
[null,null,null,null,null,null,null,null,null,null,null,null,null,null,null,null,null,null,null,"2017-2018"]
[null,null,null,null,null,null,null,null,null,null,null,null,null,null,null,null,null,null,null,"2018-2019"]
[null,null,null,null,null,null,null,null,null,null,null,null,null,null,null,null,null,null,null,"2019-2020"]
[null,null,null,null,null,null,null,null,null,null,null,null,null,null,null,null,null,null,null,"2020-2021"]
[null,"Informations en date du :",null,null,"2022-03-31",null,null,null,null,null,null,null,null,null,null,null,null,null,null,"2021-2022"]
[null,null,null,null,null,null,null,null,null,null,null,null,null,null,null,null,null,null,null,"2022-2023"]
[null,null,null,null,null,null,null,null,null,null,null,null,null,null,null,null,null,null,null,"2023-2024"]
[]
[null,"Commentaires",null,null,null,null,null,null,null,null,null,null,"Section concernée",null,"Année","Exercice","nom Commentateur ","courriel Commentateur "]
[null,"",null,null,null,null,null,null,null,null,null,null,"",null,null,"","",""]
[null,"",null,null,null,null,null,null,null,null,null,null,"",null,null,"","",""]
[]
[]
[]
[]
[]
[null,"",null,null,null,null,null,null,null,null,null,null,"",null,null,"","","",null,"juin"]
[null,"",null,null,null,null,null,null,null,null,null,null,"",null,null,"","","",null,"décembre"]

{"sheet":"Évaluation","index":7,"n_rows":222,"n_cols":14,"rows_kept":222,"cut":false,"hidden":true,"merged":[[1,7,1,11],[1,1,1,5],[210,1,211,1],[210,2,211,2],[210,3,210,13],[211,3,211,13],[143,3,143,4],[143,5,143,7],[143,8,143,9],[143,10,143,11],[136,1,136,2],[136,3,136,4],[136,5,136,7],[136,8,136,9],[136,10,136,11],[142,1,142,2],[142,3,142,4],[142,5,142,7],[142,8,142,9],[142,10,142,11],[141,1,141,2],[141,3,141,4],[137,8,137,9],[137,10,137,11],[135,1,135,2],[135,3,135,4],[135,5,135,7],[135,8,135,9],[135,10,135,11],[6,1,6,2],[6,3,6,5],[134,1,134,2],[134,3,134,4],[134,5,134,7],[134,8,134,9],[134,10,134,11],[133,1,133,2],[133,3,133,4],[133,5,133,7],[133,8,133,9],[133,10,133,11],[132,1,132,2],[132,3,132,4],[132,5,132,7],[132,8,132,9],[132,10,132,11],[131,1,131,2],[131,3,131,4],[131,5,131,7],[131,8,131,9],[131,10,131,11],[130,1,130,2],[130,3,130,4],[130,5,130,7],[130,8,130,9],[130,10,130,11],[129,1,129,2],[129,3,129,4],[129,5,129,7],[129,8,129,9],[129,10,129,11],[128,1,128,2],[128,3,128,4],[128,5,128,7],[128,8,128,9],[128,10,128,11],[127,1,127,2],[127,3,127,4],[127,5,127,7],[127,8,127,9],[127,10,127,11],[126,1,126,2],[126,3,126,4],[126,5,126,7],[126,8,126,9],[126,10,126,11],[125,1,125,2],[125,3,125,4],[125,5,125,7],[125,8,125,9],[125,10,125,11],[124,1,124,2],[124,3,124,4],[124,5,124,7],[124,8,124,9],[124,10,124,11],[123,1,123,2],[123,3,123,4],[123,5,123,7],[123,8,123,9],[123,10,123,11],[122,1,122,2],[122,3,122,4],[122,5,122,7],[122,8,122,9],[122,10,122,11],[121,1,121,2],[121,3,121,4],[121,5,121,7],[121,8,121,9],[121,10,121,11],[120,1,120,2],[120,3,120,4],[120,5,120,7],[120,8,120,9],[120,10,120,11],[119,1,119,2],[119,3,119,4],[119,5,119,7],[119,8,119,9],[119,10,119,11],[118,1,118,2],[118,3,118,4],[118,5,118,7],[118,8,118,9],[118,10,118,11],[117,1,117,2],[117,3,117,4],[117,5,117,7],[117,8,117,9],[117,10,117,11],[116,1,116,2],[116,3,116,4],[116,5,116,7],[116,8,116,9],[116,10,116,11],[115,1,115,2],[115,3,115,4],[115,5,115,7],[115,8,115,9],[115,10,115,11],[114,1,114,2],[114,3,114,4],[114,5,114,7],[114,8,114,9],[114,10,114,11],[113,1,113,2],[113,3,113,4],[113,5,113,7],[113,8,113,9],[113,10,113,11],[112,1,112,2],[112,3,112,4],[112,5,112,7],[112,8,112,9],[112,10,112,11],[111,1,111,2],[111,3,111,4],[111,5,111,7],[111,8,111,9],[111,10,111,11],[110,1,110,2],[110,3,110,4],[110,5,110,7],[110,8,110,9],[110,10,110,11],[109,1,109,2],[109,3,109,4],[109,5,109,7],[109,8,109,9],[109,10,109,11],[108,1,108,2],[108,3,108,4],[108,5,108,7],[108,8,108,9],[108,10,108,11],[107,1,107,2],[107,3,107,4],[107,5,107,7],[107,8,107,9],[107,10,107,11],[106,1,106,2],[106,3,106,4],[106,5,106,7],[106,8,106,9],[106,10,106,11],[105,1,105,2],[105,3,105,4],[105,5,105,7],[105,8,105,9],[105,10,105,11],[104,1,104,2],[104,3,104,4],[104,5,104,7],[104,8,104,9],[104,10,104,11],[103,1,103,2],[103,3,103,4],[103,5,103,7],[103,8,103,9],[103,10,103,11],[102,1,102,2],[102,3,102,4],[102,5,102,7],[102,8,102,9],[102,10,102,11],[101,1,101,2],[101,3,101,4],[101,5,101,7],[101,8,101,9],[101,10,101,11],[100,1,100,2],[100,3,100,4],[100,5,100,7],[100,8,100,9],[100,10,100,11],[99,1,99,2],[99,3,99,4],[99,5,99,7],[99,8,99,9],[99,10,99,11],[98,1,98,2],[98,3,98,4],[98,5,98,7],[98,8,98,9],[98,10,98,11],[97,1,97,2],[97,3,97,4],[97,5,97,7],[97,8,97,9],[97,10,97,11],[96,1,96,2],[96,3,96,4],[96,5,96,7],[96,8,96,9],[96,10,96,11],[95,1,95,2],[95,3,95,4],[95,5,95,7],[95,8,95,9],[95,10,95,11],[94,1,94,2],[94,3,94,4],[94,5,94,7],[94,8,94,9],[94,10,94,11],[93,1,93,2],[93,3,93,4],[93,5,93,7],[93,8,93,9],[93,10,93,11],[92,1,92,2],[92,3,92,4],[92,5,92,7],[92,8,92,9],[92,10,92,11],[91,1,91,2],[91,3,91,4],[91,5,91,7],[91,8,91,9],[91,10,91,11],[90,1,90,2],[90,3,90,4],[90,5,90,7],[90,8,90,9],[90,10,90,11],[89,1,89,2],[89,3,89,4],[89,5,89,7],[89,8,89,9],[89,10,89,11],[88,1,88,2],[88,3,88,4],[88,5,88,7],[88,8,88,9],[88,10,88,11],[87,1,87,2],[87,3,87,4],[87,5,87,7],[87,8,87,9],[87,10,87,11],[86,1,86,2],[86,3,86,4],[86,5,86,7],[86,8,86,9],[86,10,86,11],[85,1,85,2],[85,3,85,4],[85,5,85,7],[85,8,85,9],[85,10,85,11],[84,1,84,2],[84,3,84,4],[84,5,84,7],[84,8,84,9],[84,10,84,11],[83,1,83,2],[83,3,83,4],[83,5,83,7],[83,8,83,9],[83,10,83,11],[82,1,82,2],[82,3,82,4],[82,5,82,7],[82,8,82,9],[82,10,82,11],[81,1,81,2],[81,3,81,4],[81,5,81,7],[81,8,81,9],[81,10,81,11],[80,1,80,2],[80,3,80,4],[80,5,80,7],[80,8,80,9],[80,10,80,11],[79,1,79,2],[79,3,79,4],[79,5,79,7],[79,8,79,9],[79,10,79,11],[78,1,78,2],[78,3,78,4],[78,5,78,7],[78,8,78,9],[78,10,78,11],[77,1,77,2],[77,3,77,4],[77,5,77,7],[77,8,77,9],[77,10,77,11],[76,1,76,2],[76,3,76,4],[76,5,76,7],[76,8,76,9],[76,10,76,11],[75,1,75,2],[75,3,75,4],[75,5,75,7],[75,8,75,9],[75,10,75,11],[74,1,74,2],[74,3,74,4],[74,5,74,7],[74,8,74,9],[74,10,74,11],[73,1,73,2],[73,3,73,4],[73,5,73,7],[73,8,73,9],[73,10,73,11],[72,1,72,2],[72,3,72,4],[72,5,72,7],[72,8,72,9],[72,10,72,11],[71,1,71,2],[71,3,71,4],[71,5,71,7],[71,8,71,9],[71,10,71,11],[70,1,70,2],[70,3,70,4],[70,5,70,7],[70,8,70,9],[70,10,70,11],[69,1,69,2],[69,3,69,4],[69,5,69,7],[69,8,69,9],[69,10,69,11],[68,1,68,2],[68,3,68,4],[68,5,68,7],[68,8,68,9],[68,10,68,11],[67,1,67,2],[67,3,67,4],[67,5,67,7],[67,8,67,9],[67,10,67,11],[66,1,66,2],[66,3,66,4],[66,5,66,7],[66,8,66,9],[66,10,66,11],[65,1,65,2],[65,3,65,4],[65,5,65,7],[65,8,65,9],[65,10,65,11],[64,1,64,2],[64,3,64,4],[64,5,64,7],[64,8,64,9],[64,10,64,11],[63,1,63,2],[63,3,63,4],[63,5,63,7],[63,8,63,9],[63,10,63,11],[62,1,62,2],[62,3,62,4],[62,5,62,7],[62,8,62,9],[62,10,62,11],[61,1,61,2],[61,3,61,4],[61,5,61,7],[61,8,61,9],[61,10,61,11],[60,1,60,2],[60,3,60,4],[60,5,60,7],[60,8,60,9],[60,10,60,11],[59,1,59,2],[59,3,59,4],[59,5,59,7],[59,8,59,9],[59,10,59,11],[58,1,58,2],[58,3,58,4],[58,5,58,7],[58,8,58,9],[58,10,58,11],[57,1,57,2],[57,3,57,4],[57,5,57,7],[57,8,57,9],[57,10,57,11],[56,1,56,2],[56,3,56,4],[56,5,56,7],[56,8,56,9],[56,10,56,11],[55,1,55,2],[55,3,55,4],[55,5,55,7],[55,8,55,9],[55,10,55,11],[54,1,54,2],[54,3,54,4],[54,5,54,7],[54,8,54,9],[54,10,54,11],[53,1,53,2],[53,3,53,4],[53,5,53,7],[53,8,53,9],[53,10,53,11],[139,10,139,11],[138,1,138,2],[138,3,138,4],[138,5,138,7],[138,8,138,9],[138,10,138,11],[203,1,203,14],[208,9,208,11],[208,3,208,5],[140,1,140,2],[140,3,140,4],[140,5,140,7],[140,8,140,9],[140,10,140,11],[144,1,144,2],[144,3,144,4],[141,5,141,7],[141,8,141,9],[144,5,144,7],[144,8,144,9],[144,10,144,11],[143,1,143,2],[141,10,141,11],[50,8,50,9],[50,10,50,11],[219,2,219,13],[221,2,221,13],[51,8,51,9],[217,3,217,13],[218,2,218,13],[220,2,220,13],[216,2,216,13],[145,1,145,14],[50,5,50,7],[52,1,52,2],[52,3,52,4],[52,5,52,7],[52,8,52,9],[52,10,52,11],[209,2,209,13],[139,5,139,7],[139,8,139,9],[39,1,39,14],[40,1,40,2],[40,3,40,4],[40,5,40,7],[40,8,40,9],[40,10,40,11],[40,13,40,14],[41,1,41,2],[41,3,41,4],[41,5,41,7],[41,8,41,9],[41,10,41,11],[42,1,42,2],[42,3,42,4],[42,5,42,7],[42,8,42,9],[42,10,42,11],[43,1,43,2],[43,3,43,4],[49,1,49,2],[44,3,44,4],[44,5,44,7],[44,8,44,9],[44,10,44,11],[45,1,45,2],[45,3,45,4],[45,5,45,7],[45,8,45,9],[45,10,45,11],[43,10,43,11],[48,8,48,9],[48,10,48,11],[49,8,49,9],[49,10,49,11],[46,1,46,2],[46,3,46,4],[2,1,2,3],[3,2,3,5],[4,2,4,5],[5,1,5,5],[139,1,139,2],[139,3,139,4],[48,1,48,2],[48,3,48,4],[48,5,48,7],[137,1,137,2],[137,3,137,4],[137,5,137,7],[49,3,49,4],[49,5,49,7],[51,1,51,2],[51,3,51,4],[51,5,51,7],[44,1,44,2],[2,7,5,14],[37,12,37,14],[37,1,37,11],[51,10,51,11],[50,1,50,2],[50,3,50,4],[46,5,46,7],[46,8,46,9],[46,10,46,11],[47,1,47,2],[47,3,47,4],[47,5,47,7],[47,8,47,9],[47,10,47,11],[43,5,43,7],[43,8,43,9]]}
[]
[null,{"$f":"Utilitaire!E8","v":"Plan d'action 2013-2020 sur les changements climatiques"},null,null,null,null,null,"Conseils de rédaction :",null,null,null,null,"Informations en date du :",{"$f":"Utilitaire!G6","v":"2022-03-31"}]
[null,{"$f":"\"Action \" & Accueil!D58","v":"Action en cours"},null,null,null,null,null,"- Veuillez compléter la section \"Évaluation de l'action\" (OBLIGATOIRE) - ligne 204 (Fin du PACC)\n\n- Cet onglet sera pour usage interne seulement, il ne sera pas publié.\n\n- Des bulles commentaires dans chacun des titres vous aideront à remplir adéquatement les différentes colonnes.\n\n- Les cases de la section « Évaluation de l'action » sont limitées à 3000 caractères. "]
[null,{"$f":"Accueil!D55","v":"21.1"},{"$f":"Accueil!E55","v":"Réduction des émissions de GES en provenance des systèmes de réfrigération (OPTER) (Écoperformance)"}]
[null,"Ministère porteur:",{"$f":"Accueil!$D$65","v":"MERN (SITE)"}]
[null,"Évaluation"]
[null,"Informations en date du :",null,"2022-03-31"]
[]
[]
[]
[]
[]
[]
[]
[]
[]
[]
[]
[]
[]
[]
[]
[]
[]
[]
[]
[]
[]
[]
[]
[]
[]
[]
[]
[]
[]
[]
[null,"Est-ce qu'une production d'un rapport d'évaluation complet est prévue dans le cadre de cette action : "]
[]
[null,"Liste des livrables"]
[null,"Titre du document",null,"Date du document",null,"Type de document",null,null,"Date prévue de transmission au BECC",null,"Date réelle de transmission au BECC",null,"Référence","Commentaires"]
[null,"Synthèse des évalutations de programmes-Raymond Chabot Grant Thornton",null,"2017-10-02",null,"Résultats",null,null,null,null,"2018-12-31",null,""]
[null,"Planification évaluation de programme",null,"2018-02-01",null,"Résultats",null,null,null,null,"2018-12-31",null,""]
[null,"Rapport-Analyse synthèse des évaluations des programmes-Raymond Chabot Grant Thornton",null,"2017-09-20",null,"Rapport d'évaluation",null,null,null,null,"2018-12-31",null,""]
[null,null,null,null,null,null,null,null,null,null,null,null,""]
[null,"Rapport d'évaluation - ÉcoPerformance",null,"2021-05-14",null,"Rapport d'évaluation",null,null,null,null,null,null,"https://transitionenergetique.gouv.qc.ca/fileadmin/medias/pdf/evaluation-programmes/EcoPerformance_rapport_evaluation_2021.pdf"]
[]
[]
[]
[]
[]
[]
[]
[]
[]
[]
[]
[]
[]
[]
[]
[]
[]
[]
[]
[]
[]
[]
[]
[]
[]
[]
[]
[]
[]
[]
[]
[]
[]
[]
[]
[]
[]
[]
[]
[]
[]
[]
[]
[]
[]
[]
[]
[]
[]
[]
[]
[]
[]
[]
[]
[]
[]
[]
[]
[]
[]
[]
[]
[]
[]
[]
[]
[]
[]
[]
[]
[]
[]
[]
[]
[]
[]
[]
[]
[]
[]
[]
[]
[]
[]
[]
[]
[]
[]
[]
[]
[]
[]
[]
[]
[]
[]
[]
[]
[null,"Ajouter une ligne"]
[]
[]
[]
[]
[]
[]
[]
[]
[]
[]
[]
[]
[]
[]
[]
[]
[]
[]
[]
[]
[]
[]
[]
[]
[]
[]
[]
[]
[]
[]
[]
[]
[]
[]
[]
[]
[]
[]
[]
[]
[]
[]
[]
[]
[]
[]
[]
[]
[]
[]
[]
[]
[]
[]
[]
[]
[]
[null,"Évaluation de l'action"]
[]
[]
[]
[]
[null,null,"Début : ",{"$f":"Accueil!$D$68","v":"2013-10-28"},null,null,null,null,"Fin : ",{"$f":"Accueil!$K$68","v":"2024-03-31"}]
[null,"Résultats attendus : ",{"$f":"IF(LEN(Description!C49)>0,Description!C49,\"\")","v":"Les résultats directs attendus sont, la réduction des émissions de GES, des investissements importants dans les différents secteurs touchés, la création d'emplois et une amélioration soutenue de la performance énergétique en lien avec les systèmes de réfrigération et la réduction des émissions fugitives. \nAu Québec en 2010, on comptait environ 425 arénas et 75 centres de curling . Parmi ceux-ci, 71 % avaient plus de 30 ans et 62 % utilisaient le réfrigérant R22 de type HCFC (hydrochlorofluorocarbure). Celui-ci est une substance appauvrissant la couche d'ozone.\nLe nombre d'établissements d'alimentation au Québec serait de 2 360 magasins . Les supermarchés de grande superficie, constituent une des clientèles visées par le Programme. Cela représente plus de 850 supermarchés au Québec."}]
[null,"Résultats obtenus \n(Cibles, indicateurs et description) : ",{"$f":"IF(COUNTA(Indicateurs!B25:B45)=0,0,AVERAGE(Indicateurs!$T$25:$T$45))","v":1.0849171428571429},{"$f":"IF(LEN(Description!C50)>0,Description!C50,\"\")","v":""}]
[null,null,null,{"$f":"IF(LEN(Description!C51)>0,Description!C51,\"\")","v":"En date du 31 mars 2022, 16 analyses et 129 projets d’implantation ont été acceptés par le ministre, pour une réduction annuelle potentielle de 101,9 kt de CO2, nécessitant des investissements de 200,8 M$ grâce à des aides financières de 24,1 M$ pour un coût moyen de l’aide financière de 11,81 $/t sur la durée de vie des équipements (20,05 ans). Ces investissements entraîneraient la création de 2 811 emplois."}]
[]
[]
[]
[]
[null,"Type d'évaluation : "]
[null,"Est-ce que les résultats obtenus dans le cadre de l'action sont satisfaisants?","Oui","Les projets de nos participants se réalisent sur une période de 36 à 48 mois. Les projets reçues et acceptés ces 2-3 dernières années vont produire des résultats réels dans le courant des 2-3 prochaines années."]
[null,"Quelles sont les améliorations possibles pour le futur?"]
[null,"Quels sont les forces et les points positifs de l'action?"]
[null,"Quelle est votre recommandation quant à la poursuite de cette action? "]
[null,"Autres commentaires","Reddition de compte à revoir pour nos programmes dans le cadre du PEV. Le détail des décaissements  par année financière pour chacun des projets complexifie cette reddition de compte sans pour autant la valoriser. Ceci en fonction de la gestion de nos versements."]

{"sheet":"Validation","index":8,"n_rows":85,"n_cols":7,"rows_kept":85,"cut":false,"hidden":true,"merged":[[3,3,3,6],[3,1,3,2],[17,1,17,5],[18,1,18,4],[4,3,4,6],[7,1,7,3],[7,4,7,5],[21,5,22,5],[23,5,24,5],[25,5,26,5],[26,1,26,4],[22,1,22,4],[24,1,24,4],[1,1,1,6],[19,1,19,4],[31,1,31,4],[28,1,28,5],[47,1,47,5],[30,1,30,4],[16,1,16,6],[21,1,21,4],[23,1,23,4],[25,1,25,4],[20,1,20,5],[27,1,27,4],[29,1,29,4],[5,1,5,6],[2,1,2,2],[4,1,4,2],[49,1,49,4],[34,1,34,4],[48,1,48,4],[48,5,49,5],[32,1,32,4],[33,1,33,4],[35,1,35,4],[36,1,36,5],[41,1,41,4],[25,6,26,6],[48,6,49,6],[51,6,52,6],[57,1,57,4],[37,1,37,4],[43,1,43,4],[38,1,38,4],[39,1,39,4],[40,1,40,4],[50,1,50,4],[51,1,51,4],[52,1,52,4],[56,1,56,5],[51,5,52,5],[54,1,54,4],[55,1,55,4],[53,1,53,4],[59,1,59,5],[60,1,60,4],[61,1,61,4],[8,1,8,6],[13,1,13,6],[14,1,14,6],[46,1,46,4],[45,1,45,4],[44,1,44,4],[45,6,46,6],[45,5,46,5],[42,1,42,5],[58,1,58,4],[21,6,22,6],[23,6,24,6]]}
[]
[null,{"$f":"Utilitaire!E8","v":"Plan d'action 2013-2020 sur les changements climatiques"}]
[null,{"$f":"\"Action \" & Accueil!D58","v":"Action en cours"}]
[null,{"$f":"Accueil!D55","v":"21.1"}]
[null,"Ministère porteur:",null,{"$f":"Accueil!$D$65","v":"MERN (SITE)"},{"$f":"Accueil!$D$65","v":"MERN (SITE)"}]
[null,"Rapport de validation de la fiche de suivi"]
[]
[null,"Conseils de rédaction : ",null,null,"Informations en date du :",null,{"$f":"Utilitaire!G6","v":"2022-03-31"}]
[null,"\n\n'- Cet onglet ne sera pas diffusé.\n\n- Nous apprécierions vos commentaires constructifs par rapport aux nouvelles fiches de suivi. La case B15 est réservée à cet effet.\n\n- Complétez la grille de validation ci-dessous (ligne 19) en cochant chaque point. Vous pouvez inscrire des commentaires à l'endroit prévu à cet effet."]
[]
[]
[]
[]
[null,"Votre appréciation de la fiche de suivi et suggestions pour les prochains exercices"]
[]
[]
[null,"Grille de validation de la fiche de suivi"]
[null,"Fin du PACC",null,null,null,null,"Commentaires"]
[null,"Avez-vous complété le tableau de la ligne 204 de l'onglet Évaluation?"]
[null,"Avez-vous saisi tous vos engagements à SAGIR (vous avez jusqu'au 31 mai)?"]
[null,"Onglet Accueil",null,null,null,null,"Commentaires"]
[null,"Vérifier que toutes les cases sont remplies."]
[null,"Les cases non remplies s'affichent en orange\nLes lignes 69 à 73 seront masquées pour la publication."]
[null,"Vérifier que la part de financement est écrite sous forme de pourcentage (ex. : 60 %)."]
[null,"Inscrire un nombre entre 0 et 100 suivi du symbole \"%\". Si le pourcentage est variable, inscrire \"Variable\"."]
[null,"Vérifier que le statut de l'action est toujours conforme avec son évolution."]
[null,"Utiliser l'information des onglets \"Description\" et Détail des projets\" afin que le statut soit conforme avec\n l'évolution de l'action."]
[null,"Vérifier, s'il y a lieu, que le nom du programme est inscrit."]
[null,"Onglet Description",null,null,null,null,"Commentaires"]
[null,"Vérifier que toutes les cases obligatoires sont remplies."]
[null,"Vérifier que tous les éléments pertinents en lien avec le COVID-19 sont inscrits au tableau prévu à cet effet."]
[null,"Vérifier que les éléments de classification de l'action sont sélectionnés à partir du menu déroulant."]
[null,"Vérifier que l'entièreté du texte est lisible. "]
[null,"Vérifier que l'échéancier dans la section \"Mise en œuvre\" est inscrit."]
[null,"Vérifier que l'état d'avancement est sélectionné à partir du menu déroulant."]
[null,"Vérifier que le tableau \"Plans, stratégies, politiques incluant la mise en œuvre de cette action\" est rempli."]
[null,"Onglet Détail des projets",null,null,null,null,"Commentaires"]
[null,"Vérifier que les informations confidentielles sont inscrites en bleu."]
[null,"Transmettre au BECC le rapport des résultats, si un projet est terminé."]
[null,"Vérifier le total des dépenses réelles de tous les projets correspond à celui inscrit dans les COF pour chaque année financière complétée."]
[null,"Vérifier que le total des dépenses réelles et prévues pour un projet n'excède pas le montant engagé."]
[null,"Vérifier l'utilisation des nouveaux statuts de projets pour les projets affectés par le COVID-19"]
[null,"Onglet GES",null,null,null,null,"Commentaires"]
[null,"Vérifier que le total des réductions de GES correspond aux données de l'onglet \"Indicateurs\"."]
[null,"Vérifier que les deux cases de la ligne 20 sont bien remplies."]
[null,"Vérifier que le coût la tonne et la durée du projet sont bien indiqués pour tous les projets ayant soit un potentiel de réduction ou des réductions réelles (colonnes H et K)."]
[null,"La méthode de calcul du coût la tonne doit respecter les indications en commentaire dans la cellule H23."]
[null,"Onglet Indicateurs",null,null,null,null,"Commentaires"]
[null,"Vérifier la cohérence des cibles, des résultats et des résultats à comparer avec les cibles.\n (même unité de mesure, évolution des résultats annuels)"]
[null,"S'il y a lieu, utiliser la colonne \"Commentaires sur les résultats\" afin de fournir davantage d'informations."]
[null,"Vérifier que les commentaires à l'intention du BECC qui ne sont pas pour diffusion sont inscrits en bleu."]
[null,"Vérifier qu'il y a des résultats pour tous les indicateurs. Inscrire un 0 comme résultat pour les \n indicateurs ne présentant pas de résultats."]
[null,"Si les résultats ne sont pas disponibles, vous devez inscrire un commentaire dans la colonne prévue\n à cet effet indiquant à quel moment ils seront disponibles."]
[null," Transmettre au BECC pour approbation une annexe 4 (fiche-indicateur) si vous désirez qu'un indicateur soit ajouté."]
[null,"Vérifier que le tableau \"PRÉVISIONS DES RETOMBÉES SUR LES RÉDUCTIONS DES ÉMISSIONS DE GES\" est bien rempli si votre action vise la réduction des GES."]
[null,"Vérifier que le tableau \"ADAPTATION AUX EFFETS DES CHANGEMENTS CLIMATIQUES\" est bien rempli si votre action vise l'adaptation aux changements climatiques."]
[null,"Onglet Commentaires",null,null,null,null,"Commentaires"]
[null,"Vérifier que les commentaires de l'exercice précédent s'appliquent toujours. Retirer tous les\n commentaires qui ne s'appliquent plus."]
[null,"Inscrire en noir les commentaires nécessaires à afficher lors de la publication des fiches"]
[null,"Onglet Évaluation",null,null,null,null,"Commentaires"]
[null,"Remplir et mettre à jour la liste des livrables. Veuillez transmettre tout livrable attendu au BECC avec votre fiche de suivi."]
[null,"Veuillez remplir la section Évaluation de l'action. Obligatoire pour la fin du PACC."]
[]
[]
[]
[]
[]
[]
[]
[]
[]
[]
[]
[]
[]
[]
[]
[]
[]
[]
["Code de couleur","Onglet concerné","no ligne","Description de la problématique","No d'erreur",null,"Commentaires"]
[null,"Description",null,"Les informations \"Description, objectif, clientèle, critères d'admissibilité, processus de suivi de l'action, résultats attendus, résultats obtenus dans la dernière année, résultats obtenus, finalité, catégorie\" sont manquantes dans l'onglet Description.",18]
[null,"détail des projets",null,"Aucun projet n'est mentionné dans la fiche. Cette situation est acceptable seulement si l'action n'est pas encore lancée (statut non démarrée ou en élaboration).",12]
[null,"GES",null,"Les informations \"Potentiel de réduction des GES, réduction réelle des émissions de GES\" sont manquantes dans l'onglet GES.",18]
[null,"indicateurs",null,"Aucun indicateur n'est inscrit pour cette action. Acceptable seulement si l'action n'est pas démarrée.",20]

{"sheet":"Modalités de fin du PACC","index":9,"n_rows":23,"n_cols":5,"rows_kept":23,"cut":false,"hidden":true,"merged":[[13,1,13,12],[1,1,1,13],[22,2,22,13],[3,2,3,3],[4,2,4,3],[5,2,5,3],[7,2,7,3],[6,2,6,3],[8,1,8,13],[17,2,17,13],[19,2,19,13],[20,2,20,13],[21,2,21,13],[18,3,18,13],[12,1,12,13],[14,2,14,13],[15,2,15,13],[16,2,16,13]]}
[]
[null,"Échéancier de la fin du Plan d'action 2013-2020 sur les changements climatiques"]
[]
[null,"-","2021-03-31",null,"Fin du PACC. Vous ne pouvez plus prendre de nouveaux engagements en vertu des actions du PACC."]
[null,"-","2021-05-31",null,"Échéance pour saisir dans SAGIR les engagements (lettre d'octroi suffisante) pris avant le 31 mars."]
[null,"-","2021-12-31",null,"Échéance pour signer les conventions de subventions se rapportant aux engagements saisis à SAGIR."]
[null,"-","2022-12-31",null,"Fin des projets réalisés à l'interne des Partenaires"]
[null,"-","2025-12-31",null,"Fin des projets"]
[null,"Lorsque tous les projets liés à une action seront terminés et que tous les résultats liés à l'action seront colligés, l'action sera inscrite comme étant « terminée » et sera retirée du suivi semestriel."]
[]
[]
[]
[null,"Modalités détaillées de la fin du PACC"]
[null,"(Ces modalités sont annexées à l'entente administrative concernant la mise en œuvre du PACC et concordent avec l'échéancier ci-dessus)"]
[null,null,"1. Les enveloppes budgétaires 2013-2020 des actions et sous-actions (Annexe 2 de l’ENTENTE) doivent être respectées en tout temps."]
[null,null,"2. Tous les engagements (c.-à-d. une dépense jugée admissible et autorisée) doivent être pris avant le 31 mars 2021. Après cette date, les engagements pris ne peuvent plus être bonifiés."]
[null,null,"3. Tous les engagements pris avant le 31 mars 2021 (par exemple : lettre d’octroi de subvention signée par vos autorités, contrat, convention ou entente signés, décret ou CT approuvé) doivent être saisis dans SAGIR au plus tard le 31 mai 2021. Une nouvelle version de la « Procédure de comptabilisation des dépenses portées au débit du Fonds d’électrification et de changements climatiques par les ministères et organismes partenaires » sera transmise ultérieurement lors de la fermeture de la fin d’année financière 2020-2021 afin de tenir compte de la fin du PACC."]
[null,null,"4. Les conventions d’aide financière qui ne pourront être signées avant le 31 mars 2021 pourront être reconnues comme engagées seulement si le Partenaire transmet une lettre d’octroi de subvention au bénéficiaire avant cette date :"]
[null,null,null,"· La lettre d’octroi devra mentionner le montant total de la subvention avec le détail des versements estimés par année financière et devra préciser qu’elle est conditionnelle à une décision du Conseil des ministres ou du Conseil du trésor lorsqu’applicable. Enfin, la lettre devra préciser que la subvention est conditionnelle à la signature d’une convention de subvention au plus tard le 31 décembre 2021."]
[null,null,"5. Aucun engagement ne pourra s’échelonner au-delà du 31 décembre 2025."]
[null,null,"6. Les frais d’administration (dépenses de rémunération et de fonctionnement) nécessaires au suivi de conventions d’aide financière ou de contrats pourront être imputés au FECC jusqu’au terme des projets ou au plus tard au 31 décembre 2025."]
[null,null,"7. Les suivis se poursuivront tant que les actions ne seront pas terminées."]
[null,null,"8. Aucune dépense pour les projets réalisés à l’interne (projets majoritairement réalisés en régie interne par le personnel du Partenaire) ne pourra être effectuée au-delà du 31 mars 2022."]

{"sheet":"Prochain Exercice-Commentaire","index":10,"n_rows":11,"n_cols":6,"rows_kept":11,"cut":false,"hidden":true,"merged":[[6,1,6,5],[5,3,5,4],[1,1,2,5],[3,1,4,2],[3,4,3,5],[4,4,4,5],[5,1,5,2]]}
[]
[null,{"$f":"Utilitaire!E8","v":"Plan d'action 2013-2020 sur les changements climatiques"}]
[]
[null,"Commentaires",null,null,{"$f":"Accueil!D65 & \" - \" &Accueil!D53","v":"MERN (SITE) - 21,1"}]
[null,null,null,null,{"$f":"\"Action \" & Accueil!D58","v":"Action en cours"}]
[null,"Conseils de rédaction :",null,"Informations en date du :",null,{"$f":"Utilitaire!G6","v":"2022-03-31"}]
[null,"- Veuillez inscrire ici tout commentaire pour prochain exercice"]
[]
[]
[null,"Onglet de la fiche","Case","Commentaire"]
[null,"GES","M185","À l'été 2022, vous nous avez remis le document \"21-1-ecoperformance - Onglet GES avec année 21-22.xlsx\" afin de nous permettre de compléter la fiche 21-1 Ecoperformance. Dans ce document, à la cellule L149, le total des émissions évitées  est de 101 564,73, car vous avez retranché la somme 85 125,0375,  provenant de PureSphera,  au total de 186 689,76 ( montant corrigé ici à 186 988,51). Notre question : Faut-il retrancher 85 125,0375 du total en M185 de la présente fiche? (Diane Savard)"]